Workbook

Sheet A
D2: Average SQ FT | E2: =F6 -> 148.2463896
D5: SQ FT | E5: Cost Per SQ FT | H5: Pillar | J5: SQ FT | K5: Cost Per SQ FT | Q5: SQ FT | R5: Cost Per SQ FT
B6: 2024 WATERWAY ISLAND LANE | D6: 3393 | F6: =D57/D6 -> 148.2463896 | H6: 255 Myra | J6: 3014 | L6: =J89/J6 -> 86.11347047 | O6: 116 Laural Court | Q6: 3202 | S6: =Q67/Q6 -> 124.9219238
E7: % COST | F7: $ COST | K7: % COST | L7: $ COST | R7: % COST | S7: $ COST
B8: DESCRIPTION | D8: ESTIMATE | E8: Total | F8: PER SQ FT | H8: DESCRIPTION | J8: ESTIMATE | K8: Total | L8: PER SQ FT | O8: DESCRIPTION | Q8: ESTIMATE | R8: Total | S8: PER SQ FT | W8: A | X8: Cost | Y8: % | Z8: SQFT
B9: 1000 - 1999 Preparation Preliminaries | D9: 42071.24 | E9: =D9/$D$57 -> 0.08364063618 | F9: =$F$6*E9 -> 12.39942234 | H9: 1000 - 1999 Preparation Preliminaries | J9: 41467.2 | K9: =J9/$J$89 -> 0.1597682106 | L9: =J9/$J$6 -> 13.75819509 | O9: 1000 - 1999 Preparation Preliminaries | Q9: 54783.95 | R9: =Q9/$Q$67 -> 0.136959875 | S9: =Q9/$Q$6 -> 17.10929107 | W9: 1000 - 1999 Preparation Preliminaries | X9: =AVERAGE(X11,X11,X12) -> 46107.46333 | Y9: =AVERAGE(Y11,Y11,Y12) -> 0.1267895739 | Z9: 14.42230283
B10: 1002- LIP ADJ | D10: 588.94 | E10: =D10/$D$57 -> 0.001170854871 | F10: =$F$6*E10 -> 0.1735750074 | H10: 1002 - LIP ADJ DO NOT USE | J10: 11815.32 | K10: 0.04552302867 | L10: =J10/$J$6 -> 3.920145985 | O10: 1000- Administrative | Q10: 29800 | R10: 0.0745 | S10: =Q10/$Q$6 -> 9.306683323
B11: 1003-Contingency | D11: 35000 | E11: 0.06958250497 | F11: 10.31535514 | H11: 1002- LIP ADJ | J11: 1272.05 | K11: 0.004901058001 | L11: 0.4220471135 | O11: 1002- LIP ADJ | Q11: 0 | R11: 0 | S11: 0 | W11: FGC | X11: =AVERAGE(D9,Q9) -> 48427.595 | Y11: =AVERAGE(E9,R9) -> 0.1103002556 | Z11: =AVERAGE(F9,S9) -> 14.7543567
B12: 1010 - Building permits | D12: 3914.8 | E12: 0.007782902584 | F12: 1.153787209 | H12: 1003-Contingency | J12: 4815.25 | K12: 0.01855258798 | L12: 1.597627737 | O12: 1003-Contingency | Q12: 0 | R12: 0 | S12: 0 | W12: Pillar | X12: =J9 -> 41467.2 | Y12: =K9 -> 0.1597682106 | Z12: 13.75819509
B13: 1110 - Blueprints | D13: 267.5 | E13: 0.0005318091451 | F13: 0.07883878574 | H13: 1004-Direct Cost of Lot | J13: 500 | K13: 0.001926440785 | L13: 0.1658925017 | O13: 1010 - Building permits | Q13: 1696.07 | R13: 0.004240175 | S13: 0.5296908182 | W13: 2000 - 2999 Excavation and Foundation | X13: =AVERAGE(X15,X15,X16) -> 27440.12 | Y13: =AVERAGE(Y15,Y15,Y16) -> 0.0617067615 | Z13: 8.243148664
B14: 1400 - Temporary electric | D14: 650 | E14: 0.001292246521 | F14: 0.1915708812 | H14: 1010 - Building permits | J14: 3488.17 | K14: 0.01343950591 | L14: 1.157322495 | O14: 1030 - Warranty fees | Q14: 4468.77 | R14: 0.011171925 | S14: 1.395618364
B15: 1460 - Gas service | D15: 1650 | E15: 0.003280318091 | F15: 0.4862953139 | H15: 1030 - Warranty fees | J15: 3030 | K15: 0.01167423116 | L15: 1.00530856 | O15: 1110 - Blueprints | Q15: 4233.11 | R15: 0.010582775 | S15: 1.322020612 | W15: FGC | X15: =AVERAGE(D16,Q18) -> 36167.63 | Y15: =AVERAGE(E16,R18) -> 0.07332443837 | Z15: =AVERAGE(F16,S18) -> 10.70826978
B16: 2000 - 2999 Excavation and Foundation | D16: 66785.26 | E16: 0.1327738767 | F16: 19.68324786 | H16: 1110 - Blueprints | J16: 270.41 | K16: 0.001041857705 | L16: 0.08971798275 | O16: 1120 - Surveys | Q16: 850 | R16: 0.002125 | S16: 0.2654590881 | W16: Pillar | X16: =J23 -> 9985.1 | Y16: =K23 -> 0.03847140777 | Z16: 3.312906437
B17: 2000 - Excavation and backfill | D17: 17575 | E17: 0.03494035785 | F17: 5.179781904 | H17: 1120 - Surveys | J17: 650 | K17: 0.002504373021 | L17: 0.2156602522 | O17: 1300 - Demolition | Q17: 13736 | R17: 0.03434 | S17: 4.289818863 | W17: 3000 - 3999 Rough Structure | X17: =AVERAGE(X19,X19,X20) -> 89213.50333 | Y17: =AVERAGE(Y19,Y19,Y20) -> 0.232117658 | Z17: 27.52969999
B18: 2010 - Plumbing—ground | D18: 25950 | E18: 0.05159045726 | F18: 7.648099027 | H18: 1220 - Fill dirt and material | J18: 2746 | K18: 0.01058001279 | L18: 0.9110816191 | O18: 2000 - 2999 Excavation and Foundation | Q18: 5550 | R18: 0.013875 | S18: 1.733291693
B19: 2100 - Footings and foundation | D19: 22444.5 | E19: 0.04462127237 | F19: 6.614942529 | H19: 1300 - Demolition | J19: 10850 | K19: 0.04180376504 | L19: 3.599867286 | O19: 2100 - Footings and foundation | Q19: 5000 | R19: 0.0125 | S19: 1.561524047 | W19: FGC | X19: =AVERAGE(D21,Q21) -> 98012.255 | Y19: =AVERAGE(E21,R21) -> 0.2102125037 | Z19: =AVERAGE(F21,S21) -> 29.41399259
B20: 2300 - Termite protection | D20: 815.76 | E20: 0.001621789264 | F20: 0.2404244032 | H20: 1400 - Temporary electric | J20: 880 | K20: 0.003390535782 | L20: 0.2919708029 | O20: 2300 - Termite protection | Q20: 550 | R20: 0.001375 | S20: 0.1717676452 | W20: Pillar | X20: =J26 -> 71616 | Y20: =K26 -> 0.2759279665 | Z20: 23.7611148
B21: 3000 - 3999 Rough Structure | D21: 136027.35 | E21: 0.2704321074 | F21: 40.09058355 | H21: 1470 - Electric service | J21: 700 | K21: 0.002697017099 | L21: 0.2322495023 | O21: 3000 - 3999 Rough Structure | Q21: 59997.16 | R21: 0.1499929 | S21: 18.73740162 | W21: 4000 - 4999 Full Enclosure | X21: =AVERAGE(X23,X23,X24) -> 47531.5 | Y21: =AVERAGE(Y23,Y23,Y24) -> 0.1122079355 | Z21: 14.5270321
B22: 3140 - Trusses | D22: 12579.5 | E22: 0.02500894632 | F22: 3.707486001 | H22: 1491 - Dumpsters/Port a Lets | J22: 450 | K22: 0.001733796707 | L22: 0.1493032515 | O22: 3140 - Trusses | Q22: 1491 | R22: 0.0037275 | S22: 0.465646471
B23: 3210 - Framing labor—draw #1 | D23: 45910.85 | E23: 0.09127405567 | F23: 13.53104922 | H23: 2000 - 2999 Excavation and Foundation | J23: =SUM(J24:J25) -> 9985.1 | K23: =SUM(K24:K25) -> 0.03847140777 | L23: 3.312906437 | O23: 3210 - Framing labor—draw #1 | Q23: 17755.55 | R23: 0.044388875 | S23: 5.54514366 | W23: FGC | X23: =AVERAGE(D28,Q29) -> 66298.2 | Y23: =AVERAGE(E28,R29) -> 0.1490511556 | Z23: =AVERAGE(F28,S29) -> 20.13193833
B24: 3300 - Windows | D24: 9300 | E24: 0.01848906561 | F24: 2.740937224 | H24: 2113 SW-Footer Concrete | J24: 9685.1 | K24: =J24/$J$89 -> 0.03731554329 | L24: =J24/$J$6 -> 3.213370936 | O24: 3300 - Windows | Q24: 8458 | R24: 0.021145 | S24: 2.641474079 | W24: Pillar | X24: =J35 -> 9998.1 | Y24: =K35 -> 0.03852149523 | Z24: 3.317219642
B25: 3400 - Exterior siding | D25: 34267 | E25: 0.06812524851 | F25: 10.09932213 | H25: 2300 - Termite protection | J25: 300 | K25: 0.001155864471 | L25: 0.099535501 | O25: 3410 - Exterior trim labor | Q25: 1724.25 | R25: 0.004310625 | S25: 0.5384915678 | W25: 5000 - 5999 Finishing Trades | X25: =AVERAGE(X27,X27,X28) -> 98774.17667 | Y25: =AVERAGE(Y27,Y27,Y28) -> 0.2701795353 | Z25: 30.79666468
B26: 3610 - HVAC—rough | D26: 15400 | E26: 0.03061630219 | F26: 4.538756263 | H26: 3000 - 3999 Rough Structure | J26: 71616 | K26: 0.2759279665 | L26: 23.7611148 | O26: 3610 - HVAC—rough | Q26: 4925 | R26: 0.0123125 | S26: 1.538101187
B27: 3810 - Electrical—rough | D27: 18570 | E27: 0.03691848907 | F27: 5.473032714 | H27: 3110 - Lumber—1st package | J27: 17027.13 | K27: 0.06560351537 | L27: 5.649346384 | O27: 3810 - Electrical—rough | Q27: 24000 | R27: 0.06 | S27: 7.495315428 | W27: FGC | X27: =AVERAGE(D34,Q34) -> 100946.85 | Y27: =AVERAGE(E34,R34) -> 0.2233577535 | Z27: =AVERAGE(F34,S34) -> 30.52996218
B28: 4000 - 4999 Full Enclosure | D28: 65221.4 | E28: 0.1296648111 | F28: 19.22234011 | H28: 3140 - Trusses | J28: 7406.8 | K28: 0.02853752321 | L28: 2.457465163 | O28: 3910 - Gutters and downspouts | Q28: 1643.36 | R28: 0.0041084 | S28: 0.5132292317 | W28: Pillar | X28: =J40 -> 94428.83 | Y28: =K40 -> 0.3638230988 | Z28: 31.33006967
B29: 4100 - Roofing material | D29: 37175 | E29: 0.07390656064 | F29: 10.95638078 | H29: 3210 - Framing labor—draw #1 | J29: 22448.55 | K29: 0.08649160457 | L29: 7.448092236 | O29: 4000 - 4999 Full Enclosure | Q29: 67375 | R29: 0.1684375 | S29: 21.04153654 | W29: 6000 - 6999 Completion and Inspection | X29: =AVERAGE(X31,X31,X32) -> 19031.36667 | Y29: =AVERAGE(Y31,Y31,Y32) -> 0.04960649442 | Z29: 5.921430963
B30: 4300 - Exterior doors | D30: 14965 | E30: 0.02975149105 | F30: 4.410551135 | H30: 3300 - Windows | J30: 5000.91 | K30: 0.01926791397 | L30: 1.659226941 | O30: 4100 - Roofing material | Q30: 32875 | R30: 0.0821875 | S30: 10.26702061
B31: 4350 - Garage door | D31: 3047 | E31: 0.006057654076 | F31: 0.8980253463 | H31: 3400 - Exterior siding | J31: 8276.55 | K31: 0.03188856696 | L31: 2.746035169 | O31: 4300 - Exterior doors | Q31: 26000 | R31: 0.065 | S31: 8.119925047 | W31: FGC | X31: =AVERAGE(D44,Q43) -> 23443.025 | Y31: =AVERAGE(E44,R43) -> 0.05474453777 | Z31: =AVERAGE(F44,S43) -> 7.188707493
B32: 4400 - Insulation | D32: 6234.4 | E32: 0.0123944334 | F32: 1.837430003 | H32: 3610 - HVAC—rough | J32: 4101 | K32: 0.01580066732 | L32: 1.360650299 | O32: 4400 - Insulation | Q32: 3150 | R32: 0.007875 | S32: 0.9837601499 | W32: Pillar | X32: =J58 -> 10208.05 | Y32: =K58 -> 0.03933040771 | Z32: 3.386877903
B33: 4500 - Fireplaces | D33: 3800 | E33: 0.007554671968 | F33: 1.119952844 | H33: 3720 - Plumbing—rough | J33: 3691.32 | K33: 0.0142222188 | L33: 1.224724618 | O33: 4600 - Painting—exterior | Q33: 5350 | R33: 0.013375 | S33: 1.670830731 | W33: Finish | X33: =AVERAGE(X35,X35,X36) -> 36385.13333 | Y33: =AVERAGE(Y35,Y35,Y36) -> 0.09274988363 | Z33: 11.31372926
B34: 5000 - 5999 Finishing Trades | D34: 113333.7 | E34: 0.225315507 | F34: 33.40221043 | H34: 3810 - Electrical—rough | J34: 3663.74 | K34: 0.01411595632 | L34: 1.215573988 | O34: 5000 - 5999 Finishing Trades | Q34: 88560 | R34: 0.2214 | S34: 27.65771393
B35: 5100 - Drywall | D35: 15838 | E35: 0.03148707753 | F35: 4.667845564 | H35: 4000 - 4999 Full Enclosure | J35: 9998.1 | K35: 0.03852149523 | L35: 3.317219642 | O35: 5100 - Drywall | Q35: 6000 | R35: 0.015 | S35: 1.873828857 | W35: FGC | X35: =AVERAGE(D48,Q47) -> 48412.365 | Y35: =AVERAGE(E48,R47) -> 0.1153705199 | Z35: =AVERAGE(F48,S47) -> 14.9250282
B36: 5200 - Interior trim material | D36: 9463.5 | E36: 0.01881411531 | F36: 2.789124668 | H36: 4100 - Roofing material | J36: 1023.96 | K36: 0.003945196613 | L36: 0.339734572 | O36: 5200 - Interior trim material | Q36: 14307 | R36: 0.0357675 | S36: 4.468144909 | W36: Pillar | X36: =J63 -> 12330.67 | Y36: =K63 -> 0.04750861119 | Z36: 4.091131387
B37: 5250 - Interior trim labor | D37: 7755.2 | E37: 0.01541789264 | F37: 2.28564692 | H37: 4150 - Roofing labor | J37: 7038.29 | K37: 0.02711769783 | L37: 2.335199071 | O37: 5300 - Painting—interior | Q37: 13150 | R37: 0.032875 | S37: 4.106808245 | W37: Rough | X37: =AVERAGE(X39,X39,X40) -> 5375.26 | Y37: =AVERAGE(Y39,Y39,Y40) -> 0.0240216652 | Z37: 2.628737236
B38: 5300 - Painting—interior | D38: 18728 | E38: 0.03723260437 | F38: 5.519599175 | H38: 4300 - Exterior doors | J38: 1125.85 | K38: 0.004337766716 | L38: 0.373540146 | O38: 5400 - Cabinets and vanities | Q38: 17500 | R38: 0.04375 | S38: 5.465334166
B39: 5400 - Cabinets and vanities | D39: 18000 | E39: 0.03578528827 | F39: 5.305039788 | H39: 4350 - Garage door | J39: 810 | K39: 0.003120834072 | L39: 0.2687458527 | O39: 5450 - Countertops | Q39: 15000 | R39: 0.0375 | S39: 4.684572142 | W39: FGC | X39: =AVERAGE(Q58,0) -> 4330.1 | Y39: =AVERAGE(R58) -> 0.0216505 | Z39: =AVERAGE(S58) -> 2.704622111
B40: 5450 - Countertops | D40: 13000 | E40: 0.02584493042 | F40: 3.831417625 | H40: 5000 - 5999 Finishing Trades | J40: 94428.83 | K40: 0.3638230988 | L40: 31.33006967 | O40: 5520 - Special flooring | Q40: 22500 | R40: 0.05625 | S40: 7.026858214 | W40: Pillar | X40: =J72 -> 7465.58 | Y40: =K72 -> 0.02876399559 | Z40: 2.476967485
B41: 5510 - Ceramic tile | D41: 12805 | E41: 0.02545725646 | F41: 3.77394636 | H41: 5100 - Drywall | J41: 11808 | K41: 0.04549482558 | L41: 3.917717319 | O41: 5620 - Shower doors and mirrors | Q41: 103 | R41: =Q41/$Q$67 -> 0.0002575 | S41: 0.03216739538 | W41: Site | X41: =AVERAGE(X43,X43,X44) -> 17656.81 | Y41: =AVERAGE(Y43,Y43,Y44) -> 0.03783732597 | Z41: 5.279389607
B42: 5540 - Carpet | D42: 2744 | E42: 0.00545526839 | F42: 0.8087238432 | H42: 5200 - Interior trim material | J42: 8602.71 | K42: =J42/$J$89 -> 0.03314522281 | L42: 2.854250166 | O42: 5720 - Electrical fixtures | Q42: 0 | R42: 0 | S42: 0
B43: 5630 - Appliances | D43: 15000 | E43: 0.02982107356 | F43: 4.42086649 | H43: 5250 - Interior trim labor | J43: 4605 | K43: 0.01774251963 | L43: 1.52786994 | O43: 6000 - 6999 Completion and Inspection | Q43: 31794 | R43: 0.079485 | S43: 9.929419113 | W43: FGC | X43: =AVERAGE(D51,Q63) -> 25461.98 | Y43: =AVERAGE(E51,R63) -> 0.05281358569 | Z43: =AVERAGE(F51,S63) -> 7.579590383
B44: 6000 - 6999 Completion and Inspection | D44: 15092.05 | E44: 0.03000407555 | F44: 4.447995874 | H44: 5300 - Painting—interior | J44: 10025.6 | K44: 0.03862744947 | L44: 3.326343729 | O44: 6500 - Ornamental iron | Q44: 0 | R44: 0 | S44: 0 | W44: Pillar | X44: =J78 -> 2046.47 | Y44: =K78 -> 0.007884806547 | Z44: 0.6789880557
B45: 6100 - Clean-up | D45: 2500 | E45: 0.004970178926 | F45: 0.7368110816 | H45: 5400 - Cabinets and vanities | J45: 7616.25 | K45: 0.02934450926 | L45: 2.526957532 | O45: 6600 - Landscaping | Q45: 9294 | R45: 0.023235 | S45: 2.902560899
B46: 6300 - Driveways | D46: 4092.05 | E46: 0.00813528827 | F46: 1.206027115 | H46: 5450 - Countertops | J46: 6366.1 | K46: 0.02452782936 | L46: 2.11217651 | O46: 6700 - Pools | Q46: 22500 | R46: 0.05625 | S46: 7.026858214 | W46: Totals | X46: =AVERAGE(X48,X48,X49) -> 384628.6 | Y46: =AVERAGE(Y48,Y48,Y49) -> 0.9927831667 | Z46: 118.8590539
B47: 6600 - Landscaping | D47: 8500 | E47: 0.01689860835 | F47: 2.505157678 | H47: 5510 - Ceramic tile | J47: 10070.25 | K47: 0.03879948063 | L47: 3.34115793 | O47: Finish | Q47: 74710.73 | R47: 0.186776825 | S47: 23.3325203
B48: Finish | D48: 22114 | E48: 0.04396421471 | F48: 6.517536104 | H48: 5520 - Special flooring | J48: 3132 | K48: 0.01206722508 | L48: 1.03915063 | O48: 3401 Soffit and Facia | Q48: 2020 | R48: 0.00505 | S48: 0.6308557152 | W48: FGC | X48: =SUM(X11,X15,X19,X23,X27,X31,X35,X43) -> 447169.9 | Y48: =SUM(Y11,Y15,Y19,Y23,Y27,Y31,Y35,Y43) -> 0.98917475 | Z48: =SUM(Z11,Z15,Z19,Z23,Z27,Z31,Z35,Z43) -> 135.2318457
B49: 5550 Wood Flooring | D49: 17231 | E49: 0.03425646123 | F49: 5.078396699 | H49: 5540 - Carpet | J49: 2052 | K49: 0.007906112982 | L49: 0.6808228268 | O49: 4210 Stucco | Q49: 28500 | R49: 0.07125 | S49: 8.900687071 | W49: Pillar | X49: =SUM(X44,X40,X36,X32,X28,X24,X20,X16,X12) -> 259546 | Y49: =SUM(Y44,Y40,Y36,Y32,Y28,Y24,Y20,Y16,Y12) -> 1 | Z49: =SUM(Z44,Z40,Z36,Z32,Z28,Z24,Z20,Z16,Z12) -> 86.11347047 | AA49: ?
B50: 5621 Specialities | D50: 4883 | E50: 0.009707753479 | F50: 1.439139405 | H50: 5610 - Hardware | J50: 1611.98 | K50: 0.006210768033 | L50: 0.5348307896 | O50: 4220 Stone | Q50: 8300 | R50: 0.02075 | S50: 2.592129919
B51: Site | D51: 42355 | E51: 0.08420477137 | F51: 12.48305335 | H51: 5620 - Shower doors and mirrors | J51: 1411.42 | K51: 0.005438034106 | L51: 0.4682879894 | O51: 5621 Specialities | Q51: 7000 | R51: 0.0175 | S51: 2.186133666
B52: 1112 Engineering Fees | D52: 13620 | E52: 0.02707753479 | F52: 4.014146773 | H52: 5630 - Appliances | J52: 2253.42 | K52: 0.008682160388 | L52: 0.7476509622 | O52: 6101 All Cleaning | Q52: 2000 | R52: 0.005 | S52: 0.624609619
B53: 1126 Survey-Final | D53: 1600 | E53: 0.003180914513 | F53: 0.4715590922 | H53: 5700 - HVAC—final | J53: 4101 | K53: 0.01580066732 | L53: 1.360650299 | O53: 6350 Brick Pavers Drives &amp; Wal | Q53: 8990 | R53: 0.022475 | S53: 2.807620237
B54: 1491 Portable Toilets | D54: 3710 | E54: 0.007375745527 | F54: 1.093427645 | H54: 5710 - Plumbing—final | J54: 5022.36 | K54: 0.01935055828 | L54: 1.666343729 | O54: 6720 Screen Lanai | Q54: 1387 | R54: 0.0034675 | S54: 0.4331667708
B55: 6102-Dock Peir | D55: 23425 | E55: 0.04657057654 | F55: 6.903919835 | H55: 5720 - Electrical fixtures | J55: 2350.98 | K55: 0.009058047514 | L55: 0.7800199071 | O55: 7015 Appliance Options | Q55: 0 | R55: 0 | S55: 0
H56: 5730 - Electrical—final | J56: 2892.52 | K56: 0.011144537 | L56: 0.9596947578 | O56: 7040 Plumbing Options | Q56: 13413.73 | R56: 0.033534325 | S56: 4.189172392
D57: =SUM(D9:D55)/2 -> 503000 | E57: =SUM(E9:E55)/2 -> 1 | F57: 148.2463896 | H57: 5890 - Special finishes | J57: 10507.24 | K57: 0.04048315135 | L57: 3.486144658 | O57: 7045 Electric Options | Q57: 3100 | R57: 0.00775 | S57: 0.9681449094
H58: 6000 - 6999 Completion and Inspection | J58: 10208.05 | K58: 0.03933040771 | L58: 3.386877903 | O58: Rough | Q58: 8660.2 | R58: 0.0216505 | S58: 2.704622111
H59: 6100 - Clean-up | J59: 2712.03 | K59: 0.0104491304 | L59: 0.8998108825 | O59: 2103 Mono Slab Concrete | Q59: 1000 | R59: 0.0025 | S59: 0.3123048095
H60: 6400 - Patios, walks | J60: 575.62 | K60: 0.002217795689 | L60: 0.1909820836 | O60: 2117 SW-Slab Labor | Q60: 4260.2 | R60: 0.0106505 | S60: 1.330480949
H61: 6490 - Fences | J61: 2291 | K61: 0.008826951677 | L61: 0.7601194426 | O61: 3301 House Wrap | Q61: 1300 | R61: 0.00325 | S61: 0.4059962523
H62: 6600 - Landscaping | J62: 4629.4 | K62: 0.01783652994 | L62: 1.535965494 | O62: 3740 Gas Piping Rough In | Q62: 2100 | R62: 0.00525 | S62: 0.6558400999
H63: Finish | J63: 12330.67 | K63: 0.04750861119 | L63: 4.091131387 | O63: Site | Q63: 8568.96 | R63: 0.0214224 | S63: 2.67612742
H64: 3401 Soffit and Facia | J64: 1440.67 | K64: 0.005550730892 | L64: 0.4779927007 | O64: 1112 Engineering Fees | Q64: 1600 | R64: 0.004 | S64: 0.4996876952
H65: 3820 Low Voltage-Rough In | J65: 726.1 | K65: 0.002797577308 | L65: 0.2409090909 | O65: 6101 Dumpster | Q65: 6968.96 | R65: 0.0174224 | S65: 2.176439725
H66: 4210 Stucco | J66: 2250 | K66: 0.008668983533 | L66: 0.7465162575
H67: 5740 Low Voltage-Finish | J67: 726.1 | K67: 0.002797577308 | L67: 0.2409090909 | Q67: 400000 | R67: =SUM(R9:R65)/2 -> 1 | S67: =SUM(S9:S65)/2 -> 124.9219238
H68: 6350 Brick Pavers Drives &amp; Wal | J68: 2689.2 | K68: 0.01036116912 | L68: 0.8922362309
H69: 7040 Plumbing Options | J69: 1745 | K69: 0.00672327834 | L69: 0.5789648308
H70: 7050 Low Voltage Options | J70: 333.8 | K70: 0.001286091868 | L70: 0.1107498341
H71: 7065 Paint Options | J71: 2419.8 | K71: 0.009323202823 | L71: =J71/$J$6 -> 0.802853351
H72: Rough | J72: =SUM(J73:J77) -> 7465.58 | K72: =SUM(K73:K77) -> 0.02876399559 | L72: 2.476967485
H73: 3101 Hurricane Tie Downs | J73: 2542.8 | K73: =J73/$J$89 -> 0.009797107257 | L73: 0.8436629064
H74: 3301 House Wrap | J74: 123.43 | K74: 0.0004755611722 | L74: 0.04095222296
H75: 3721 Plumb. Topout | J75: 2767.89 | K75: 0.01066435237 | L75: 0.9183443928
H76: 4401 Insulation - Walls | J76: 1930 | K76: 0.00743606143 | L76: 0.6403450564
H77: 4402 Insulation - Ceiling | J77: 101.46 | K77: 0.0003909133641 | L77: 0.03366290644
H78: Site | J78: 2046.47 | K78: 0.007884806547 | L78: 0.6789880557
H79: 1112 Engineering Fees | J79: 46.47 | K79: 0.0001790434066 | L79: 0.0154180491
H80: 1121 Plot Plans | J80: 225 | K80: 0.0008668983533 | L80: 0.07465162575
H81: 1122 Survey-Boundary | J81: 285 | K81: 0.001098071247 | L81: 0.09455872595
H82: 1124 Survey-Foundation | J82: 360 | K82: 0.001387037365 | L82: 0.1194426012
H83: 1126 Survey-Final | J83: 180 | K83: 0.0006935186826 | L83: 0.0597213006
H84: 1211 Silt Fence-Erosion Contrl | J84: 300 | K84: 0.001155864471 | L84: 0.099535501
H85: 1221 Soil/Compaction Tests | J85: 110 | K85: 0.0004238169727 | L85: 0.03649635036
H86: 2001 Grading-Build Pad | J86: 280 | K86: 0.00107880684 | L86: 0.09289980093
H87: 2002 Grading-Backfill | J87: 260 | K87: 0.001001749208 | L87: 0.08626410086
J89: =SUM(J9:J87)/2 -> 259546 | K89: =SUM(K9:K87)/2 -> 1 | L89: =SUM(L9:L87)/2 -> 86.11347047

Sheet B
D2: SQ FT | E2: Cost Per SQ FT | J2: SQ FT | K2: Cost Per SQ FT | O2: ????? DO NOT COUNT | P2: SQ FT | Q2: Cost Per SQ FT | U2: Pinnicale | V2: SQ FT | W2: Cost Per SQ FT | AI2: SQ FT | AJ2: Cost Per SQ FT | AP2: SQ FT | AQ2: Cost Per SQ FT
C3: Pescado 167 | D3: 2498 | F3: =D85/D3 -> 70.63676541 | I3: 52 Marshview Drive | J3: 2515 | L3: =J61/J3 -> 86.92842942 | O3: Rivertown 1847 | P3: 2500 | R3: =P67/P3 -> 47.873032 | U3: 748 Viscaya | V3: 2190 | X3: =V74/V3 -> 83.83652968 | AG3: 3133 Maple Run | AI3: 2750 | AK3: =AK61 -> 86.76945455 | AN3: Pescado Drive 199 & 213 | AP3: 2400 | AR3: =AR38 -> 84.58333333
E4: % COST | F4: $ COST | K4: % COST | L4: $ COST | Q4: % COST | R4: $ COST | W4: % COST | X4: $ COST | AJ4: % COST | AK4: $ COST | AN4: Plemmons + Prestwood | AQ4: % COST | AR4: $ COST
C5: CODE - DESCRIPTION | D5: ESTIMATE | E5: Total | F5: PER SQ FT | I5: CODE - DESCRIPTION | J5: ESTIMATE | K5: Total | L5: PER SQ FT | O5: CODE - DESCRIPTION | P5: ESTIMATE | Q5: Total | R5: PER SQ FT | U5: CODE - DESCRIPTION | V5: ESTIMATE | W5: Total | X5: PER SQ FT | AG5: CODE - DESCRIPTION | AI5: ESTIMATE | AJ5: Total | AK5: PER SQ FT | AN5: CODE - DESCRIPTION | AP5: ESTIMATE | AQ5: Total | AR5: PER SQ FT
C6: 1000 - 1999 Preparation Preliminaries | D6: 9237.84 | E6: =D6/$D$85 -> 0.05235367806 | F6: =D6/$D$3 -> 3.698094476 | I6: 1000 - 1999 Preparation Preliminaries | J6: 30985 | K6: =J6/$J$61 -> 0.141726701 | L6: =J6/$J$3 -> 12.32007952 | O6: 1000 - 1999 Preparation Preliminaries | P6: =SUM(P7:P16) -> 5641.75 | Q6: =P6/$P$67 -> 0.04713927457 | R6: =P6/$P$3 -> 2.2567 | U6: 1000 - 1999 Preparation Preliminaries | V6: 31252 | W6: =V6/$V$74 -> 0.1702160107 | X6: =V6/$V$3 -> 14.27031963 | AA6: B | AB6: Cost | AC6: % | AD6: SQFT | AG6: 1000 - 1999 Preparation Preliminaries | AI6: 14250 | AJ6: =AI6/$AI$61 -> 0.05798788155 | AK6: =AI6/$AI$3 -> 5.181818182 | AN6: 1000 - 1999 Preparation Preliminaries | AP6: =SUM(AP7:AP9) -> 15732.5 | AQ6: =AP6/$AP$38 -> 0.0775 | AR6: =AP6/$AP$3 -> 6.555208333
C7: 1001- Mainsail | D7: 2827.18 | E7: 0.01602249785 | F7: =D7/$D$3 -> 1.131777422 | I7: 1002 - LIP ADJ DO NOT USE | J7: 0 | K7: =J7/$J$61 -> 0 | L7: =J7/$J$3 -> 0 | O7: 1003-Contingency | P7: 1966.75 | Q7: =P7/$P$67 -> 0.01643305149 | R7: 0.7867 | U7: 1010 - Building permits | V7: 16285 | W7: =V7/$V$74 -> 0.08869729088 | X7: =V7/$V$3 -> 7.436073059 | AA7: 1000 - 1999 Preparation Preliminaries | AB7: =AVERAGE(AB8:AB11) -> 31118.5 | AC7: =AVERAGE(AC8:AC11) -> 0.1559713558 | AD7: 13.29519958 | AG7: 1210 - Lot clearing | AI7: 5000 | AJ7: =AI7/$AI$61 -> 0.02034662511 | AK7: =AI7/$AI$3 -> 1.818181818 | AN7: 1009 | AO7: Insurance | AP7: 507.5 | AQ7: =AP7/$AP$38 -> 0.0025 | AR7: =AP7/$AP$3 -> 0.2114583333
C8: 1002- LIP ADJ | D8: 359.7 | E8: 0.002038530435 | F8: 0.1439951962 | I8: 1002- LIP ADJ | J8: 0 | K8: 0 | L8: 0 | O8: 1123 Survey-Stake Out | P8: 230 | Q8: 0.001921750016 | R8: 0.092 | U8: 1030 - Warranty fees | V8: 594 | W8: 0.003235258875 | X8: 0.2712328767 | AG8: 1400 - Temporary electric | AI8: 750 | AJ8: 0.003051993766 | AK8: 0.2727272727 | AN8: 1010 | AO8: Building Permits(lmpact Fees) | AP8: 14210 | AQ8: 0.07 | AR8: 5.920833333
C9: 1004-Direct Cost of Lot | D9: 2000 | E9: 0.0113346146 | F9: 0.8006405124 | I9: 1010 - Building permits | J9: 24335 | K9: 0.1113093196 | L9: 9.675944334 | O9: 1124 Survey-Foundation | P9: 230 | Q9: 0.001921750016 | R9: 0.092 | U9: 1110 - Blueprints | V9: 543 | W9: 0.002957484123 | X9: 0.2479452055 | AA9: Atlantic Palm Homes | AB9: =J6 -> 30985 | AC9: =K6 -> 0.141726701 | AD9: 12.32007952 | AG9: 1440 - Septic system | AI9: 8500 | AJ9: 0.03458926268 | AK9: 3.090909091 | AN9: 1491 | AO9: Dumpster/Portalets | AP9: 1015 | AQ9: 0.005 | AR9: 0.4229166667
C10: 1005-Misc.Rental Equip Charges | D10: 306 | E10: 0.001734196034 | F10: 0.1224979984 | I10: 1120 - Surveys | J10: 1300 | K10: 0.005946255003 | L10: 0.5168986083 | O10: 1125 Survey - Grade Stakes | P10: 310 | Q10: 0.002590184804 | R10: 0.124 | U10: 1120 - Surveys | V10: 625 | W10: 0.003404102352 | X10: 0.2853881279 | AA10: Dennis Homes | AB10: =V6 -> 31252 | AC10: =W6 -> 0.1702160107 | AD10: 14.27031963 | AG10: 1491 - Dumpsters/Port a Lets | AI10: 0 | AJ10: 0 | AK10: 0 | AN10: 2000 - 2999 Excavation and Foundation | AP10: =SUM(AP11) -> 20807.5 | AQ10: 0.1025 | AR10: 8.669791667
C11: 1220 - Fill dirt and material | D11: 2972.5 | E11: 0.01684607095 | F11: 1.189951962 | I11: 1210 - Lot clearing | J11: 4000 | K11: 0.01829616924 | L11: 1.590457256 | O11: 1211 Silt Fence-Erosion Contrl | P11: 260 | Q11: 0.002172413061 | R11: 0.104 | U11: 1210 - Lot clearing | V11: 5000 | W11: 0.02723281881 | X11: 2.283105023 | AG11: 2000 - 2999 Excavation and Foundation | AI11: 2800 | AJ11: 0.01139411006 | AK11: 1.018181818 | AN11: 2103 | AO11: Mono Slab Concrete (Foundation/Flatwork) | AP11: 20807.5 | AQ11: 0.1025 | AR11: 8.669791667
C12: 1430 - Water service | D12: 574.33 | E12: 0.003254904601 | F12: 0.2299159327 | I12: 1220 - Fill dirt and material | J12: 450 | K12: 0.002058319039 | L12: 0.1789264414 | O12: 1212 Lot Scrape | P12: 675 | Q12: 0.005639918524 | R12: 0.27 | U12: 1220 - Fill dirt and material | V12: 3000 | W12: 0.01633969129 | X12: 1.369863014 | AA12: 2000 - 2999 Excavation and Foundation | AB12: =AVERAGE(AB13:AB16) -> 200 | AC12: =AVERAGE(AC13:AC16) -> 0.000980247571 | AD12: 0.08394836461 | AG12: 2120 - Rough grading | AI12: 2800 | AJ12: 0.01139411006 | AK12: 1.018181818 | AN12: 3000 - 3999 Rough Structure | AP12: =SUM(AP13:AP17) -> 56535.5 | AQ12: 0.2785 | AR12: 23.55645833
C13: 1470 - Electric service | D13: 198.13 | E13: 0.001122863595 | F13: 0.07931545236 | I13: 1490 - Other utility connections | J13: 900 | K13: 0.004116638079 | L13: 0.3578528827 | O13: 1221 Soil/Compaction Tests | P13: 80 | Q13: 0.0006684347881 | R13: 0.032 | U13: 1400 - Temporary electric | V13: 175 | W13: 0.0009531486585 | X13: 0.0799086758 | AG13: 3000 - 3999 Rough Structure | AI13: 71672 | AJ13: 0.2916566629 | AK13: 26.06254545 | AN13: 3210 | AO13: Framing (Materials/Labor) | AP13: 36032.5 | AQ13: 0.1775 | AR13: 15.01354167
C14: 6000 - 6999 Completion and Inspection | D14: 470 | E14: 0.002663634431 | F14: 0.1881505204 | I14: 2000 - 2999 Excavation and Foundation | J14: 250 | K14: 0.001143510577 | L14: 0.09940357853 | O14: 1400 Temp. Electric Service DO NOT USE | P14: 500 | Q14: 0.004177717426 | R14: 0.2 | U14: 1430 - Water service | V14: 200 | W14: 0.001089312753 | X14: 0.09132420091 | AA14: Atlantic Palm Homes | AB14: =J14 -> 250 | AC14: =K14 -> 0.001143510577 | AD14: 0.09940357853 | AG14: 3100 - Structural steel | AI14: 1200 | AJ14: 0.004883190025 | AK14: 0.4363636364 | AN14: 3300 | AO14: Windows | AP14: 5075 | AQ14: 0.025 | AR14: 2.114583333
C15: 6200 - Final grade | D15: 200 | E15: 0.00113346146 | F15: 0.08006405124 | I15: 2300 - Termite protection | J15: 250 | K15: 0.001143510577 | L15: 0.09940357853 | O15: 1430 Utility Meter/Conn Fee | P15: 1000 | Q15: 0.008355434851 | R15: 0.4 | U15: 1470 - Electric service | V15: 200 | W15: 0.001089312753 | X15: 0.09132420091 | AA15: Dennis Homes | AB15: =V18 -> 150 | AC15: =W18 -> 0.0008169845644 | AD15: 0.06849315068 | AG15: 3110 - Lumber—1st package | AI15: 8922 | AJ15: 0.03630651784 | AK15: 3.244363636 | AN15: 3400 | AO15: Exterior Siding | AP15: 12586 | AQ15: 0.062 | AR15: 5.244166667
C16: 6600 - Landscaping | D16: 270 | E16: 0.001530172971 | F16: 0.1080864692 | I16: 3000 - 3999 Rough Structure | J16: 27330.66 | K16: 0.1250115952 | L16: 10.86706163 | O16: 1491 Portable Toilets | P16: 390 | Q16: 0.003258619592 | R16: 0.156 | U16: 1490 - Other utility connections | V16: 4630 | W16: 0.02521759022 | X16: 2.114155251 | AG16: 3140 - Trusses | AI16: 8400 | AJ16: 0.03418233018 | AK16: 3.054545455 | AN16: 3401 | AO16: Soffit and Facia | AP16: 1827 | AQ16: 0.009 | AR16: 0.76125
C17: Finish | D17: 78589.15 | E17: 0.4453888634 | F17: 31.46082866 | I17: 3140 - Trusses | J17: 5700 | K17: 0.02607204117 | L17: 2.26640159 | O17: 2000 - 2999 Excavation and Foundation | P17: =SUM(P18:P26) -> 17950.07 | Q17: 0.1499806405 | R17: 7.180028 | U17: 1491 - Dumpsters/Port a Lets | V17: 0 | W17: 0 | X17: 0 | AA17: 3000 - 3999 Rough Structure | AB17: =AVERAGE(AB18:AB21) -> 39855.83 | AC17: =AVERAGE(AC18:AC21) -> 0.2051540258 | AD17: 17.39266324 | AG17: 3210 - Framing labor—draw #1 | AI17: 15600 | AJ17: 0.06348147033 | AK17: 5.672727273 | AN17: 3910 | AO17: Gutters and Downspouts | AP17: 1015 | AQ17: 0.005 | AR17: 0.4229166667
C18: 3401 Soffit and Facia | D18: 1691.35 | E18: 0.0095854002 | F18: 0.6770816653 | I18: 3300 - Windows | J18: 4230.66 | K18: 0.01935121784 | L18: 1.682170974 | O18: 2011 Plumb. Rough | P18: 1697.4 | Q18: 0.01418251512 | R18: 0.67896 | U18: 2000 - 2999 Excavation and Foundation | V18: 150 | W18: 0.0008169845644 | X18: 0.06849315068 | AG18: 3300 - Windows | AI18: 12400 | AJ18: 0.05045963026 | AK18: 4.509090909 | AN18: 4000 - 4999 Full Enclosure | AP18: =SUM(AP19:AP21) -> 14717.5 | AQ18: 0.0725 | AR18: 6.132291667
C19: 3820 Low Voltage-Rough In | D19: 689 | E19: 0.003904774729 | F19: 0.2758206565 | I19: 3400 - Exterior siding | J19: 13900 | K19: 0.06357918811 | L19: 5.526838966 | O19: 2101 Mono Slab Labor | P19: 3526.5 | Q19: 0.029465441 | R19: 1.4106 | U19: 2300 - Termite protection | V19: 150 | W19: 0.0008169845644 | X19: 0.06849315068 | AA19: Atlantic Palm Homes | AB19: =J16 -> 27330.66 | AC19: =K16 -> 0.1250115952 | AD19: 10.86706163 | AG19: 3400 - Exterior siding | AI19: 2850 | AJ19: 0.01159757631 | AK19: 1.036363636 | AN19: 4150 | AO19: Roofing | AP19: 10150 | AQ19: 0.05 | AR19: 4.229166667
C20: 4210 Stucco | D20: 10505 | E20: 0.05953506318 | F20: 4.205364291 | I20: 3550 - Flatwork labor | J20: 3500 | K20: 0.01600914808 | L20: 1.391650099 | O20: 2102 Mono Slab Prep Pack | P20: 1064.01 | Q20: 0.008890266236 | R20: 0.425604 | U20: 3000 - 3999 Rough Structure | V20: 52381 | W20: 0.2852964565 | X20: 23.91826484 | AA20: Dennis Homes | AB20: =V20 -> 52381 | AC20: =W20 -> 0.2852964565 | AD20: 23.91826484 | AG20: 3610 - HVAC—rough | AI20: 5800 | AJ20: 0.02360208512 | AK20: 2.109090909 | AN20: 4350 | AO20: Garage Door | AP20: 2030 | AQ20: 0.01 | AR20: 0.8458333333
C21: 4220 Stone | D21: 1782 | E21: 0.01009914161 | F21: 0.7133706966 | I21: 4000 - 4999 Full Enclosure | J21: 42007.69 | K21: 0.1921449514 | L21: 16.70285885 | O21: 2103 Mono Slab Concrete | P21: 7150 | Q21: 0.05974135919 | R21: 2.86 | U21: 3110 - Lumber—1st package | V21: 13000 | W21: 0.07080532892 | X21: 5.936073059 | AG21: 3720 - Plumbing—rough | AI21: 8300 | AJ21: 0.03377539767 | AK21: 3.018181818 | AN21: 4400 | AO21: Insulation | AP21: 2537.5 | AQ21: 0.0125 | AR21: 1.057291667
C22: 5101 Drywall Material | D22: 3650.47 | E22: 0.02068833528 | F22: 1.461357086 | I22: 4150 - Roofing labor | J22: 32228.72 | K22: 0.1474155289 | L22: 12.8146004 | O22: 2104 Mono Conc. Pumping | P22: 1000 | Q22: 0.008355434851 | R22: 0.4 | U22: 3120 - Lumber—2nd package | V22: 5000 | W22: 0.02723281881 | X22: 2.283105023 | AA22: 4000 - 4999 Full Enclosure | AB22: =AVERAGE(AB23:AB26) -> 21900.345 | AC22: =AVERAGE(AC23:AC26) -> 0.1009553201 | AD22: 8.760790154 | AG22: 3810 - Electrical—rough | AI22: 8200 | AJ22: 0.03336846517 | AK22: 2.981818182 | AN22: 5000 - 5999 Finishing Trades | AP22: =SUM(AP23:AP32) -> 83128.5 | AQ22: 0.4095 | AR22: 34.636875
C23: 5102 Drywall Hang &amp; Finish | D23: 4938 | E23: 0.02798516344 | F23: 1.976781425 | I23: 4300 - Exterior doors | J23: 3255.13 | K23: 0.01488910234 | L23: 1.294286282 | O23: 2001 Grading-Build Pad | P23: 300 | Q23: 0.002506630455 | R23: 0.12 | U23: 3140 - Trusses | V23: 5625 | W23: 0.03063692117 | X23: 2.568493151 | AG23: 4000 - 4999 Full Enclosure | AI23: 42018 | AJ23: 0.1709848987 | AK23: 15.27927273 | AN23: 5100 | AO23: Drywall | AP23: 10150 | AQ23: 0.05 | AR23: 4.229166667
C24: 5200 Interior Trim &amp; Doors DO NOT USE | D24: 3394.62 | E24: 0.0192383547 | F24: 1.358935148 | I24: 4350 - Garage door | J24: 1425.83 | K24: 0.006521806747 | L24: 0.5669304175 | O24: 2002 Grading-Backfill | P24: 2250 | Q24: 0.01879972841 | R24: 0.9 | U24: 3210 - Framing labor—draw #1 | V24: 11000 | W24: 0.05991220139 | X24: 5.02283105 | AA24: Atlantic Palm Homes | AB24: =J21 -> 42007.69 | AC24: =K21 -> 0.1921449514 | AD24: 16.70285885 | AG24: 4150 - Roofing labor | AI24: 11038 | AJ24: 0.04491720958 | AK24: 4.013818182 | AN24: 5300 | AO24: Painting(lnterior/Exterior) | AP24: 10150 | AQ24: 0.05 | AR24: 4.229166667
C25: 5201 Door HW &amp; Lock Sets | D25: 381.93 | E25: 0.002164514677 | F25: 0.1528943155 | I25: 4400 - Insulation | J25: 1848.01 | K25: 0.008452875929 | L25: 0.7347952286 | O25: 2120 Grading-Rough/Drive/Walks DO NOT USE | P25: 600 | Q25: 0.005013260911 | R25: 0.24 | U25: 3220 - Framing labor—draw #2 | V25: 2000 | W25: 0.01089312753 | X25: 0.9132420091 | AA25: Dennis Homes | AB25: =V30 -> 1793 | AC25: =W30 -> 0.009765688827 | AD25: 0.8187214612 | AG25: 4200 - Masonry material | AI25: 8645 | AJ25: 0.03517931481 | AK25: 3.143636364 | AN25: 5400 | AO25: cabinets/Vanities | AP25: 12180 | AQ25: 0.06 | AR25: 5.075
C26: 5250 Trim Carpentry Labor DO NOT USE | D26: 1400.8 | E26: 0.007938764065 | F26: 0.5607686149 | I26: 4600 - Painting—exterior | J26: 3250 | K26: 0.01486563751 | L26: 1.292246521 | O26: 2300 Termite/Pest Control DO NOT USE | P26: 362.16 | Q26: 0.003026004286 | R26: 0.144864 | U26: 3300 - Windows | V26: 3488 | W26: 0.01899761441 | X26: 1.592694064 | AG26: 4250 - Masonry labor | AI26: 6475 | AJ26: 0.02634887951 | AK26: 2.354545455 | AN26: 5511 | AO26: Tile-Baths | AP26: 1522.5 | AQ26: 0.0075 | AR26: 0.634375
C27: 5350 Painting - TK | D27: 5559.96 | E27: 0.03151000189 | F27: 2.225764612 | I27: 5000 - 5999 Finishing Trades | J27: 61376.65 | K27: 0.2807393939 | L27: 24.40423459 | O27: 3000 - 3999 Rough Structure | P27: =SUM(P28:P41) -> 59882.6 | Q27: 0.500345163 | R27: 23.95304 | U27: 3610 - HVAC—rough | V27: 2945 | W27: 0.01604013028 | X27: 1.344748858 | AA27: 5000 - 5999 Finishing Trades | AB27: =AVERAGE(AB28:AB31) -> 45328.825 | AC27: =AVERAGE(AC28:AC31) -> 0.2201101137 | AD27: 18.88727711 | AG27: 4400 - Insulation | AI27: 6580 | AJ27: 0.02677615864 | AK27: 2.392727273 | AN27: 5520 | AO27: Flooring | AP27: 13195 | AQ27: 0.065 | AR27: 5.497916667
C28: 5400 Cabinets DO NOT USE | D28: 4377 | E28: 0.02480580405 | F28: 1.752201761 | I28: 5100 - Drywall | J28: 9065 | K28: 0.04146369354 | L28: 3.604373757 | O28: 3400 Siding DO NOT USE | P28: 11047.5 | Q28: 0.09230666652 | R28: 4.419 | U28: 3720 - Plumbing—rough | V28: 3100 | W28: 0.01688434767 | X28: 1.415525114 | AG28: 4600 - Painting—exterior | AI28: 9280 | AJ28: 0.0377633362 | AK28: 3.374545455 | AN28: 5620 | AO28: Shower Doors and Mirrors (Closet shel ving) | AP28: 1421 | AQ28: 0.007 | AR28: 0.5920833333
C29: 5451 Countertops Kitchen | D29: 3269 | E29: 0.01852642756 | F29: 1.308646918 | I29: 5200 - Interior trim material | J29: 4661.65 | K29: 0.02132258433 | L29: 1.853538767 | O29: 3401 Soffit and Facia | P29: 1986.8 | Q29: 0.01660057796 | R29: 0.79472 | U29: 3810 - Electrical—rough | V29: 6223 | W29: 0.0338939663 | X29: 2.841552511 | AA29: Atlantic Palm Homes | AB29: =J27 -> 61376.65 | AC29: =K27 -> 0.2807393939 | AD29: 24.40423459 | AG29: 5000 - 5999 Finishing Trades | AI29: 41610 | AJ29: 0.1693246141 | AK29: 15.13090909 | AN29: 5700 | AO29: HVAC | AP29: 10150 | AQ29: 0.05 | AR29: 4.229166667
C30: 5452 Countertops Baths | D30: 1029 | E30: 0.005831659211 | F30: 0.4119295436 | I30: 5250 - Interior trim labor | J30: 2600 | K30: 0.01189251001 | L30: 1.033797217 | O30: 3820 Low Voltage-Rough In | P30: 689 | Q30: 0.005756894612 | R30: 0.2756 | U30: 4000 - 4999 Full Enclosure | V30: 1793 | W30: 0.009765688827 | X30: 0.8187214612 | AA30: Dennis Homes | AB30: =V33 -> 29281 | AC30: =W33 -> 0.1594808335 | AD30: 13.37031963 | AG30: 5100 - Drywall | AI30: 11000 | AJ30: 0.04476257523 | AK30: 4 | AN30: 5710 | AO30: Plumbing | AP30: 10657.5 | AQ30: 0.0525 | AR30: 4.440625
C31: 5511 Tile-Baths | D31: 2290.1 | E31: 0.01297870045 | F31: 0.9167734187 | I31: 5300 - Painting—interior | J31: 3500 | K31: 0.01600914808 | L31: 1.391650099 | O31: 3101 Hurricane Tie Downs | P31: 1961.7 | Q31: 0.01639085655 | R31: 0.78468 | U31: 4300 - Exterior doors | V31: 1008 | W31: 0.005490136273 | X31: 0.4602739726 | AG31: 5200 - Interior trim material | AI31: 650 | AJ31: 0.002645061264 | AK31: 0.2363636364 | AN31: 5715 | AO31: Gas Piping Final | AP31: 1015 | AQ31: 0.005 | AR31: 0.4229166667
C32: 5512 Tile-Floor | D32: 4909.4 | E32: 0.02782307845 | F32: 1.965332266 | I32: 5450 - Countertops | J32: 5500 | K32: 0.0251572327 | L32: 2.186878728 | O32: 3110 Lumber-Material DO NOT USE | P32: 10642.32 | Q32: 0.08892121142 | R32: 4.256928 | U32: 4350 - Garage door | V32: 785 | W32: 0.004275552554 | X32: 0.3584474886 | AA32: 6000 - 6999 Completion and Inspection | AB32: =AVERAGE(AB33:AB36) -> 7435 | AC32: =AVERAGE(AC33:AC36) -> 0.03905554118 | AD32: 3.29761613 | AG32: 5250 - Interior trim labor | AI32: 4050 | AJ32: 0.01648076634 | AK32: 1.472727273 | AN32: 5730 | AO32: Electrical | AP32: 12687.5 | AQ32: 0.0625 | AR32: 5.286458333
C33: 5540 Carpet DO NOT USE | D33: 1875 | E33: 0.01062620119 | F33: 0.7506004804 | I33: 5540 - Carpet | J33: 2750 | K33: 0.01257861635 | L33: 1.093439364 | O33: 3141 Roof Trusess | P33: 4399.37 | Q33: 0.03675864942 | R33: 1.759748 | U33: 5000 - 5999 Finishing Trades | V33: 29281 | W33: 0.1594808335 | X33: 13.37031963 | AG33: 5400 - Cabinets and vanities | AI33: 1850 | AJ33: 0.007528251289 | AK33: 0.6727272727 | AN33: 6000 - 6999 Completion and Inspection | AP33: =SUM(AP34) -> 710.5 | AQ33: 0.0035 | AR33: 0.2960416667
C34: 5621 Specialities | D34: 1058.6 | E34: 0.005999411507 | F34: 0.4237790232 | I34: 5620 - Shower doors and mirrors | J34: 2250 | K34: 0.0102915952 | L34: 0.8946322068 | O34: 3142 Floor Trusses | P34: 2339.56 | Q34: 0.01954804116 | R34: 0.935824 | U34: 5100 - Drywall | V34: 7100 | W34: 0.03867060272 | X34: 3.242009132 | AA34: Atlantic Palm Homes | AB34: =J40 -> 3300 | AC34: =K40 -> 0.01509433962 | AD34: 1.312127237 | AG34: 5610 - Hardware | AI34: 8800 | AJ34: 0.03581006019 | AK34: 3.2 | AN34: 6100 | AO34: Clean-Up | AP34: 710.5 | AQ34: 0.0035 | AR34: 0.2960416667
C35: 5630 Appliances DO NOT USE | D35: 2646.82 | E35: 0.01500034231 | F35: 1.059575661 | I35: 5630 - Appliances | J35: 5600 | K35: 0.02561463694 | L35: 2.226640159 | O35: 3210 Framing Labor DO NOT USE | P35: 10563 | Q35: 0.08825845833 | R35: 4.2252 | U35: 5200 - Interior trim material | V35: 2407 | W35: 0.01310987898 | X35: 1.099086758 | AA35: Dennis Homes | AB35: =V43 -> 11570 | AC35: =W43 -> 0.06301674274 | AD35: 5.283105023 | AG35: 5620 - Shower doors and mirrors | AI35: 650 | AJ35: 0.002645061264 | AK35: 0.2363636364 | AN35: Finish | AP35: =SUM(AP36) -> 11368 | AQ35: 0.056 | AR35: 4.736666667
C36: 5740 Low Voltage-Finish | D36: 689 | E36: 0.003904774729 | F36: 0.2758206565 | I36: 5700 - HVAC—final | J36: 7950 | K36: 0.03636363636 | L36: 3.161033797 | O36: 3300 Windows DO NOT USE | P36: 3511.75 | Q36: 0.02934219834 | R36: 1.4047 | U36: 5250 - Interior trim labor | V36: 1500 | W36: 0.008169845644 | X36: 0.6849315068 | AG36: 5700 - HVAC—final | AI36: 5400 | AJ36: 0.02197435511 | AK36: 1.963636364 | AN36: 7060 | AO36: Interior Trim (Interior/Exterior Doors/Hardware/Base) | AP36: 11368 | AQ36: 0.056 | AR36: 4.736666667
C37: 6101 All Cleaning | D37: 587.84 | E37: 0.003331469923 | F37: 0.2353242594 | I37: 5710 - Plumbing—final | J37: 6500 | K37: 0.02973127501 | L37: 2.584493042 | O37: 3301 House Wrap | P37: 1624.2 | Q37: 0.01357089729 | R37: 0.64968 | U37: 5400 - Cabinets and vanities | V37: 3200 | W37: 0.01742900404 | X37: 1.461187215 | AA37: Finish | AB37: =AVERAGE(AB38:AB41) -> 36010 | AC37: =AVERAGE(AC38:AC41) -> 0.1772297651 | AD37: 15.16468994 | AG37: 5710 - Plumbing—final | AI37: 4750 | AJ37: 0.01932929385 | AK37: 1.727272727
C38: 6310 Drives &amp; Walks Concrete | D38: 1680.1 | E38: =D38/$D$85 -> 0.009521642993 | F38: 0.6725780624 | I38: 5720 - Electrical fixtures | J38: 3000 | K38: 0.01372212693 | L38: 1.192842942 | O38: 3610 HVAC Rough In DO NOT USE | P38: 3075 | Q38: 0.02569296217 | R38: =P38/$P$3 -> 1.23 | U38: 5540 - Carpet | V38: 1500 | W38: 0.008169845644 | X38: 0.6849315068 | AG38: 5720 - Electrical fixtures | AI38: 1360 | AJ38: =AI38/$AI$61 -> 0.005534282029 | AK38: =AI38/$AI$3 -> 0.4945454545 | AN38: TOTALS: | AP38: =SUM(AP6:AP36)/2 -> 203000 | AQ38: =SUM(AQ6:AQ36)/2 -> 1 | AR38: 84.58333333
C39: 6510 Mailboxes | D39: 353.2 | E39: 0.002001692938 | F39: 0.1413931145 | I39: 5730 - Electrical—final | J39: 8000 | K39: 0.03659233848 | L39: 3.180914513 | O39: 3721 Plumb. Topout | P39: 1697.4 | Q39: 0.01418251512 | R39: 0.67896 | U39: 5630 - Appliances | V39: 2839 | W39: 0.01546279452 | X39: 1.296347032 | AA39: Atlantic Palm Homes | AB39: =J43 -> 43325 | AC39: =K43 -> 0.1981703831 | AD39: 17.22664016 | AG39: 5730 - Electrical—final | AI39: 3100 | AJ39: 0.01261490757 | AK39: 1.127272727
C40: 6600 Landscaping - TK DO NOT USE | D40: 18897.96 | E40: 0.1071005466 | F40: 7.565236189 | I40: 6000 - 6999 Completion and Inspection | J40: 3300 | K40: 0.01509433962 | L40: 1.312127237 | O40: 3740 Gas Piping Rough In | P40: 990 | Q40: 0.008271880503 | R40: 0.396 | U40: 5700 - HVAC—final | V40: 2945 | W40: 0.01604013028 | X40: 1.344748858 | AA40: Dennis Homes | AB40: =V46 -> 28695 | AC40: =W46 -> 0.1562891472 | AD40: 13.10273973 | AG40: 6000 - 6999 Completion and Inspection | AI40: 7700 | AJ40: 0.03133380266 | AK40: 2.8
C41: 7020 Tile Floor Options | D41: 250 | E41: 0.001416826825 | F41: 0.1000800641 | I41: 6100 - Clean-up | J41: 300 | K41: 0.001372212693 | L41: 0.1192842942 | O41: 3810 Elect. Rough In DO NOT USE | P41: 5355 | Q41: 0.04474335363 | R41: 2.142 | U41: 5710 - Plumbing—final | V41: 2900 | W41: 0.01579503491 | X41: 1.324200913 | AG41: 6200 - Final grade | AI41: 600 | AJ41: 0.002441595013 | AK41: 0.2181818182
C42: 7040 Plumbing Options | D42: 683 | E42: 0.003870770885 | F42: 0.273418735 | I42: 6600 - Landscaping | J42: 3000 | K42: 0.01372212693 | L42: 1.192842942 | O42: 4000 - 4999 Full Enclosure | P42: =SUM(P43:P50) -> 13184.64 | Q42: 0.1101634006 | R42: 5.273856 | U42: 5730 - Electrical—final | V42: 4890 | W42: 0.0266336968 | X42: 2.232876712 | AA42: Rough | AB42: =AVERAGE(AB43:AB46) -> 16164 | AC42: =AVERAGE(AC43:AC46) -> 0.08537706623 | AD42: 7.200851512 | AG42: 6300 - Driveways | AI42: 4500 | AJ42: 0.01831196259 | AK42: 1.636363636
C43: Rough | D43: 82354.4 | E43: 0.4667276922 | F43: 32.96813451 | I43: Finish | J43: 43325 | K43: 0.1981703831 | L43: 17.22664016 | O43: 4220 Stone | P43: 3349 | Q43: 0.02798235132 | R43: 1.3396 | U43: 6000 - 6999 Completion and Inspection | V43: 11570 | W43: 0.06301674274 | X43: 5.283105023 | AG43: 6600 - Landscaping | AI43: 2600 | AJ43: 0.01058024505 | AK43: 0.9454545455
C44: 2011 Plumb. Rough | D44: 1572.3 | E44: 0.008910707266 | F44: 0.6294235388 | I44: 4220 Stone | J44: 3200 | K44: 0.01463693539 | L44: 1.272365805 | O44: 4171 Roof Shingles | P44: 4098.81 | Q44: 0.03424733992 | R44: 1.639524 | U44: 6100 - Clean-up | V44: 495 | W44: 0.002696049063 | X44: 0.2260273973 | AA44: Atlantic Palm Homes | AB44: =J53 -> 6100 | AC44: =K53 -> 0.02790165809 | AD44: 2.425447316 | AG44: Finish | AI44: 42406 | AJ44: 0.1725637968 | AK44: 15.42036364
C45: 2101 Mono Slab Labor | D45: 4623.8 | E45: 0.02620449549 | F45: 1.851000801 | I45: 5201 Door HW &amp; Lock Sets | J45: 1300 | K45: 0.005946255003 | L45: 0.5168986083 | O45: 4172 Shingle Install | P45: 2318 | Q45: 0.01936789798 | R45: 0.9272 | U45: 6600 - Landscaping | V45: 11075 | W45: 0.06032069367 | X45: 5.057077626 | AA45: Dennis Homes | AB45: =V57 -> 26228 | AC45: =W57 -> 0.1428524744 | AD45: 11.97625571 | AG45: 3401 Soffit and Facia | AI45: 1985 | AJ45: 0.008077610167 | AK45: 0.7218181818
C46: 2102 Mono Slab Prep Pack | D46: 729.58 | E46: 0.004134754059 | F46: 0.2920656525 | I46: 5452 Countertops Baths | J46: 13500 | K46: 0.06174957118 | L46: 5.367793241 | O46: 4180 TK-Roof Metal | P46: 0 | Q46: 0 | R46: 0 | U46: Finish | V46: 28695 | W46: 0.1562891472 | X46: 13.10273973 | AG46: 3820 Low Voltage-Rough In | AI46: 1200 | AJ46: 0.004883190025 | AK46: 0.4363636364
C47: 2103 Mono Slab Concrete | D47: 7665.92 | E47: 0.04344512437 | F47: 3.068823058 | I47: 5511 Tile-Baths | J47: 7350 | K47: 0.03361921098 | L47: 2.922465209 | O47: 4300 Exterior Doors DO NOT USE | P47: 850.83 | Q47: 0.007109054634 | R47: 0.340332 | U47: 3401 Soffit and Facia | V47: 1400 | W47: 0.007625189268 | X47: 0.6392694064 | AA47: Site | AB47: =AVERAGE(AB48:AB51) -> 3101 | AC47: =AVERAGE(AC48:AC51) -> 0.01516656436 | AD47: 1.299443522 | AG47: 4210 Stucco | AI47: 9927 | AJ47: 0.04039618948 | AK47: 3.609818182
C48: 2104 Mono Conc. Pumping | D48: 1093.87 | E48: 0.006199297435 | F48: 0.4378983187 | I48: 5512 Tile-Floor | J48: 675 | K48: 0.003087478559 | L48: 0.268389662 | O48: 4301 Exterior Doors Labor | P48: 240 | Q48: 0.002005304364 | R48: 0.096 | U48: 4210 Stucco | V48: 6000 | W48: 0.03267938258 | X48: 2.739726027 | AG48: 5451 Countertops Kitchen | AI48: 13250 | AJ48: 0.05391855653 | AK48: 4.818181818
C49: 3101 Hurricane Tie Downs | D49: 2180.8 | E49: 0.01235926376 | F49: =D49/$D$3 -> 0.8730184147 | I49: 5550 Wood Flooring | J49: 6900 | K49: 0.03156089194 | L49: 2.743538767 | O49: 4350 Garage Doors DO NOT USE | P49: 1091 | Q49: 0.009115779423 | R49: 0.4364 | U49: 5350 Painting - TK | V49: 4700 | W49: 0.02559884969 | X49: 2.146118721 | AA49: Atlantic Palm Homes | AB49: =J55 -> 3950 | AC49: =K55 -> 0.01806746712 | AD49: 1.570576541 | AG49: 5512 Tile-Floor | AI49: 12244 | AJ49: 0.04982481556 | AK49: 4.452363636
C50: 3110 Lumber-Material DO NOT USE | D50: 9288.02 | E50: 0.05263806354 | F50: 3.718182546 | I50: 6510 Mailboxes | J50: 250 | K50: 0.001143510577 | L50: 0.09940357853 | O50: 4401 Insulation - Walls | P50: 1237 | Q50: 0.01033567291 | R50: 0.4948 | U50: 5451 Countertops Kitchen | V50: 3000 | W50: 0.01633969129 | X50: 1.369863014 | AA50: Dennis Homes | AB50: =V67 -> 2252 | AC50: =W67 -> 0.01226566159 | AD50: 1.028310502 | AG50: 7040 Plumbing Options | AI50: 3800 | AJ50: 0.01546343508 | AK50: 1.381818182
C51: 3141 Roof Trusess | D51: 7026.92 | E51: 0.03982371501 | F51: 2.813018415 | I51: 7000 Structural Options DO NOT USE | J51: 9500 | K51: 0.04345340194 | L51: 3.777335984 | O51: 5000 - 5999 Finishing Trades | P51: =SUM(P52:P54) -> 10926.42 | Q51: 0.09129499047 | R51: 4.370568 | U51: 5452 Countertops Baths | V51: 800 | W51: 0.00435725101 | X51: 0.3652968037 | AG51: Rough | AI51: 19635 | AJ51: 0.07990119679 | AK51: 7.14
C52: 3210 Framing Labor DO NOT USE | D52: 11108.5 | E52: 0.06295528313 | F52: 4.446957566 | I52: 7025 Tile Wall Options | J52: 650 | K52: 0.002973127501 | L52: 0.2584493042 | O52: 5101 Drywall Material | P52: 3600.78 | Q52: 0.0300860827 | R52: 1.440312 | U52: 5511 Tile-Baths | V52: 2500 | W52: 0.01361640941 | X52: 1.141552511 | AG52: 2111 SW-Footer Labor | AI52: 1200 | AJ52: 0.004883190025 | AK52: 0.4363636364
C53: 3300 Windows DO NOT USE | D53: 3313.83 | E53: 0.01878049295 | F53: 1.326593275 | I53: Rough | J53: 6100 | K53: 0.02790165809 | L53: 2.425447316 | O53: 5102 Drywall Hang &amp; Finish | P53: 4698 | Q53: 0.03925383293 | R53: 1.8792 | U53: 5512 Tile-Floor | V53: 5790 | W53: 0.03153560419 | X53: 2.643835616 | AA53: Totals | AB53: =AVERAGE(AB54:AB57) -> 201113.5 | AC53: =AVERAGE(AC54:AC57) -> 1 | AD53: 85.38247955 | AG53: 2112 SW-Footer Steel | AI53: 1500 | AJ53: 0.006103987532 | AK53: 0.5454545455
C54: 3301 House Wrap | D54: 1124.16 | E54: 0.006370960173 | F54: 0.4500240192 | I54: 5711 Plumb. Fixtures | J54: 6100 | K54: 0.02790165809 | L54: 2.425447316 | O54: 5350 Painting - TK | P54: 2627.64 | Q54: 0.02195507483 | R54: 1.051056 | U54: 5621 Specialities | V54: 1950 | W54: 0.01062079934 | X54: 0.8904109589 | AG54: 2113 SW-Footer Concrete | AI54: 3330 | AJ54: 0.01355085232 | AK54: 1.210909091
C55: 3610 HVAC Rough In DO NOT USE | D55: 2825 | E55: 0.01601014312 | F55: 1.130904724 | I55: Site | J55: 3950 | K55: 0.01806746712 | L55: 1.570576541 | O55: 6000 - 6999 Completion and Inspection | P55: =SUM(P56:P58) -> 9427.1 | Q55: 0.07876751988 | R55: 3.77084 | U55: 6310 Drives &amp; Walks Concrete | V55: 2480 | W55: 0.01350747813 | X55: 1.132420091 | AA55: Atlantic Palm Homes | AB55: =SUM(AB9,AB14,AB19,AB24,AB29,AB34,AB39,AB44,AB49) -> 218625 | AC55: =SUM(AC9,AC14,AC19,AC24,AC29,AC34,AC39,AC44,AC49) -> 1 | AD55: =SUM(AD9,AD14,AD19,AD24,AD29,AD34,AD39,AD44,AD49) -> 86.92842942 | AG55: 2117 SW-Slab Labor | AI55: 4825 | AJ55: 0.01963449323 | AK55: 1.754545455
C56: 3721 Plumb. Topout | D56: 1572.3 | E56: 0.008910707266 | F56: 0.6294235388 | I56: 1010 Permits - Building DO NOT USE | J56: 350 | K56: 0.001600914808 | L56: 0.1391650099 | O56: 6101 All Cleaning | P56: 414.6 | Q56: 0.003464163289 | R56: 0.16584 | U56: 6510 Mailboxes | V56: 75 | W56: 0.0004084922822 | X56: 0.03424657534 | AA56: Dennis Homes | AB56: =SUM(AB10,AB15,AB20,AB25,AB30,AB35,AB40,AB45,AB50) -> 183602 | AC56: =SUM(AC10,AC15,AC20,AC25,AC30,AC35,AC40,AC45,AC50) -> 1 | AD56: 83.83652968 | AG56: 2118 SW-Slab Concrete | AI56: 8780 | AJ56: 0.03572867368 | AK56: 3.192727273
C57: 3740 Gas Piping Rough In | D57: 1125 | E57: 0.006375720711 | F57: 0.4503602882 | I57: 1110 Architect Fees DO NOT USE | J57: 1000 | K57: 0.00457404231 | L57: 0.3976143141 | O57: 6310 Drives &amp; Walks Concrete | P57: 1512.5 | Q57: 0.01263759521 | R57: 0.605 | U57: Rough | V57: 26228 | W57: 0.1428524744 | X57: 11.97625571 | AG57: Site | AI57: 3650 | AJ57: 0.01485303633 | AK57: 1.327272727
C58: 3810 Elect. Rough In DO NOT USE | D58: 5971 | E58: 0.03383949188 | F58: 2.39031225 | I58: 1112 Engineering Fees | J58: 1600 | K58: 0.007318467696 | L58: 0.6361829026 | O58: 6600 Landscaping - TK DO NOT USE | P58: 7500 | Q58: 0.06266576138 | R58: 3 | U58: 2101 Mono Slab Labor | V58: 4000 | W58: 0.02178625505 | X58: 1.826484018 | AG58: 1491 Portable Toilets | AI58: 2800 | AJ58: 0.01139411006 | AK58: 1.018181818
C59: 4170 TK - Roof Shingles | D59: 8477.46 | E59: 0.04804437094 | F59: 3.393698959 | I59: 6101 Dumpster | J59: 1000 | K59: 0.00457404231 | L59: 0.3976143141 | O59: Finish | P59: =SUM(P60) -> 250 | Q59: 0.002088858713 | R59: 0.1 | U59: 2102 Mono Slab Prep Pack | V59: 540 | W59: 0.002941144432 | X59: 0.2465753425 | AG59: 6101 Dumpster | AI59: 850 | AJ59: 0.003458926268 | AK59: 0.3090909091
C60: 4300 Exterior Doors DO NOT USE | D60: 627.79 | E60: 0.003557878849 | F60: 0.2513170536 | O60: 7020 Tile Floor Options | P60: 250 | Q60: 0.002088858713 | R60: 0.1 | U60: 2103 Mono Slab Concrete | V60: 6788 | W60: 0.03697127482 | X60: 3.099543379
C61: 4301 Exterior Doors Labor | D61: 155 | E61: 0.0008784326314 | F61: 0.06204963971 | J61: 218625 | K61: =SUM(K6:K59)/2 -> 1 | L61: =SUM(L6:L59)/2 -> 86.92842942 | O61: Rough | P61: =SUM(P62) -> 370 | Q61: 0.003091510895 | R61: 0.148 | U61: 2104 Mono Conc. Pumping | V61: 875 | W61: 0.004765743293 | X61: 0.399543379 | AG61: TOTALS: | AI61: 245741 | AJ61: =SUM(AJ7:AJ59)/2 -> 0.9710060592 | AK61: =SUM(AK7:AK59)/2 -> 86.76945455
C62: 4350 Garage Doors DO NOT USE | D62: 840 | E62: 0.004760538131 | F62: 0.3362690152 | O62: 5711 Plumb. Fixtures | P62: 370 | Q62: 0.003091510895 | R62: 0.148 | U62: 3721 Plumb. Topout | V62: 2900 | W62: 0.01579503491 | X62: 1.324200913
C63: 4401 Insulation - Walls | D63: 862 | E63: 0.004885218892 | F63: 0.3450760608 | O63: Site | P63: =SUM(P64:P65) -> 2050 | Q63: 0.01712864144 | R63: 0.82 | U63: 4170 TK - Roof Shingles | V63: 7900 | W63: 0.04302785373 | X63: 3.607305936
C64: 4402 Insulation - Ceiling | D64: 1228 | E64: 0.006959453363 | F64: 0.4915932746 | O64: 6101 Dumpster | P64: 1750 | Q64: 0.01462201099 | R64: 0.7 | U64: 4301 Exterior Doors Labor | V64: 110 | W64: 0.0005991220139 | X64: 0.0502283105
C65: 5700 HVAC Final DO NOT USE | D65: 2825 | E65: 0.01601014312 | F65: 1.130904724 | O65: 6200 Grading-Final DO NOT USE | P65: 300 | Q65: 0.002506630455 | R65: 0.12 | U65: 4401 Insulation - Walls | V65: 1900 | W65: 0.01034847115 | X65: 0.8675799087
C66: 5710 Plumb. Final DO NOT USE | D66: 2096.4 | E66: 0.01188094302 | F66: 0.8392313851 | U66: 4402 Insulation - Ceiling | V66: 1215 | W66: 0.006617574972 | X66: 0.5547945205
C67: 5712 Tankless Water Heater | D67: 703.79 | E67: 0.003988594204 | F67: 0.2817413931 | P67: =SUM(P6:P65)/2 -> 119682.58 | Q67: =SUM(Q6:Q65)/2 -> 1 | R67: 47.873032 | U67: Site | V67: 2252 | W67: 0.01226566159 | X67: 1.028310502
C68: 5720 Elect.&amp; Light Fixtures DO NOT USE | D68: 758.96 | E68: 0.004301259548 | F68: 0.3038270616 | U68: 1112 Engineering Fees | V68: 500 | W68: 0.002723281881 | X68: 0.2283105023
C69: 5730 Elect. Final DO NOT USE | D69: 2559 | E69: 0.01450263938 | F69: 1.024419536 | U69: 1211 Silt Fence-Erosion Contrl | V69: 216 | W69: 0.001176457773 | X69: 0.09863013699
C70: Site | D70: 5799.25 | E70: =D70/$D$85 -> 0.03286613185 | F70: 2.321557246 | U70: 1221 Soil/Compaction Tests | V70: 110 | W70: 0.0005991220139 | X70: 0.0502283105
C71: 1123 Survey-Stake Out | D71: 225 | E71: 0.001275144142 | F71: 0.09007205765 | U71: 1491 Portable Toilets | V71: 317 | W71: =V71/$V$74 -> 0.001726560713 | X71: =V71/$V$3 -> 0.1447488584
C72: 1124 Survey-Foundation | D72: 230 | E72: 0.001303480679 | F72: 0.09207365893 | U72: 6101 Dumpster | V72: 1109 | W72: 0.006040239213 | X72: 0.5063926941
C73: 1125 Survey - Grade Stakes | D73: 125 | E73: 0.0007084134124 | F73: 0.05004003203
C74: 1126 Survey-Final | D74: 240 | E74: 0.001360153752 | F74: 0.09607686149 | V74: =SUM(V6:V72)/2 -> 183602 | W74: =SUM(W6:W72)/2 -> 1 | X74: 83.83652968
C75: 1211 Silt Fence-Erosion Contrl | D75: 195 | E75: 0.001105124923 | F75: 0.07806244996
C76: 1212 Lot Scrape | D76: 300 | E76: 0.00170019219 | F76: 0.1200960769
C77: 1400 Temp. Electric Service DO NOT USE | D77: 517.27 | E77: 0.002931528047 | F77: 0.2070736589
C78: 1430 Utility Meter/Conn Fee | D78: 155 | E78: 0.0008784326314 | F78: 0.06204963971
C79: 1491 Portable Toilets | D79: 225.25 | E79: 0.001276560969 | F79: 0.09017213771
C80: 2001 Grading-Build Pad | D80: 150 | E80: 0.0008500960949 | F80: 0.06004803843
C81: 2002 Grading-Backfill | D81: 1730 | E81: 0.009804441627 | F81: 0.6925540432
C82: 2300 Termite/Pest Control DO NOT USE | D82: 410.16 | E82: 0.002324502762 | F82: 0.1641953563
C83: 6101 Dumpster | D83: 1296.57 | E83: 0.007348060625 | F83: 0.5190432346
D85: 176450.64 | E85: =SUM(E6:E83)/2 -> 1 | F85: =SUM(F6:F83)/2 -> 70.63676541

Sheet C
AP1: not incorporated yet
D2: Average SQ FT | E2: =F6 -> 62.13716562
AL3: Anaylsis
I4: Comander Way 1909 | K4: SQ FT | L4: Cost Per SQ FT | P4: DayLilly Road 6179 | R4: SQ FT | S4: Cost Per SQ FT | Y4: SQ FT | Z4: Cost Per SQ FT | AD4: Kevin Martin | AF4: SQ FT | AG4: Cost Per SQ FT | AR4: Brink | AT4: SQ FT | AU4: Cost Per SQ FT | AZ4: Star Construction | BB4: SQ FT | BC4: Cost Per SQ FT | BH4: TRAVIS | BK4: SQ FT | BL4: Cost Per SQ FT | BQ4: KICKLER GROUP LLC | BS4: SQ FT | BT4: Cost Per SQ FT | BY4: TRAVIS | CB4: SQ FT | CC4: Cost Per SQ FT | CG4: Will B | CJ4: SQ FT | CK4: Cost Per SQ FT | CN4: Will B | CP4: SQ FT | CQ4: Cost Per SQ FT | CU4: Floor Play | CW4: SQ FT | CX4: Cost Per SQ FT | DB4: Kevin | DD4: SQ FT | DE4: Cost Per SQ FT | DI4: Kevin | DK4: SQ FT | DL4: Cost Per SQ FT | DP4: FGC-Will | DR4: SQ FT | DS4: Cost Per SQ FT
B5: KCV | D5: SQ FT | E5: Cost Per SQ FT | I5: KCV | K5: 2367 | M5: =K60/K5 -> 63.73975496 | P5: Plemons and PrestWood | R5: 1516 | T5: =R41/R5 -> 67.2823219 | W5: 3756 PLANTATION OAKS BOULEVARD | Y5: 2086 | AA5: =Y73/Y5 -> 63.68220038 | AD5: Grasse Str 12157 | AF5: 1160 | AH5: =AF64/AF5 -> 86.20689655 | AR5: Hawthorn way Budgets | AT5: 2200 | AV5: 51.63636364 | AZ5: Meldrum Lane Budgets | BB5: 2100 | BD5: 59.48 | BH5: Renovation 1419 Rayr | BK5: 2213 | BM5: =BK23/BK5 -> 20.28920018 | BQ5: 0 TERRACE/FRANKLIN STREET | BS5: 1846 | BU5: =BU31 -> 62.56771398 | BY5: 0 Rayr | CB5: 2017 | CD5: =CD52 -> 99.5106594 | CG5: 256 Moses | CJ5: 2600 | CL5: =CL47 -> 54.03846154 | CN5: Olymic Drive | CP5: 2800 | CR5: =CR47 -> 53.5 | CU5: Old Dixi HWY | CW5: 1700 | CY5: =CY52 -> 64.09411765 | DB5: 1st Avenue | DD5: 1322 | DF5: =DF57 -> 80.55975794 | DI5: Wycoff | DK5: 1322 | DM5: =DM57 -> 88.23928285 | DP5: lake shore | DR5: 1600 | DT5: =DT45 -> 77.8925
B6: 2239 & 2269 ROCK DRIVE BUDGETS | D6: 1757 | F6: =D62/D6 -> 62.13716562 | L6: % COST | M6: $ COST | S6: % COST | T6: $ COST | Z6: % COST | AA6: $ COST | AG6: % COST | AH6: $ COST | AK6: C | AL6: Cost | AM6: % | AN6: SQFT | AU6: % COST | AV6: $ COST | BC6: % COST | BD6: $ COST | BL6: % COST | BM6: $ COST | BT6: % COST | BU6: $ COST | CC6: % COST | CD6: $ COST | CK6: % COST | CL6: $ COST | CQ6: % COST | CR6: $ COST | CX6: % COST | CY6: $ COST | DE6: % COST | DF6: $ COST | DL6: % COST | DM6: $ COST | DS6: % COST | DT6: $ COST
B7: ADD $84.19 TO ANY 1 LINE ITEM | E7: % COST | F7: $ COST | I7: CODE - DESCRIPTION | K7: ESTIMATE | L7: Total | M7: PER SQ FT | P7: CODE - DESCRIPTION | R7: ESTIMATE | S7: Total | T7: PER SQ FT | W7: DESCRIPTION | Y7: ESTIMATE | Z7: Total | AA7: PER SQ FT | AD7: DESCRIPTION | AF7: ESTIMATE | AG7: Total | AH7: PER SQ FT | AK7: 1000 - 1999 Preparation Preliminaries | AL7: =AVERAGE(AL8:AL11) -> 14082.44375 | AM7: =AVERAGE(AM8:AM11) -> 0.1199254863 | AN7: 8.54160602 | AR7: DESCRIPTION | AT7: ESTIMATE | AU7: Total | AV7: PER SQ FT | AZ7: DESCRIPTION | BB7: ESTIMATE | BC7: Total | BD7: PER SQ FT | BH7: DESCRIPTION | BK7: ESTIMATE | BL7: Total | BM7: PER SQ FT | BQ7: DESCRIPTION | BS7: ESTIMATE | BT7: Total | BU7: PER SQ FT | BY7: DESCRIPTION | CB7: ESTIMATE | CC7: Total | CD7: PER SQ FT | CG7: DESCRIPTION | CJ7: ESTIMATE | CK7: Total | CL7: PER SQ FT | CN7: DESCRIPTION | CP7: ESTIMATE | CQ7: Total | CR7: PER SQ FT | CU7: DESCRIPTION | CW7: ESTIMATE | CX7: Total | CY7: PER SQ FT | DB7: DESCRIPTION | DD7: ESTIMATE | DE7: Total | DF7: PER SQ FT | DI7: DESCRIPTION | DK7: ESTIMATE | DL7: Total | DM7: PER SQ FT | DP7: DESCRIPTION | DR7: ESTIMATE | DS7: Total | DT7: PER SQ FT
B8: DESCRIPTION | D8: ESTIMATE | E8: Total | F8: PER SQ FT | I8: 1000 - 1999 Preparation Preliminaries | K8: 34492.34 | L8: =K8/$K$60 -> 0.2286198897 | M8: =K8/$K$5 -> 14.57217575 | P8: 1000 - 1999 Preparation Preliminaries | R8: 6530 | S8: =R8/$R$41 -> 0.06401960784 | T8: =R8/$R$5 -> 4.307387863 | W8: 1000 - 1999 Preparation Preliminaries | Y8: =SUM(Y9:Y14) -> 6120.42 | Z8: =Y8/$Y$73 -> 0.04607325129 | AA8: =SUM(AA9:AA14) -> 2.934046021 | AD8: 1000 - 1999 Preparation Preliminaries | AF8: 15685 | AG8: =AF8/$AF$64 -> 0.15685 | AH8: =AF8/$AF$5 -> 13.52155172 | AK8: KCV | AL8: =AVERAGE(D9,K8) -> 27994.355 | AM8: =AVERAGE(E9,L8) -> 0.2127590861 | AN8: =AVERAGE(F9,M8) -> 13.40343847 | AR8: 1000 - 1999 Preparation Preliminaries | AT8: 11150 | AU8: 0.09815140845 | AV8: 5.068181818 | AZ8: 1000 - 1999 Preparation Preliminaries | BB8: 1350 | BC8: 0.01080795465 | BD8: 0.6428571429 | BH8: 1000 - 1999 Preparation Preliminaries | BK8: =AVERAGE(SUM(BK9:BK11)) -> 10000 | BL8: =BK8/$BK$23 -> 0.2227171492 | BM8: =BK8/$BK$5 -> 4.518752824 | BQ8: 1000 - 1999 Preparation Preliminaries | BS8: =SUM(BS9:BS14) -> 25950 | BT8: =BS8/$BS$31 -> 0.2246753247 | BU8: =BS8/$BS$5 -> 14.05742145 | BY8: 1000 - 1999 Preparation Preliminaries | CB8: =SUM(CB9:CB21) -> 125553 | CC8: =CB8/$CB$52 -> 0.6255349678 | CD8: =CB8/$CB$5 -> 62.24739712 | CG8: 1000 - 1999 Preparation Preliminaries | CJ8: =SUM(CJ9:CJ14) -> 18800 | CK8: =CJ8/$CJ$47 -> 0.1338078292 | CL8: =CJ8/$CJ$5 -> 7.230769231 | CN8: 1000 - 1999 Preparation Preliminaries | CP8: =SUM(CP9:CP14) -> 22300 | CQ8: =CP8/$CP$47 -> 0.1488651535 | CR8: =CP8/$CP$5 -> 7.964285714 | CU8: 1000 - 1999 Preparation Preliminaries | CW8: =SUM(CW9:CW15) -> 13750 | CX8: =CW8/$CW$52 -> 0.1261930984 | CY8: =CW8/$CW$5 -> 8.088235294 | DB8: 1000 - 1999 Preparation Preliminaries | DD8: =SUM(DD9:DD19) -> 17765 | DE8: =DD8/$DD$57 -> 0.1668075117 | DF8: =DD8/$DD$5 -> 13.43797277 | DI8: 1000 - 1999 Preparation Preliminaries | DK8: =SUM(DK9:DK18) -> 20785 | DL8: =DK8/$DK$57 -> 0.1761440678 | DM8: =DK8/$DD$5 -> 15.72239032 | DP8: 1000 - 1999 Preparation Preliminaries | DR8: =SUM(DR9:DR13) -> 28700 | DS8: =DR8/$DR$45 -> 0.2302853291 | DT8: =DR8/$DR$5 -> 17.9375
B9: 1000 - 1999 Preparation Preliminaries | D9: 21496.37 | E9: =D9/$D$62 -> 0.1968982826 | F9: =D9/$D$6 -> 12.2347012 | I9: 1000- Administrative | K9: 2834.72 | L9: 0.01878890715 | M9: =K9/$K$5 -> 1.197600338 | P9: 1002 - LIP ADJ DO NOT USE | R9: 848 | S9: 0.00831372549 | T9: =R9/$R$5 -> 0.5593667546 | W9: 1010 - Building permits | Y9: 700 | Z9: =Y9/$Y$73 -> 0.005269454695 | AA9: =Y9/$Y$5 -> 0.3355704698 | AD9: 1009- Insurance | AF9: 600 | AG9: =AF9/$AF$64 -> 0.006 | AH9: =AF9/$AF$5 -> 0.5172413793 | AK9: Kevin Martin | AL9: =AF8 -> 15685 | AM9: =AG8 -> 0.15685 | AN9: 13.52155172 | AR9: 1010 - Building permits | AT9: 800 | AU9: 0.007042253521 | AV9: 0.3636363636 | AZ9: 1010 - Building permits | BB9: 700 | BC9: 0.005604124636 | BD9: 0.3333333333 | BH9: 1003 | BI9: Contingency | BK9: 7500 | BL9: =BK9/$BK$23 -> 0.1670378619 | BM9: =BK9/$BK$5 -> 3.389064618 | BQ9: 1000- Administrative | BS9: 4100 | BT9: =BS9/$BS$31 -> 0.0354978355 | BU9: =BS9/$BS$5 -> 2.221018418 | BY9: 1000 | BZ9: Administrative | CB9: 98572 | CC9: 0.4911091957 | CD9: =CB9/$CB$5 -> 48.8705999 | CG9: 1000 | CH9: Administrative | CJ9: 350 | CK9: 0.002491103203 | CL9: =CJ9/$CJ$5 -> 0.1346153846 | CN9: 1000 | CO9: Administrative | CP9: 1850 | CQ9: =CP9/$CP$47 -> 0.01234979973 | CR9: =CP9/$CP$5 -> 0.6607142857 | CU9: 1000 | CV9: Administrative | CW9: 3100 | CX9: =CW9/$CW$52 -> 0.02845080764 | CY9: =CW9/$CW$5 -> 1.823529412 | DB9: 1000 | DC9: Administrative | DD9: 985 | DE9: =DD9/$DD$57 -> 0.009248826291 | DF9: =DD9/$DD$5 -> 0.7450832073 | DI9: 1000 | DJ9: Administrative | DK9: 2000 | DL9: 0.01694915254 | DM9: =DK9/$DD$5 -> 1.512859304 | DP9: 1010 | DQ9: Building permits | DR9: 11200 | DS9: 0.08986744552 | DT9: =DR9/$DR$5 -> 7
B10: 1000- Administrative | D10: 896.5 | E10: =D10/$D$62 -> 0.008211586902 | F10: =D10/$D$6 -> 0.5102447353 | I10: 1010 - Building permits | K10: 18633.02 | L10: 0.123502174 | M10: 7.87199831 | P10: 1002- LIP ADJ | R10: 707 | S10: 0.006931372549 | T10: 0.4663588391 | W10: 1110 - Blueprints | Y10: 710 | Z10: 0.005344732619 | AA10: 0.3403643337 | AD10: 1010 - Building permits | AF10: 900 | AG10: 0.009 | AH10: 0.775862069 | AK10: Star | AL10: =Y8 -> 6120.42 | AM10: =Z8 -> 0.04607325129 | AN10: =AA8 -> 2.934046021 | AR10: 1110 - Blueprints | AT10: 1650 | AU10: 0.01452464789 | AV10: 0.75 | AZ10: 1110 - Blueprints | BB10: 250 | BC10: 0.002001473084 | BD10: 0.119047619 | BH10: 1010 | BI10: Building permits | BK10: 500 | BL10: 0.01113585746 | BM10: 0.2259376412 | BQ10: 1005 - Misc. Rental equiment charges | BS10: =9700-1350 -> 8350 | BT10: 0.07229437229 | BU10: 4.523293608 | BY10: 1003 | BZ10: Contingency | CB10: 5271 | CC10: 0.02626137819 | CD10: 2.61328706 | CG10: 1010 | CH10: Building permits | CJ10: 800 | CK10: 0.005693950178 | CL10: 0.3076923077 | CN10: 1010 | CO10: Building permits | CP10: 800 | CQ10: 0.005340453939 | CR10: 0.2857142857 | CU10: 1003 | CV10: Contingency | CW10: 1000 | CX10: 0.009177679883 | CY10: 0.5882352941 | DB10: 1009 | DC10: Insurance | DD10: 500 | DE10: 0.004694835681 | DF10: 0.378214826 | DI10: 1009 | DJ10: Insurance | DK10: 500 | DL10: 0.004237288136 | DM10: 0.378214826 | DP10: 1210 | DQ10: Lot clearing | DR10: 3000 | DS10: 0.02407163719 | DT10: 1.875
B11: 1002 - LIP ADJ DO NOT USE | D11: 84.14 | E11: 0.0007706892604 | F11: 0.04788844622 | I11: 1030 - Warranty fees | K11: 716.85 | L11: 0.004751378652 | M11: 0.302851711 | P11: 1010 - Building permits | R11: 4225 | S11: 0.04142156863 | T11: 2.786939314 | W11: 1210 - Lot clearing | Y11: 150 | Z11: 0.001129168863 | AA11: 0.07190795781 | AD11: 1110 - Blueprints | AF11: 1500 | AG11: 0.015 | AH11: 1.293103448 | AK11: Plemons + PrestWood | AL11: =AVERAGE(R8) -> 6530 | AM11: =AVERAGE(S8) -> 0.06401960784 | AN11: =AVERAGE(T8) -> 4.307387863 | AR11: 1120 - Surveys | AT11: 1000 | AU11: 0.008802816901 | AV11: 0.4545454545 | AZ11: 1210 - Lot clearing | BB11: 150 | BC11: 0.001200883851 | BD11: 0.07142857143 | BH11: 1300 | BI11: Demolition | BK11: 2000 | BL11: 0.04454342984 | BM11: 0.9037505648 | BQ11: 1009- Insurance | BS11: 1000 | BT11: 0.008658008658 | BU11: 0.5417118093 | BY11: 1009 | BZ11: Insurance | CB11: 625 | CC11: 0.00311389895 | CD11: 0.3098661378 | CG11: 1112 | CH11: Engineering Fees | CJ11: 2650 | CK11: 0.01886120996 | CL11: 1.019230769 | CN11: 1112 | CO11: Engineering Fees | CP11: 2650 | CQ11: 0.01769025367 | CR11: 0.9464285714 | CU11: 1010 | CV11: Building permits | CW11: 750 | CX11: 0.006883259912 | CY11: 0.4411764706 | DB11: 1010 | DC11: Building permits | DD11: 1400 | DE11: 0.01314553991 | DF11: 1.059001513 | DI11: 1112 | DJ11: Engineering Fees | DK11: 2500 | DL11: 0.02118644068 | DM11: 1.89107413 | DP11: 1220 | DQ11: Fill dirt and material | DR11: 3000 | DS11: 0.02407163719 | DT11: 1.875
B12: 1010 - Building permits | D12: 6940.23 | E12: 0.0635697733 | F12: 3.950045532 | I12: 1120 - Surveys | K12: 1080 | L12: 0.007158385917 | M12: 0.4562737643 | P12: 1210 - Lot clearing | R12: 750 | S12: 0.007352941176 | T12: 0.4947229551 | W12: 1220 - Fill dirt and material | Y12: 800 | Z12: 0.006022233937 | AA12: 0.3835091083 | AD12: 1120 - Surveys | AF12: 2200 | AG12: 0.022 | AH12: 1.896551724 | AK12: 2000 - 2999 Excavation and Foundation | AL12: =AVERAGE(AL13:AL16) -> 9962.493333 | AM12: =AVERAGE(AM13:AM16) -> 0.07858485662 | AN12: =AVERAGE(AN13:AN16) -> 5.242869129 | AR12: 1470 - Electric service | AT12: 7700 | AU12: 0.06778169014 | AV12: 3.5 | AZ12: 1400 - Temporary electric | BB12: 250 | BC12: 0.002001473084 | BD12: 0.119047619 | BH12: 4000 - 4999 Full Enclosure | BK12: =SUM(BK13) -> 1600 | BL12: 0.03563474388 | BM12: 0.7230004519 | BQ12: 1010 - Building permits | BS12: 1500 | BT12: 0.01298701299 | BU12: 0.812567714 | BY12: 1112 | BZ12: Engineering Fees | CB12: 1350 | CC12: 0.006726021733 | CD12: 0.6693108577 | CG12: 1120 | CH12: Surveys | CJ12: 1000 | CK12: 0.007117437722 | CL12: 0.3846153846 | CN12: 1120 | CO12: Surveys | CP12: 1000 | CQ12: 0.006675567423 | CR12: 0.3571428571 | CU12: 1120 | CV12: Surveys | CW12: 700 | CX12: 0.006424375918 | CY12: 0.4117647059 | DB12: 1011 | DC12: Impact Fees | DD12: 750 | DE12: 0.007042253521 | DF12: 0.567322239 | DI12: 1120 | DJ12: Surveys | DK12: 2450 | DL12: 0.02076271186 | DM12: 1.853252648 | DP12: 1440 | DQ12: Septic system | DR12: 10400 | DS12: 0.08344834227 | DT12: 6.5
B13: 1030 - Warranty fees | D13: 584 | E13: 0.005349209984 | F13: 0.3323847467 | I13: 1210 - Lot clearing | K13: 2500 | L13: 0.01657033777 | M13: 1.056189269 | P13: 3000 - 3999 Rough Structure | R13: 28416.06 | S13: 0.2785888235 | T13: 18.7441029 | W13: 1400 - Temporary electric | Y13: 250 | Z13: 0.001881948105 | AA13: 0.1198465964 | AD13: 1210 - Lot clearing | AF13: 1150 | AG13: 0.0115 | AH13: 0.9913793103 | AK13: KCV | AL13: =AVERAGE(D18,K16) -> 25262.48 | AM13: =AVERAGE(E18,L16) -> 0.1916677515 | AN13: =AVERAGE(F18,M16) -> 12.07638568 | AR13: 2000 - 2999 Excavation and Foundation | AT13: 8800 | AU13: 0.07746478873 | AV13: 4 | AZ13: 2000 - 2999 Excavation and Foundation | BB13: 650 | BC13: 0.005203830019 | BD13: 0.3095238095 | BH13: 4300 | BI13: Exterior doors | BK13: 1600 | BL13: 0.03563474388 | BM13: 0.7230004519 | BQ13: 1011 Impact Fees | BS13: 7500 | BT13: 0.06493506494 | BU13: 4.06283857 | BY13: 1120 | BZ13: Surveys | CB13: 150 | CC13: 0.0007473357481 | CD13: 0.07436787308 | CG13: 1210 | CH13: Lot clearing | CJ13: 6000 | CK13: 0.04270462633 | CL13: 2.307692308 | CN13: 1210 | CO13: Lot clearing | CP13: 8000 | CQ13: 0.05340453939 | CR13: 2.857142857 | CU13: 1220 | CV13: Fill dirt and material | CW13: 400 | CX13: 0.003671071953 | CY13: 0.2352941176 | DB13: 1112 | DC13: Engineering Fees | DD13: 1900 | DE13: 0.01784037559 | DF13: 1.437216339 | DI13: 1210 | DJ13: Lot clearing | DK13: 2200 | DL13: 0.0186440678 | DM13: 1.664145234 | DP13: 1491 | DQ13: Dumpsters/Port a Lets | DR13: 1100 | DS13: 0.008826266971 | DT13: 0.6875
B14: 1120 - Surveys | D14: 880 | E14: 0.008060453401 | F14: 0.5008537279 | I14: 1430 - Water service | K14: 8100 | L14: 0.05368789437 | M14: 3.422053232 | P14: 3210 - Framing labor—draw #1 | R14: 18760.96 | S14: 0.1839309804 | T14: 12.37530343 | W14: 1430 - Water service | Y14: 3510.42 | Z14: 0.02642571307 | AA14: 1.682847555 | AD14: 1220 - Fill dirt and material | AF14: 735 | AG14: 0.00735 | AH14: 0.6336206897 | AK14: Kevin Martin | AL14: =AF17 -> 3750 | AM14: =AG17 -> 0.0375 | AN14: 3.232758621 | AR14: 2100 - Footings and foundation | AT14: 8800 | AU14: 0.07746478873 | AV14: 4 | AZ14: 2105 - Rebar and reinforcing steel | BB14: 650 | BC14: 0.005203830019 | BD14: 0.3095238095 | BH14: 5000 - 5999 Finishing Trades | BK14: =SUM(BK15:BK21) -> 33300 | BL14: 0.7416481069 | BM14: 15.0474469 | BQ14: 1210 - Lot clearing | BS14: 3500 | BT14: 0.0303030303 | BU14: 1.895991333 | BY14: 1121 | BZ14: Plot Plans | CB14: 75 | CC14: 0.000373667874 | CD14: 0.03718393654 | CG14: 1430 | CH14: Water service | CJ14: 8000 | CK14: 0.05693950178 | CL14: 3.076923077 | CN14: 1430 | CO14: Water service | CP14: 8000 | CQ14: 0.05340453939 | CR14: 2.857142857 | CU14: 1440 | CV14: Septic system | CW14: 6000 | CX14: 0.0550660793 | CY14: 3.529411765 | DB14: 1120 | DC14: Surveys | DD14: 950 | DE14: 0.008920187793 | DF14: 0.7186081694 | DI14: 1220 | DJ14: Fill dirt and material | DK14: 1200 | DL14: 0.01016949153 | DM14: 0.9077155825 | DP14: 2000 - 2999 Excavation and Foundation | DR14: =SUM(DR15:DR16) -> 9164 | DS14: 0.07353082774 | DT14: 5.7275
B15: 1210 - Lot clearing | D15: 5000 | E15: 0.04579803068 | F15: 2.845759818 | I15: 1470 - Electric service | K15: 627.75 | L15: 0.004160811814 | M15: 0.2652091255 | P15: 3300 - Windows | R15: 1200 | S15: 0.01176470588 | T15: 0.7915567282 | W15: 2000 - 2999 Excavation and Foundation | Y15: 875 | Z15: 0.006586818369 | AA15: 0.4194630872 | AD15: 1420 - Individual wells | AF15: 2100 | AG15: 0.021 | AH15: 1.810344828 | AK15: Star | AL15: =Y15 -> 875 | AM15: =Z15 -> 0.006586818369 | AN15: 0.4194630872 | AR15: 3000 - 3999 Rough Structure | AT15: 34650 | AU15: 0.3050176056 | AV15: 15.75 | AZ15: 3000 - 3999 Rough Structure | BB15: 42340.4 | BC15: 0.3389726839 | BD15: 20.16209524 | BH15: 5200 | BI15: Interior trim material | BK15: 1600 | BL15: 0.03563474388 | BM15: 0.7230004519 | BQ15: 1430 - Water service | BS15: 5500 | BT15: 0.04761904762 | BU15: 2.979414951 | BY15: 1122 | BZ15: Survey-Boundary | CB15: 750 | CC15: 0.00373667874 | CD15: 0.3718393654 | CG15: 2000 - 2999 Excavation and Foundation | CJ15: =SUM(CJ16:CJ17) -> 15900 | CK15: 0.1131672598 | CL15: 6.115384615 | CN15: 2000 - 2999 Excavation and Foundation | CP15: =SUM(CP16:CP17) -> 16700 | CQ15: 0.111481976 | CR15: 5.964285714 | CU15: 1491 | CV15: Dumpsters/Port a Lets | CW15: 1800 | CX15: 0.01651982379 | CY15: 1.058823529 | DB15: 1210 | DC15: Lot clearing | DD15: 1500 | DE15: 0.01408450704 | DF15: 1.134644478 | DI15: 1430 | DJ15: Water service | DK15: 2500 | DL15: 0.02118644068 | DM15: 1.89107413 | DP15: 2100 | DQ15: Footings and foundation | DR15: 8664 | DS15: 0.06951888821 | DT15: 5.415
B16: 1430 - Water service | D16: 6600 | E16: 0.0604534005 | F16: 3.75640296 | I16: 2000 - 2999 Excavation and Foundation | K16: 31386.19 | L16: 0.2080319078 | M16: 13.25990283 | P16: 3400 - Exterior siding | R16: 8455.1 | S16: 0.08289313725 | T16: 5.577242744 | W16: 2105 - Rebar and reinforcing steel | Y16: 650 | Z16: 0.004893065074 | AA16: 0.3116011505 | AD16: 1440 - Septic system | AF16: 6500 | AG16: 0.065 | AH16: 5.603448276 | AK16: Plemons + PrestWood | AR16: 3110 - Lumber—1st package | AT16: 12000 | AU16: 0.1056338028 | AV16: 5.454545455 | AZ16: 3110 - Lumber—1st package | BB16: 9500 | BC16: 0.0760559772 | BD16: 4.523809524 | BH16: 5400 | BI16: Cabinets and vanities | BK16: 10000 | BL16: 0.2227171492 | BM16: 4.518752824 | BQ16: 2000 - 2999 Excavation and Foundation | BS16: =SUM(BS17:BS18) -> 24500 | BT16: 0.2121212121 | BU16: 13.27193933 | BY16: 1124 | BZ16: Survey-Foundation | CB16: 150 | CC16: 0.0007473357481 | CD16: 0.07436787308 | CG16: 2010 | CH16: Plumbing—ground | CJ16: 5500 | CK16: 0.03914590747 | CL16: 2.115384615 | CN16: 2010 | CO16: Plumbing—ground | CP16: 5500 | CQ16: 0.03671562083 | CR16: 1.964285714 | CU16: 2000 - 2999 Excavation and Foundation | CW16: =SUM(CW17:CW18) -> 12800 | CX16: 0.1174743025 | CY16: 7.529411765 | DB16: 1220 | DC16: Fill dirt and material | DD16: 1830 | DE16: 0.01718309859 | DF16: 1.384266263 | DI16: 1430 | DJ16: Utility Meter/Conn Fee | DK16: =285+750 -> 1035 | DL16: 0.008771186441 | DM16: 0.7829046899 | DP16: 2300 | DQ16: Termite protection | DR16: 500 | DS16: 0.004011939532 | DT16: 0.3125
B17: 1470 - Electric service | D17: 511.5 | E17: 0.004685138539 | F17: 0.2911212294 | I17: 2010 - Plumbing—ground | K17: 4777.95 | L17: 0.03166889814 | M17: 2.018567807 | P17: 4000 - 4999 Full Enclosure | R17: 6550 | S17: 0.06421568627 | T17: 4.320580475 | W17: 2300 - Termite protection | Y17: 225 | Z17: 0.001693753295 | AA17: 0.1078619367 | AD17: 2000 - 2999 Excavation and Foundation | AF17: 3750 | AG17: 0.0375 | AH17: 3.232758621 | AK17: 3000 - 3999 Rough Structure | AL17: =AVERAGE(AL18:AL21) -> 31318.62125 | AM17: =AVERAGE(AM18:AM21) -> 0.2676916689 | AN17: =AVERAGE(AN18:AN21) -> 18.51682437 | AR17: 3210 - Framing labor—draw #1 | AT17: 8800 | AU17: 0.07746478873 | AV17: 4 | AZ17: 3140 - Trusses | BB17: 6250 | BC17: 0.0500368271 | BD17: 2.976190476 | BH17: 5540 | BI17: Carpet | BK17: 4750 | BL17: 0.1057906459 | BM17: 2.146407592 | BQ17: 2100 - Footings and foundation | BS17: 12500 | BT17: 0.1082251082 | BU17: 6.771397616 | BY17: 1126 | BZ17: Survey-Final | CB17: 250 | CC17: 0.00124555958 | CD17: 0.1239464551 | CG17: 2100 | CH17: Footings and foundation | CJ17: 10400 | CK17: 0.07402135231 | CL17: 4 | CN17: 2100 | CO17: Footings and foundation | CP17: 11200 | CQ17: 0.07476635514 | CR17: 4 | CU17: 2100 | CV17: Footings and foundation | CW17: 10800 | CX17: 0.09911894273 | CY17: 6.352941176 | DB17: 1430 | DC17: Water service | DD17: 2000 | DE17: 0.01877934272 | DF17: 1.512859304 | DI17: 1440 | DJ17: Septic system | DK17: 5000 | DL17: 0.04237288136 | DM17: =DK17/$CW$5 -> 2.941176471 | DP17: 3000 - 3999 Rough Structure | DR17: =SUM(DR18:DR24) -> 37064 | DS17: 0.2973970536 | DT17: 23.165
B18: 2000 - 2999 Excavation and Foundation | D18: 19138.77 | E18: 0.1753035951 | F18: 10.89286853 | I18: 2100 - Footings and foundation | K18: 19556.78 | L18: 0.1296249801 | M18: 8.26226447 | P18: 4150 - Roofing labor | R18: 4250 | S18: 0.04166666667 | T18: 2.803430079 | W18: 3000 - 3999 Rough Structure | Y18: 43027.1 | Z18: 0.3238990773 | AA18: =SUM(AA19:AA25) -> 20.62660594 | AD18: 2100 - Footings and foundation | AF18: 3500 | AG18: 0.035 | AH18: 3.017241379 | AK18: KCV | AL18: =AVERAGE(D24,K22) -> 31331.325 | AM18: =AVERAGE(E24,L22) -> 0.2432787746 | AN18: =AVERAGE(F24,M22) -> 15.30003693 | AR18: 3300 - Windows | AT18: 3200 | AU18: 0.02816901408 | AV18: 1.454545455 | AZ18: 3210 - Framing labor—draw #1 | BB18: 8320.4 | BC18: 0.0666122266 | BD18: 3.962095238 | BH18: 5630 | BI18: Appliances | BK18: 2000 | BL18: 0.04454342984 | BM18: 0.9037505648 | BQ18: 2110 - Concrete block | BS18: 12000 | BT18: 0.1038961039 | BU18: 6.500541712 | BY18: 1220 | BZ18: Fill dirt and material | CB18: 2000 | CC18: 0.009964476641 | CD18: 0.9915716411 | CG18: 3000 - 3999 Rough Structure | CJ18: =SUM(CJ19:CJ22) -> 27100 | CK18: 0.1928825623 | CL18: 10.42307692 | CN18: 3000 - 3999 Rough Structure | CP18: =SUM(CP19:CP22) -> 30400 | CQ18: 0.2029372497 | CR18: 10.85714286 | CU18: 2120 | CV18: Rough grading | CW18: 2000 | CX18: 0.01835535977 | CY18: 1.176470588 | DB18: 1430 | DC18: Utility Meter/Conn Fee | DD18: 5000 | DE18: 0.04694835681 | DF18: 3.78214826 | DI18: 1491 | DJ18: Dumpsters/Port a Lets | DK18: 1400 | DL18: 0.01186440678 | DM18: 1.059001513 | DP18: 3110 | DQ18: Lumber—1st package | DR18: 8000 | DS18: 0.06419103251 | DT18: 5
B19: 2010 - Plumbing—ground | D19: 3893.14 | E19: 0.03565962904 | F19: 2.215788275 | I19: 2110 - Concrete block | K19: 6376.46 | L19: 0.04226403839 | M19: 2.693899451 | P19: 4350 - Garage door | R19: 1000 | S19: 0.009803921569 | T19: 0.6596306069 | W19: 3110 - Lumber—1st package | Y19: 9500 | Z19: 0.071514028 | AA19: 4.554170662 | AD19: 2300 - Termite protection | AF19: 250 | AG19: 0.0025 | AH19: 0.2155172414 | AK19: Kevin Martin | AL19: =AF20 -> 22500 | AM19: =AG20 -> 0.225 | AN19: 19.39655172 | AR19: 3400 - Exterior siding | AT19: 2500 | AU19: 0.02200704225 | AV19: 1.136363636 | AZ19: 3300 - Windows | BB19: 3300 | BC19: 0.02641944471 | BD19: 1.571428571 | BH19: 5101 | BI19: Drywall Material | BK19: 6200 | BL19: 0.1380846325 | BM19: 2.801626751 | BQ19: 3000 - 3999 Rough Structure | BS19: =SUM(BS20:BS22) -> 28100 | BT19: 0.2432900433 | BU19: 15.22210184 | BY19: 1300 | BZ19: Demolition | CB19: 5000 | CC19: 0.0249111916 | CD19: 2.478929103 | CG19: 3110 | CH19: Lumber—1st package | CJ19: 12000 | CK19: 0.08540925267 | CL19: 4.615384615 | CN19: 3110 | CO19: Lumber—1st package | CP19: 14000 | CQ19: 0.09345794393 | CR19: 5 | CU19: 3000 - 3999 Rough Structure | CW19: =SUM(CW20:CW29) -> 41550 | CX19: 0.3813325991 | CY19: 24.44117647 | DB19: 1491 | DC19: Dumpsters/Port a Lets | DD19: 950 | DE19: 0.008920187793 | DF19: 0.7186081694 | DI19: 2000 - 2999 Excavation and Foundation | DK19: =SUM(DK20:DK21) -> 9150 | DL19: 0.07754237288 | DM19: 6.921331316 | DP19: 3140 | DQ19: Trusses | DR19: 5000 | DS19: 0.04011939532 | DT19: 3.125
B20: 2100 - Footings and foundation | D20: 9500 | E20: 0.0870162583 | F20: 5.406943654 | I20: 2120 - Rough grading | K20: 472.5 | L20: 0.003131793838 | M20: 0.1996197719 | P20: 4400 - Insulation | R20: 1300 | S20: 0.01274509804 | T20: 0.8575197889 | W20: 3140 - Trusses | Y20: 6250 | Z20: 0.04704870263 | AA20: 2.996164909 | AD20: 3000 - 3999 Rough Structure | AF20: 22500 | AG20: 0.225 | AH20: 19.39655172 | AK20: Star | AL20: =Y18 -> 43027.1 | AM20: =Z18 -> 0.3238990773 | AN20: 20.62660594 | AR20: 3410 - Exterior trim labor | AT20: 2300 | AU20: 0.02024647887 | AV20: 1.045454545 | AZ20: 3400 - Exterior siding | BB20: 8000 | BC20: 0.06404713869 | BD20: 3.80952381 | BH20: 5512 | BI20: Tile-Floor | BK20: 4750 | BL20: 0.1057906459 | BM20: 2.146407592 | BQ20: 3110 - Lumber—1st package | BS20: 15000 | BT20: 0.1298701299 | BU20: 8.12567714 | BY20: 1440 | BZ20: Septic system | CB20: 10000 | CC20: 0.0498223832 | CD20: 4.957858205 | CG20: 3210 | CH20: Framing labor—draw #1 | CJ20: 10400 | CK20: 0.07402135231 | CL20: 4 | CN20: 3210 | CO20: Framing labor—draw #1 | CP20: 11200 | CQ20: 0.07476635514 | CR20: 4 | CU20: 3110 | CV20: Lumber—1st package | CW20: 3000 | CX20: 0.02753303965 | CY20: 1.764705882 | DB20: 2000 - 2999 Excavation and Foundation | DD20: =SUM(DD21:DD22) -> 9150 | DE20: 0.08591549296 | DF20: 6.921331316 | DI20: 2100 | DJ20: Footings and foundation | DK20: 8800 | DL20: 0.07457627119 | DM20: 6.656580938 | DP20: 3210 | DQ20: Framing labor—draw #1 | DR20: 8664 | DS20: 0.06951888821 | DT20: 5.415
B21: 2110 - Concrete block | D21: 5195.63 | E21: 0.04758992443 | F21: 2.957103017 | I21: 2300 - Termite protection | K21: 202.5 | L21: 0.001342197359 | M21: 0.0855513308 | P21: 5000 - 5999 Finishing Trades | R21: 40304.9 | S21: 0.3951460784 | T21: 26.58634565 | W21: 3210 - Framing labor—draw #1 | Y21: 8807.1 | Z21: 0.06629802063 | AA21: 4.222003835 | AD21: 3110 - Lumber—1st package | AF21: 6500 | AG21: 0.065 | AH21: 5.603448276 | AK21: Plemons + PrestWood | AL21: =AVERAGE(R13) -> 28416.06 | AM21: =AVERAGE(S13) -> 0.2785888235 | AN21: =AVERAGE(T13) -> 18.7441029 | AR21: 3720 - Plumbing—rough | AT21: 5500 | AU21: 0.04841549296 | AV21: 2.5 | AZ21: 3610 - HVAC—rough | BB21: 3250 | BC21: 0.02601915009 | BD21: 1.547619048 | BH21: 5711 | BI21: Plumb. Fixtures | BK21: 4000 | BL21: 0.08908685969 | BM21: 1.80750113 | BQ21: 3300 - Windows | BS21: 6000 | BT21: 0.05194805195 | BU21: 3.250270856 | BY21: 1470 | BZ21: Electric service | CB21: 1360 | CC21: 0.006775844116 | CD21: 0.6742687159 | CG21: 3300 | CH21: Windows | CJ21: 3200 | CK21: 0.02277580071 | CL21: 1.230769231 | CN21: 3300 | CO21: Windows | CP21: 3200 | CQ21: 0.02136181575 | CR21: 1.142857143 | CU21: 3120 | CV21: Lumber—2nd package | CW21: 6500 | CX21: 0.05965491924 | CY21: 3.823529412 | DB21: 2100 | DC21: Footings and foundation | DD21: 8800 | DE21: 0.08262910798 | DF21: 6.656580938 | DI21: 2300 | DJ21: Termite protection | DK21: 350 | DL21: 0.002966101695 | DM21: 0.2647503782 | DP21: 3300 | DQ21: Windows | DR21: 2000 | DS21: 0.01604775813 | DT21: 1.25
B22: 2120 - Rough grading | D22: 385 | E22: 0.003526448363 | F22: 0.219123506 | I22: 3000 - 3999 Rough Structure | K22: 34528.4 | L22: 0.2288589003 | M22: 14.58741022 | P22: 5100 - Drywall | R22: 5874.39 | S22: 0.05759205882 | T22: 3.874927441 | W22: 3300 - Windows | Y22: 3500 | Z22: 0.02634727347 | AA22: 1.677852349 | AD22: 3210 - Framing labor—draw #1 | AF22: 5400 | AG22: 0.054 | AH22: 4.655172414 | AK22: 4000 - 4999 Full Enclosure | AL22: =AVERAGE(AL23:AL26) -> 7700.4575 | AM22: =AVERAGE(AM23:AM26) -> 0.06340225924 | AN22: =AVERAGE(AN23:AN26) -> 4.265708321 | AR22: 3810 - Electrical—rough | AT22: 350 | AU22: 0.003080985915 | AV22: 0.1590909091 | AZ22: 3810 - Electrical—rough | BB22: 3720 | BC22: 0.02978191949 | BD22: 1.771428571 | BQ22: 3810 - Electrical—rough | BS22: 7100 | BT22: 0.06147186147 | BU22: 3.846153846 | BY22: 3000 - 3999 Rough Structure | CB22: =SUM(CB23:CB25) -> 13217 | CC22: 0.06585024388 | CD22: 6.55280119 | CG22: 3401 | CH22: Soffit and Facia | CJ22: 1500 | CK22: 0.01067615658 | CL22: 0.5769230769 | CN22: 3401 | CO22: Soffit and Facia | CP22: 2000 | CQ22: 0.01335113485 | CR22: 0.7142857143 | CU22: 3140 | CV22: Trusses | CW22: 5000 | CX22: 0.04588839941 | CY22: 2.941176471 | DB22: 2300 | DC22: Termite protection | DD22: 350 | DE22: 0.003286384977 | DF22: 0.2647503782 | DI22: 3000 - 3999 Rough Structure | DK22: =SUM(DK23:DK30) -> 31950 | DL22: 0.2707627119 | DM22: 24.16792738 | DP22: 3400 | DQ22: Exterior siding | DR22: 5500 | DS22: 0.04413133485 | DT22: 3.4375
B23: 2300 - Termite protection | D23: 165 | E23: 0.001511335013 | F23: 0.09391007399 | I23: 3110 - Lumber—1st package | K23: 8105.82 | L23: 0.05372647012 | M23: 3.424512041 | P23: 5300 - Painting—interior | R23: 3500 | S23: 0.03431372549 | T23: 2.308707124 | W23: 3400 - Exterior siding | Y23: 8000 | Z23: 0.06022233937 | AA23: 3.835091083 | AD23: 3300 - Windows | AF23: 2700 | AG23: 0.027 | AH23: 2.327586207 | AK23: KCV | AL23: =AVERAGE(D34,K31) -> 9558 | AM23: =AVERAGE(E34,L31) -> 0.07087018432 | AN23: =AVERAGE(F34,M31) -> 4.473651294 | AR23: 4000 - 4999 Full Enclosure | AT23: 9100 | AU23: 0.0801056338 | AV23: 4.136363636 | AZ23: 4000 - 4999 Full Enclosure | BB23: 11493.83 | BC23: 0.09201836552 | BD23: 5.473252381 | BH23: TOTALS: | BK23: =SUM(BK8:BK21)/2 -> 44900 | BL23: =SUM(BL8:BL21)/2 -> 1 | BM23: =SUM(BM8:BM21)/2 -> 20.28920018 | BQ23: 4000 - 4999 Full Enclosure | BS23: =SUM(BS24:BS24) -> 8700 | BT23: 0.07532467532 | BU23: 4.712892741 | BY23: 3301 | BZ23: House Wrap | CB23: 1498 | CC23: 0.007463393004 | CD23: 0.7426871591 | CG23: 4000 - 4999 Full Enclosure | CJ23: =SUM(CJ24:CJ29) -> 25200 | CK23: 0.1793594306 | CL23: 9.692307692 | CN23: 4000 - 4999 Full Enclosure | CP23: =SUM(CP24:CP29) -> 25600 | CQ23: 0.170894526 | CR23: 9.142857143 | CU23: 3210 | CV23: Framing labor—draw #1 | CW23: 2000 | CX23: 0.01835535977 | CY23: 1.176470588 | DB23: 3000 - 3999 Rough Structure | DD23: =SUM(DD24:DD31) -> 31950 | DE23: 0.3 | DF23: 24.16792738 | DI23: 3101 | DJ23: Hurricane Tie Downs | DK23: 1100 | DL23: 0.009322033898 | DM23: 0.8320726172 | DP23: 3401 | DQ23: Soffit and Facia | DR23: 2400 | DS23: 0.01925730975 | DT23: 1.5
B24: 3000 - 3999 Rough Structure | D24: 28134.25 | E24: 0.257698649 | F24: 16.01266363 | I24: 3140 - Trusses | K24: 4725 | L24: 0.03131793838 | M24: 1.996197719 | P24: 5400 - Cabinets and vanities | R24: 8000 | S24: 0.07843137255 | T24: 5.277044855 | W24: 3610 - HVAC—rough | Y24: 3250 | Z24: 0.02446532537 | AA24: 1.558005753 | AD24: 3400 - Exterior siding | AF24: 3500 | AG24: 0.035 | AH24: 3.017241379 | AK24: Kevin Martin | AL24: =AF27 -> 3200 | AM24: =AG27 -> 0.032 | AN24: 2.75862069 | AR24: 4100 - Roofing material | AT24: 4600 | AU24: 0.04049295775 | AV24: 2.090909091 | AZ24: 4100 - Roofing material | BB24: 3200 | BC24: 0.02561885548 | BD24: 1.523809524 | BQ24: 4400 - Insulation | BS24: 8700 | BT24: 0.07532467532 | BU24: 4.712892741 | BY24: 3400 | BZ24: Exterior siding | CB24: 9650 | CC24: 0.04807859979 | CD24: 4.784333168 | CG24: 4100 | CH24: Roofing material | CJ24: 4600 | CK24: 0.03274021352 | CL24: 1.769230769 | CN24: 4100 | CO24: Roofing material | CP24: 4600 | CQ24: 0.03070761015 | CR24: 1.642857143 | CU24: 3220 | CV24: Framing labor—draw #2 | CW24: 5000 | CX24: 0.04588839941 | CY24: 2.941176471 | DB24: 3101 | DC24: Hurricane Tie Downs | DD24: 1100 | DE24: 0.0103286385 | DF24: 0.8320726172 | DI24: 3110 | DJ24: Lumber—1st package | DK24: 7400 | DL24: 0.06271186441 | DM24: 5.597579425 | DP24: 3810 | DQ24: Electrical—rough | DR24: 5500 | DS24: 0.04413133485 | DT24: 3.4375
B25: 3110 - Lumber—1st package | D25: 6604.74 | E25: 0.06049681704 | F25: 3.75910074 | I25: 3210 - Framing labor—draw #1 | K25: 5588.89 | L25: 0.03704391802 | M25: 2.361170258 | P25: 5520 - Special flooring | R25: 7630.51 | S25: 0.07480892157 | T25: 5.033317942 | W25: 3810 - Electrical—rough | Y25: 3720 | Z25: 0.02800338781 | AA25: 1.783317354 | AD25: 3410 - Exterior trim labor | AF25: 600 | AG25: 0.006 | AH25: 0.5172413793 | AK25: Star | AL25: =Y26 -> 11493.83 | AM25: =Z26 -> 0.08652316637 | AN25: 5.509980825 | AR25: 4150 - Roofing labor | AT25: 2000 | AU25: 0.0176056338 | AV25: 0.9090909091 | AZ25: 4150 - Roofing labor | BB25: 1000 | BC25: 0.008005892337 | BD25: 0.4761904762 | BQ25: 5000 - 5999 Finishing Trades | BS25: =SUM(BS26:BS27) -> 23500 | BT25: 0.2034632035 | BU25: 12.73022752 | BY25: 3720 | BZ25: Plumbing—rough | CB25: 2069 | CC25: 0.01030825108 | CD25: 1.025780863 | CG25: 4150 | CH25: Roofing labor | CJ25: 2000 | CK25: 0.01423487544 | CL25: 0.7692307692 | CN25: 4150 | CO25: Roofing labor | CP25: 2400 | CQ25: 0.01602136182 | CR25: 0.8571428571 | CU25: 3300 | CV25: Windows/doors | CW25: 1850 | CX25: 0.01697870778 | CY25: 1.088235294 | DB25: 3110 | DC25: Lumber—1st package | DD25: 7400 | DE25: 0.06948356808 | DF25: 5.597579425 | DI25: 3140 | DJ25: Trusses | DK25: 4500 | DL25: 0.03813559322 | DM25: 3.403933434 | DP25: 4000 - 4999 Full Enclosure | DR25: =SUM(DR26:DR28) -> 7500 | DS25: 0.06017909298 | DT25: 4.6875
B26: 3140 - Trusses | D26: 3850 | E26: 0.03526448363 | F26: 2.19123506 | I26: 3300 - Windows | K26: 3462.56 | L26: 0.0229503155 | M26: 1.462847486 | P26: 5700 - HVAC—final | R26: 4600 | S26: 0.04509803922 | T26: 3.034300792 | W26: 4000 - 4999 Full Enclosure | Y26: 11493.83 | Z26: 0.08652316637 | AA26: =SUM(AA27:AA32) -> 5.509980825 | AD26: 3500 - Flatwork material | AF26: 3800 | AG26: 0.038 | AH26: 3.275862069 | AK26: Plemons + PrestWood | AL26: =AVERAGE(R17) -> 6550 | AM26: =AVERAGE(S17) -> 0.06421568627 | AN26: =AVERAGE(T17) -> 4.320580475 | AR26: 4300 - Exterior doors | AT26: 1500 | AU26: 0.01320422535 | AV26: 0.6818181818 | AZ26: 4300 - Exterior doors | BB26: 2000 | BC26: 0.01601178467 | BD26: 0.9523809524 | BQ26: 5102 - Drywall Hang/Finish | BS26: 23000 | BT26: 0.1991341991 | BU26: 12.45937161 | BY26: 4000 - 4999 Full Enclosure | CB26: =SUM(CB27:CB31) -> 3100 | CC26: 0.01544493879 | CD26: 1.536936044 | CG26: 4210 | CH26: Stucco | CJ26: 10000 | CK26: 0.07117437722 | CL26: 3.846153846 | CN26: 4210 | CO26: Stucco | CP26: 10000 | CQ26: 0.06675567423 | CR26: 3.571428571 | CU26: 3610 | CV26: HVAC—rough | CW26: 7000 | CX26: 0.06424375918 | CY26: 4.117647059 | DB26: 3140 | DC26: Trusses | DD26: 4500 | DE26: 0.04225352113 | DF26: 3.403933434 | DI26: 3210 | DJ26: Framing labor—draw #1 | DK26: 6500 | DL26: 0.05508474576 | DM26: 4.916792738 | DP26: 4100 | DQ26: Roofing material | DR26: 4400 | DS26: 0.03530506788 | DT26: 2.75
B27: 3210 - Framing labor—draw #1 | D27: 4553.91 | E27: 0.04171202198 | F27: 2.591866818 | I27: 3610 - HVAC—rough | K27: 3375 | L27: 0.02236995599 | M27: 1.425855513 | P27: 5710 - Plumbing—final | R27: 5700 | S27: 0.05588235294 | T27: 3.759894459 | W27: 4100 - Roofing material | Y27: 3200 | Z27: 0.02408893575 | AA27: 1.534036433 | AD27: 4000 - 4999 Full Enclosure | AF27: 3200 | AG27: 0.032 | AH27: 2.75862069 | AK27: 5000 - 5999 Finishing Trades | AL27: =AVERAGE(AL28:AL31) -> 32564.3775 | AM27: =AVERAGE(AM28:AM31) -> 0.289605073 | AN27: =AVERAGE(AN28:AN31) -> 20.58735671 | AR27: 4350 - Garage door | AT27: 1000 | AU27: 0.008802816901 | AV27: 0.4545454545 | AZ27: 4350 - Garage door | BB27: 1300 | BC27: 0.01040766004 | BD27: 0.619047619 | BQ27: 5890 - Special finishes | BS27: 500 | BT27: 0.004329004329 | BU27: 0.2708559047 | BY27: 4210 | BZ27: Stucco | CB27: 750 | CC27: 0.00373667874 | CD27: 0.3718393654 | CG27: 4300 | CH27: Exterior doors | CJ27: 2800 | CK27: 0.01992882562 | CL27: 1.076923077 | CN27: 4300 | CO27: Exterior doors | CP27: 2800 | CQ27: 0.01869158879 | CR27: 1 | CU27: 3720 | CV27: Plumbing—rough | CW27: 4000 | CX27: 0.03671071953 | CY27: 2.352941176 | DB27: 3210 | DC27: Framing labor—draw #1 | DD27: 6500 | DE27: 0.06103286385 | DF27: 4.916792738 | DI27: 3300 | DJ27: Windows | DK27: 2800 | DL27: 0.02372881356 | DM27: 2.118003026 | DP27: 4350 | DQ27: Garage door | DR27: 1000 | DS27: 0.008023879064 | DT27: 0.625
B28: 3300 - Windows | D28: 2821.35 | E28: 0.02584245477 | F28: 1.605776892 | I28: 3720 - Plumbing—rough | K28: 3533.63 | L28: 0.02342137706 | M28: 1.492872835 | P28: 5730 - Electrical—final | R28: 5000 | S28: 0.04901960784 | T28: 3.298153034 | W28: 4150 - Roofing labor | Y28: 1000 | Z28: 0.007527792421 | AA28: 0.4793863854 | AD28: 4350 - Garage door | AF28: 700 | AG28: 0.007 | AH28: 0.6034482759 | AK28: KCV | AL28: =AVERAGE(D38,K36) -> 24930.21 | AM28: =AVERAGE(E38,L36) -> 0.1935759478 | AN28: =AVERAGE(F38,M36) -> 12.17417818 | AR28: 5000 - 5999 Finishing Trades | AT28: 26200 | AU28: 0.2306338028 | AV28: 11.90909091 | AZ28: 4400 - Insulation | BB28: 1650 | BC28: 0.01320972236 | BD28: 0.7857142857 | BQ28: Site | BS28: =SUM(BS29:BS29) -> 2000 | BT28: 0.01731601732 | BU28: 1.083423619 | BY28: 4300 | BZ28: Exterior doors | CB28: 365 | CC28: 0.001818516987 | CD28: 0.1809618245 | CG28: 4350 | CH28: Garage door | CJ28: 1700 | CK28: 0.01209964413 | CL28: 0.6538461538 | CN28: 4350 | CO28: Garage door | CP28: 1700 | CQ28: 0.01134846462 | CR28: 0.6071428571 | CU28: 3810 | CV28: Electrical—rough | CW28: 6000 | CX28: 0.0550660793 | CY28: 3.529411765 | DB28: 3300 | DC28: Windows | DD28: 2800 | DE28: 0.02629107981 | DF28: 2.118003026 | DI28: 3350 | DJ28: Skylights | DK28: 800 | DL28: 0.006779661017 | DM28: 0.6051437216 | DP28: 4600 | DQ28: Painting—exterior | DR28: 2100 | DS28: 0.01685014603 | DT28: 1.3125
B29: 3610 - HVAC—rough | D29: 2750 | E29: 0.02518891688 | F29: 1.5651679 | I29: 3810 - Electrical—rough | K29: 4455 | L29: 0.02952834191 | M29: 1.882129278 | P29: 6000 - 6999 Completion and Inspection | R29: 1450 | S29: 0.01421568627 | T29: 0.9564643799 | W29: 4300 - Exterior doors | Y29: 2000 | Z29: 0.01505558484 | AA29: 0.9587727709 | AD29: 4400 - Insulation | AF29: 1200 | AG29: 0.012 | AH29: 1.034482759 | AK29: Kevin Martin | AL29: =AF31 -> 32450 | AM29: =AG31 -> 0.3245 | AN29: 27.97413793 | AR29: 5100 - Drywall | AT29: 6200 | AU29: 0.05457746479 | AV29: 2.818181818 | AZ29: 4600 - Painting—exterior | BB29: 2343.83 | BC29: 0.01876445064 | BD29: 1.116109524 | BQ29: 1112 Engineering Fees | BS29: 2000 | BT29: 0.01731601732 | BU29: 1.083423619 | BY29: 4350 | BZ29: Garage door | CB29: 1285 | CC29: 0.006402176242 | CD29: 0.6370847794 | CG29: 4600 | CH29: Painting—exterior | CJ29: 4100 | CK29: 0.02918149466 | CL29: 1.576923077 | CN29: 4600 | CO29: Painting—exterior | CP29: 4100 | CQ29: 0.02736982644 | CR29: 1.464285714 | CU29: 3910 | CV29: Gutters and downspouts | CW29: 1200 | CX29: 0.01101321586 | CY29: 0.7058823529 | DB29: 3350 | DC29: Skylights | DD29: 800 | DE29: 0.007511737089 | DF29: 0.6051437216 | DI29: 3401 | DJ29: Soffit and Facia | DK29: 4000 | DL29: 0.03389830508 | DM29: 3.025718608 | DP29: 5000 - 5999 Finishing Trades | DR29: =SUM(DR30:DR37) -> 25400 | DS29: 0.2038065282 | DT29: =DR29/$DR$5 -> 15.875
B30: 3720 - Plumbing—rough | D30: 2879.25 | E30: 0.02637279597 | F30: 1.638730791 | I30: 3910 - Gutters and downspouts | K30: 1282.5 | L30: 0.008500583276 | M30: 0.5418250951 | P30: 6100 - Clean-up | R30: 450 | S30: 0.004411764706 | T30: 0.2968337731 | W30: 4350 - Garage door | Y30: 1300 | Z30: 0.009786130148 | AA30: 0.6232023011 | AD30: 4600 - Painting—exterior | AF30: 1300 | AG30: 0.013 | AH30: 1.120689655 | AK30: Star | AL30: =Y33 -> 32572.4 | AM30: =Z33 -> 0.2451982659 | AN30: 15.6147651 | AR30: 5200 - Interior trim material | AT30: 1700 | AU30: 0.01496478873 | AV30: 0.7727272727 | AZ30: 5000 - 5999 Finishing Trades | BB30: 29972.4 | BC30: 0.2399558075 | BD30: 14.27257143 | BY30: 4400 | BZ30: Insulation | CB30: 300 | CC30: 0.001494671496 | CD30: 0.1487357462 | CG30: 5000 - 5999 Finishing Trades | CJ30: =SUM(CJ31:CJ39) -> 34100 | CK30: 0.2427046263 | CL30: 13.11538462 | CN30: 5000 - 5999 Finishing Trades | CP30: =SUM(CP31:CP39) -> 35400 | CQ30: 0.2363150868 | CR30: 12.64285714 | CU30: 4000 - 4999 Full Enclosure | CW30: =SUM(CW31:CW34) -> 9685 | CX30: 0.08888582966 | CY30: 5.697058824 | DB30: 3401 | DC30: Soffit and Facia | DD30: 4000 | DE30: 0.03755868545 | DF30: 3.025718608 | DI30: 3810 | DJ30: Electrical—rough | DK30: 4850 | DL30: 0.04110169492 | DM30: 3.668683812 | DP30: 5102 | DQ30: Drywall Hang & Finish | DR30: 5500 | DS30: 0.04413133485 | DT30: =DR30/$DR$5 -> 3.4375
B31: 3810 - Electrical—rough | D31: 3630 | E31: 0.03324937028 | F31: 2.066021628 | I31: 4000 - 4999 Full Enclosure | K31: 13176 | L31: 0.08733230818 | M31: 5.566539924 | P31: 6600 - Landscaping | R31: 1000 | S31: 0.009803921569 | T31: 0.6596306069 | W31: 4400 - Insulation | Y31: 1650 | Z31: 0.0124208575 | AA31: 0.790987536 | AD31: 5000 - 5999 Finishing Trades | AF31: 32450 | AG31: 0.3245 | AH31: 27.97413793 | AK31: Plemons + PrestWood | AL31: =AVERAGE(R21) -> 40304.9 | AM31: =AVERAGE(S21) -> 0.3951460784 | AN31: =AVERAGE(T21) -> 26.58634565 | AR31: 5250 - Interior trim labor | AT31: 1500 | AU31: 0.01320422535 | AV31: 0.6818181818 | AZ31: 5100 - Drywall | BB31: 4140 | BC31: 0.03314439427 | BD31: 1.971428571 | BQ31: TOTALS: | BS31: =SUM(BS8:BS29)/2 -> 115500 | BT31: =SUM(BT8:BT29)/2 -> 1 | BU31: =SUM(BU8:BU29)/2 -> 62.56771398 | BY31: 4600 | BZ31: Painting—exterior | CB31: 400 | CC31: 0.001992895328 | CD31: 0.1983143282 | CG31: 5100 | CH31: Drywall | CJ31: 1000 | CK31: 0.007117437722 | CL31: 0.3846153846 | CN31: 5100 | CO31: Drywall | CP31: 1000 | CQ31: 0.006675567423 | CR31: 0.3571428571 | CU31: 4100 | CV31: Roofing material | CW31: 4150 | CX31: 0.03808737151 | CY31: 2.441176471 | DB31: 3810 | DC31: Electrical—rough | DD31: 4850 | DE31: 0.0455399061 | DF31: 3.668683812 | DI31: 4000 - 4999 Full Enclosure | DK31: =SUM(DK32:DK35) -> 9250 | DL31: 0.07838983051 | DM31: 6.996974281 | DP31: 5201 | DQ31: Door HW & Lock Sets | DR31: 1600 | DS31: 0.0128382065 | DT31: 1
B32: 3910 - Gutters and downspouts | D32: 1045 | E32: 0.009571788413 | F32: 0.5947638019 | I32: 4150 - Roofing labor | K32: 7290 | L32: 0.04831910494 | M32: 3.079847909 | P32: Finish | R32: 7389.04 | S32: 0.07244156863 | T32: 4.874036939 | W32: 4600 - Painting—exterior | Y32: 2343.82 | Z32: 0.01764379043 | AA32: 1.123595398 | AD32: 5100 - Drywall | AF32: 4300 | AG32: 0.043 | AH32: 3.706896552 | AK32: 6000 - 6999 Completion and Inspection | AL32: =AVERAGE(AL33:AL36) -> 2401.5625 | AM32: =AVERAGE(AM33:AM36) -> 0.02022283406 | AN32: =AVERAGE(AN33:AN36) -> 1.408582056 | AR32: 5400 - Cabinets and vanities | AT32: 6500 | AU32: 0.05721830986 | AV32: 2.954545455 | AZ32: 5200 - Interior trim material | BB32: 2600 | BC32: 0.02081532008 | BD32: 1.238095238 | BY32: 5000 - 5999 Finishing Trades | CB32: =SUM(CB33:CB44) -> 38103 | CC32: 0.1898382267 | CD32: 18.89092712 | CG32: 5101 | CH32: Drywall Material | CJ32: 2200 | CK32: 0.01565836299 | CL32: 0.8461538462 | CN32: 5101 | CO32: Drywall Material | CP32: 2400 | CQ32: 0.01602136182 | CR32: 0.8571428571 | CU32: 4350 | CV32: Garage door | CW32: 1350 | CX32: 0.01238986784 | CY32: 0.7941176471 | DB32: 4000 - 4999 Full Enclosure | DD32: =SUM(DD33:DD36) -> 7700 | DE32: 0.07230046948 | DF32: 5.824508321 | DI32: 4100 | DJ32: Roofing material | DK32: 4700 | DL32: 0.03983050847 | DM32: 3.555219365 | DP32: 5300 | DQ32: Painting—interior | DR32: 2000 | DS32: 0.01604775813 | DT32: 1.25
B33: 4000 - 4999 Full Enclosure | D33: 10736 | E33: 0.09833753149 | F33: 6.110415481 | I33: 4350 - Garage door | K33: 1282.5 | L33: 0.008500583276 | M33: 0.5418250951 | P33: 3401 Soffit and Facia | R33: 1500 | S33: 0.01470588235 | T33: 0.9894459103 | W33: 5000 - 5999 Finishing Trades | Y33: 32572.4 | Z33: 0.2451982659 | AA33: =SUM(AA34:AA47) -> 15.6147651 | AD33: 5200 - Interior trim material | AF33: 2300 | AG33: 0.023 | AH33: 1.982758621 | AK33: KCV | AL33: =AVERAGE(D51,K49) -> 3506.25 | AM33: =AVERAGE(E51,L49) -> 0.02672700006 | AN33: =AVERAGE(F51,M49) -> 1.683351992 | AR33: 5450 - Countertops | AT33: 2000 | AU33: 0.0176056338 | AV33: 0.9090909091 | AZ33: 5250 - Interior trim labor | BB33: 500 | BC33: 0.004002946168 | BD33: 0.2380952381 | BY33: 5100 | BZ33: Drywall | CB33: 1400 | CC33: 0.006975133649 | CD33: 0.6941001487 | CG33: 5102 | CH33: Drywall Hang & Finish | CJ33: 3200 | CK33: 0.02277580071 | CL33: 1.230769231 | CN33: 5102 | CO33: Drywall Hang & Finish | CP33: 3600 | CQ33: 0.02403204272 | CR33: 1.285714286 | CU33: 4400 | CV33: Insulation | CW33: 1985 | CX33: 0.01821769457 | CY33: 1.167647059 | DB33: 4100 | DC33: Roofing material | DD33: 3750 | DE33: 0.03521126761 | DF33: 2.836611195 | DI33: 4350 | DJ33: Garage door | DK33: 850 | DL33: 0.007203389831 | DM33: 0.6429652042 | DP33: 5510 | DQ33: Ceramic tile | DR33: 2500 | DS33: 0.02005969766 | DT33: 1.5625
B34: 4150 - Roofing labor | D34: 5940 | E34: 0.05440806045 | F34: 3.380762664 | I34: 4400 - Insulation | K34: 1768.5 | L34: 0.01172185694 | M34: 0.747148289 | P34: 5511 Tile-Baths | R34: 2500 | S34: 0.02450980392 | T34: 1.649076517 | W34: 5100 - Drywall | Y34: 4140 | Z34: 0.03116506062 | AA34: 1.984659636 | AD34: 5250 - Interior trim labor | AF34: 500 | AG34: 0.005 | AH34: 0.4310344828 | AK34: Kevin Martin | AL34: =AF43 -> 2000 | AM34: =AG43 -> 0.02 | AN34: 1.724137931 | AR34: 5630 - Appliances | AT34: 1800 | AU34: 0.01584507042 | AV34: 0.8181818182 | AZ34: 5400 - Cabinets and vanities | BB34: 5500 | BC34: 0.04403240785 | BD34: 2.619047619 | BY34: 5200 | BZ34: Interior trim material | CB34: 9500 | CC34: 0.04733126404 | CD34: 4.709965295 | CG34: 5400 | CH34: Cabinets and vanities | CJ34: 8000 | CK34: 0.05693950178 | CL34: 3.076923077 | CN34: 5400 | CO34: Cabinets and vanities | CP34: 8000 | CQ34: 0.05340453939 | CR34: 2.857142857 | CU34: 4600 | CV34: Painting—exterior | CW34: 2200 | CX34: 0.02019089574 | CY34: 1.294117647 | DB34: 4350 | DC34: Garage door | DD34: 850 | DE34: 0.007981220657 | DF34: 0.6429652042 | DI34: 4400 | DJ34: Insulation | DK34: 1500 | DL34: 0.01271186441 | DM34: 1.134644478 | DP34: 5540 | DQ34: Carpet | DR34: 1200 | DS34: 0.009628654877 | DT34: 0.75
B35: 4350 - Garage door | D35: 1045 | E35: 0.009571788413 | F35: 0.5947638019 | I35: 4600 - Painting—exterior | K35: 2835 | L35: 0.01879076303 | M35: 1.197718631 | P35: 7060 Interior Trim Options | R35: 3389.04 | S35: 0.03322588235 | T35: 2.235514512 | W35: 5200 - Interior trim material | Y35: 2600 | Z35: 0.0195722603 | AA35: 1.246404602 | AD35: 5300 - Painting—interior | AF35: 1500 | AG35: 0.015 | AH35: 1.293103448 | AK35: Star | AL35: =Y48 -> 2650 | AM35: =Z48 -> 0.01994864992 | AN35: 1.270373921 | AR35: 5700 - HVAC—final | AT35: 6500 | AU35: 0.05721830986 | AV35: 2.954545455 | AZ35: 5450 - Countertops | BB35: 3000 | BC35: 0.02401767701 | BD35: 1.428571429 | BY35: 5201 | BZ35: Door HW & Lock Sets | CB35: 350 | CC35: 0.001743783412 | CD35: 0.1735250372 | CG35: 5450 | CH35: Countertops | CJ35: 3000 | CK35: 0.02135231317 | CL35: 1.153846154 | CN35: 5450 | CO35: Countertops | CP35: 3000 | CQ35: 0.02002670227 | CR35: 1.071428571 | CU35: 5000 - 5999 Finishing Trades | CW35: =SUM(CW36:CW43) -> 22675 | CX35: 0.2081038913 | CY35: 13.33823529 | DB35: 4400 | DC35: Insulation | DD35: 1500 | DE35: 0.01408450704 | DF35: 1.134644478 | DI35: 4600 | DJ35: Painting—exterior | DK35: 2200 | DL35: 0.0186440678 | DM35: 1.664145234 | DP35: 5620 | DQ35: Shower doors and mirrors | DR35: 2100 | DS35: 0.01685014603 | DT35: 1.3125
B36: 4400 - Insulation | D36: 1441 | E36: 0.01319899244 | F36: 0.8201479795 | I36: 5000 - 5999 Finishing Trades | K36: 27474.11 | L36: 0.182102113 | M36: 11.60714406 | P36: Rough | R36: 10620 | S36: 0.1041176471 | T36: 7.005277045 | W36: 5250 - Interior trim labor | Y36: 1200 | Z36: 0.009033350906 | AA36: 0.5752636625 | AD36: 5400 - Cabinets and vanities | AF36: 5400 | AG36: 0.054 | AH36: 4.655172414 | AK36: Plemons + PrestWood | AL36: =AVERAGE(R29) -> 1450 | AM36: =AVERAGE(S29) -> 0.01421568627 | AN36: =AVERAGE(T29) -> 0.9564643799 | AR36: 6000 - 6999 Completion and Inspection | AT36: 4700 | AU36: 0.04137323944 | AV36: 2.136363636 | AZ36: 5540 - Carpet | BB36: 1836 | BC36: 0.01469881833 | BD36: 0.8742857143 | BY36: 5450 | BZ36: Countertops | CB36: 7725 | CC36: 0.03848779102 | CD36: 3.829945464 | CG36: 5510 | CH36: Ceramic tile | CJ36: 3800 | CK36: 0.02704626335 | CL36: 1.461538462 | CN36: 5510 | CO36: Ceramic tile | CP36: 3800 | CQ36: 0.02536715621 | CR36: 1.357142857 | CU36: 5100 | CV36: Drywall | CW36: 5300 | CX36: 0.04864170338 | CY36: 3.117647059 | DB36: 4600 | DC36: Painting—exterior | DD36: 1600 | DE36: 0.01502347418 | DF36: 1.210287443 | DI36: 5000 - 5999 Finishing Trades | DK36: =SUM(DK37:DK46) -> 31750 | DL36: =DK36/$DK$57 -> 0.2690677966 | DM36: 24.01664145 | DP36: 5700 | DQ36: HVAC—final | DR36: 5500 | DS36: 0.04413133485 | DT36: 3.4375
B37: 4600 - Painting—exterior | D37: 2310 | E37: 0.02115869018 | F37: 1.314741036 | I37: 5100 - Drywall | K37: 6885 | L37: 0.04563471022 | M37: 2.908745247 | P37: 2103 Mono Slab Concrete | R37: 10620 | S37: 0.1041176471 | T37: 7.005277045 | W37: 5400 - Cabinets and vanities | Y37: 5500 | Z37: 0.04140285832 | AA37: 2.63662512 | AD37: 5510 - Ceramic tile | AF37: 1300 | AG37: 0.013 | AH37: 1.120689655 | AK37: Finish | AL37: =AVERAGE(AL38:AL41) -> 8019.78 | AM37: =AVERAGE(AM38:AM41) -> 0.06958892283 | AN37: =AVERAGE(AN38:AN41) -> 4.931019708 | AR37: 6300 - Driveways | AT37: 3500 | AU37: 0.03080985915 | AV37: 1.590909091 | AZ37: 5610 - Hardware | BB37: 600 | BC37: 0.004803535402 | BD37: 0.2857142857 | BY37: 5511 | BZ37: Tile-Baths | CB37: 3133 | CC37: 0.01560935266 | CD37: 1.553296976 | CG37: 5540 | CH37: Carpet | CJ37: 2000 | CK37: 0.01423487544 | CL37: 0.7692307692 | CN37: 5540 | CO37: Carpet | CP37: 2000 | CQ37: 0.01335113485 | CR37: 0.7142857143 | CU37: 5200 | CV37: Interior trim material | CW37: 1200 | CX37: 0.01101321586 | CY37: 0.7058823529 | DB37: 5000 - 5999 Finishing Trades | DD37: =SUM(DD38:DD46) -> 27935 | DE37: 0.2623004695 | DF37: 21.13086233 | DI37: 5102 | DJ37: Drywall Hang & Finish | DK37: 6700 | DL37: =DK37/$DK$57 -> 0.05677966102 | DM37: 5.068078669 | DP37: 5710 | DQ37: Plumbing—final | DR37: 5000 | DS37: 0.04011939532 | DT37: 3.125
B38: 5000 - 5999 Finishing Trades | D38: 22386.31 | E38: 0.2050497825 | F38: 12.74121229 | I38: 5200 - Interior trim material | K38: 135 | L38: 0.0008947982396 | M38: 0.05703422053 | P38: Site | R38: 740 | S38: 0.007254901961 | T38: 0.4881266491 | W38: 5450 - Countertops | Y38: 3000 | Z38: 0.02258337726 | AA38: 1.438159156 | AD38: 5620 - Shower doors and mirrors | AF38: 350 | AG38: 0.0035 | AH38: 0.3017241379 | AK38: KCV | AL38: =AVERAGE(D55,K53) -> 3246.25 | AM38: =AVERAGE(E55,L53) -> 0.02520620262 | AN38: =AVERAGE(F55,M53) -> 1.585242409 | AR38: 6600 - Landscaping | AT38: 1200 | AU38: 0.01056338028 | AV38: 0.5454545455 | AZ38: 5620 - Shower doors and mirrors | BB38: 1010 | BC38: 0.00808595126 | BD38: 0.480952381 | BY38: 5512 | BZ38: Tile-Floor | CB38: 3840 | CC38: 0.01913179515 | CD38: 1.903817551 | CG38: 5630 | CH38: Appliances | CJ38: 1800 | CK38: 0.0128113879 | CL38: 0.6923076923 | CN38: 5630 | CO38: Appliances | CP38: 1800 | CQ38: 0.01201602136 | CR38: 0.6428571429 | CU38: 5300 | CV38: Painting—interior | CW38: 2000 | CX38: 0.01835535977 | CY38: 1.176470588 | DB38: 5102 | DC38: Drywall Hang & Finish | DD38: 6700 | DE38: 0.06291079812 | DF38: 5.068078669 | DI38: 5201 | DJ38: Door HW & Lock Sets | DK38: 2400 | DL38: 0.02033898305 | DM38: 1.815431165 | DP38: 6000 - 6999 Completion and Inspection | DR38: =SUM(DR39:DR43) -> 16800 | DS38: 0.1348011683 | DT38: 10.5
B39: 5100 - Drywall | D39: 5610 | E39: 0.05138539043 | F39: 3.192942516 | I39: 5250 - Interior trim labor | K39: 629.1 | L39: 0.004169759796 | M39: 0.2657794677 | P39: 1112 Engineering Fees | R39: 740 | S39: 0.007254901961 | T39: 0.4881266491 | W39: 5540 - Carpet | Y39: 1836 | Z39: 0.01382102689 | AA39: 0.8801534036 | AD39: 5700 - HVAC—final | AF39: 4500 | AG39: 0.045 | AH39: 3.879310345 | AK39: Kevin Martin | AL39: =AF46 -> 7800 | AM39: =AG46 -> 0.078 | AN39: 6.724137931 | AR39: Finish | AT39: 10600 | AU39: 0.09330985915 | AV39: 4.818181818 | AZ39: 5630 - Appliances | BB39: 2500 | BC39: 0.02001473084 | BD39: 1.19047619 | BY39: 5620 | BZ39: Shower doors and mirrors | CB39: 1650 | CC39: 0.008220693229 | CD39: 0.8180466039 | CG39: 5730 | CH39: Electrical—final | CJ39: 9100 | CK39: 0.06476868327 | CL39: 3.5 | CN39: 5730 | CO39: Electrical—final | CP39: 9800 | CQ39: 0.06542056075 | CR39: 3.5 | CU39: 5400 | CV39: Cabinets and vanities | CW39: 5800 | CX39: 0.05323054332 | CY39: 3.411764706 | DB39: 5201 | DC39: Door HW & Lock Sets | DD39: 2400 | DE39: 0.02253521127 | DF39: 1.815431165 | DI39: 5300 | DJ39: Painting—interior | DK39: 2000 | DL39: 0.01694915254 | DM39: 1.512859304 | DP39: 6310 | DQ39: Drives & Walks Concrete | DR39: 2500 | DS39: 0.02005969766 | DT39: 1.5625
B40: 5200 - Interior trim material | D40: 110 | E40: 0.001007556675 | F40: 0.06260671599 | I40: 5300 - Painting—interior | K40: 675 | L40: =K40/$K$60 -> 0.004473991198 | M40: 0.2851711027 | W40: 5610 - Hardware | Y40: 600 | Z40: 0.004516675453 | AA40: 0.2876318313 | AD40: 5710 - Plumbing—final | AF40: 6500 | AG40: 0.065 | AH40: 5.603448276 | AK40: Star | AL40: =Y51 -> 13643.83 | AM40: =Z51 -> 0.1027079201 | AN40: 6.540661553 | AR40: 3401 Soffit and Facia | AT40: 2600 | AU40: 0.02288732394 | AV40: 1.181818182 | AZ40: 5700 - HVAC—final | BB40: 3250 | BC40: 0.02601915009 | BD40: 1.547619048 | BY40: 5621 | BZ40: Specialities | CB40: 1415 | CC40: 0.007049867223 | CD40: 0.701536936 | CG40: 6000 - 6999 Completion and Inspection | CJ40: =SUM(CJ41:CJ45) -> 19400 | CK40: 0.1380782918 | CL40: 7.461538462 | CN40: 6000 - 6999 Completion and Inspection | CP40: =SUM(CP41:CP45) -> 19400 | CQ40: 0.129506008 | CR40: 6.928571429 | CU40: 5510 | CV40: Ceramic tile | CW40: 3000 | CX40: 0.02753303965 | CY40: 1.764705882 | DB40: 5300 | DC40: Painting—interior | DD40: 2000 | DE40: 0.01877934272 | DF40: 1.512859304 | DI40: 5510 | DJ40: Ceramic tile | DK40: 3000 | DL40: 0.02542372881 | DM40: =DK40/$CP$5 -> 1.071428571 | DP40: 6600 | DQ40: Landscaping | DR40: 3000 | DS40: 0.02407163719 | DT40: 1.875
B41: 5250 - Interior trim labor | D41: 512.6 | E41: 0.004695214106 | F41: 0.2917472965 | I41: 5400 - Cabinets and vanities | K41: 2338.88 | L41: 0.01550241264 | M41: 0.9881199831 | P41: TOTALS: | R41: 102000 | S41: =SUM(S8:S39)-100% -> 1 | T41: =SUM(T8:T39)/2 -> 67.2823219 | W41: 5620 - Shower doors and mirrors | Y41: 1010 | Z41: 0.007603070346 | AA41: 0.4841802493 | AD41: 5720 - Electrical fixtures | AF41: 500 | AG41: 0.005 | AH41: 0.4310344828 | AK41: Plemons + PrestWood | AL41: =AVERAGE(R32) -> 7389.04 | AM41: =AVERAGE(S32) -> 0.07244156863 | AN41: =AVERAGE(T32) -> 4.874036939 | AR41: 5350 Painting - TK | AT41: 3600 | AU41: 0.03169014085 | AV41: 1.636363636 | AZ41: 5710 - Plumbing—final | BB41: 2500 | BC41: 0.02001473084 | BD41: 1.19047619 | BY41: 5630 | BZ41: Appliances | CB41: 2535 | CC41: 0.01262997414 | CD41: 1.256817055 | CG41: 6300 | CH41: Driveways | CJ41: 3500 | CK41: 0.02491103203 | CL41: 1.346153846 | CN41: 6300 | CO41: Driveways | CP41: 3500 | CQ41: 0.02336448598 | CR41: 1.25 | CU41: 5540 | CV41: Carpet | CW41: 800 | CX41: 0.007342143906 | CY41: 0.4705882353 | DB41: 5530 | DC41: Vinyl | DD41: 3400 | DE41: 0.03192488263 | DF41: 2.571860817 | DI41: 5530 | DJ41: Vinyl | DK41: 3400 | DL41: 0.02881355932 | DM41: 2.571860817 | DP41: 7005 | DQ41: Cabinet Options | DR41: 5100 | DS41: 0.04092178323 | DT41: 3.1875
B42: 5300 - Painting—interior | D42: 550 | E42: 0.005037783375 | F42: 0.31303358 | I42: 5450 - Countertops | K42: 669.18 | L42: 0.004435415452 | M42: 0.282712294 | W42: 5630 - Appliances | Y42: 4400 | Z42: 0.03312228665 | AA42: 2.109300096 | AD42: 5730 - Electrical—final | AF42: 5300 | AG42: 0.053 | AH42: 4.568965517 | AK42: Rough | AL42: =AVERAGE(AL43:AL46) -> 10521.16667 | AM42: =AVERAGE(AM43:AM46) -> 0.0945928717 | AN42: =AVERAGE(AN43:AN46) -> 6.817060257 | AR42: 7020 Tile Floor Options | AT42: 2600 | AU42: 0.02288732394 | AV42: 1.181818182 | AZ42: 5720 - Electrical fixtures | BB42: 1200 | BC42: 0.009607070804 | BD42: 0.5714285714 | BY42: 5700 | BZ42: HVAC—final | CB42: 195 | CC42: 0.0009715364725 | CD42: 0.096678235 | CG42: 6600 | CH42: Landscaping | CJ42: 3700 | CK42: 0.02633451957 | CL42: 1.423076923 | CN42: 6600 | CO42: Landscaping | CP42: 3700 | CQ42: 0.02469959947 | CR42: 1.321428571 | CU42: 5620 | CV42: Shower doors and mirrors | CW42: 1075 | CX42: 0.009866005874 | CY42: 0.6323529412 | DB42: 5620 | DC42: Shower doors and mirrors | DD42: 700 | DE42: 0.006572769953 | DF42: 0.5295007564 | DI42: 5620 | DJ42: Shower doors and mirrors | DK42: 300 | DL42: 0.002542372881 | DM42: 0.2269288956 | DP42: 7010 | DQ42: Countertop Options | DR42: 1700 | DS42: 0.01364059441 | DT42: 1.0625
B43: 5400 - Cabinets and vanities | D43: 1905.75 | E43: 0.0174559194 | F43: 1.084661355 | I43: 5510 - Ceramic tile | K43: 5535 | L43: 0.03668672782 | M43: 2.338403042 | W43: 5700 - HVAC—final | Y43: 3250 | Z43: 0.02446532537 | AA43: 1.558005753 | AD43: 6000 - 6999 Completion and Inspection | AF43: 2000 | AG43: 0.02 | AH43: 1.724137931 | AK43: KCV | AR43: 7030 Carpet Options | AT43: 1800 | AU43: 0.01584507042 | AV43: 0.8181818182 | AZ43: 5730 - Electrical—final | BB43: 1136.4 | BC43: 0.009097896051 | BD43: 0.5411428571 | BY43: 5711 | BZ43: Plumb. Fixtures | CB43: 2630 | CC43: 0.01310328678 | CD43: 1.303916708 | CG43: 7015 | CH43: Appliance Options | CJ43: 1200 | CK43: 0.008540925267 | CL43: 0.4615384615 | CN43: 7015 | CO43: Appliance Options | CP43: 1200 | CQ43: 0.008010680908 | CR43: 0.4285714286 | CU43: 5630 | CV43: Appliances | CW43: 3500 | CX43: 0.03212187959 | CY43: 2.058823529 | DB43: 5630 | DC43: Appliances | DD43: 2400 | DE43: 0.02253521127 | DF43: 1.815431165 | DI43: 5630 | DJ43: Appliances | DK43: 2400 | DL43: 0.02033898305 | DM43: 1.815431165 | DP43: 7060 | DQ43: Interior Trim Options | DR43: 4500 | DS43: 0.03610745579 | DT43: 2.8125
B44: 5450 - Countertops | D44: 545.26 | E44: 0.004994366842 | F44: 0.3103357997 | I44: 5700 - HVAC—final | K44: 3375 | L44: 0.02236995599 | M44: 1.425855513 | W44: 5710 - Plumbing—final | Y44: 2500 | Z44: 0.01881948105 | AA44: 1.198465964 | AD44: 6200 - Final grade | AF44: 500 | AG44: 0.005 | AH44: 0.4310344828 | AK44: Kevin Martin | AL44: =AF51 -> 8900 | AM44: =AG51 -> 0.089 | AN44: 7.672413793 | AR44: Site | AT44: 8400 | AU44: 0.07394366197 | AV44: 3.818181818 | AZ44: 5890 - Special finishes | BB44: 200 | BC44: 0.001601178467 | BD44: 0.09523809524 | BY44: 5720 | BZ44: Electrical fixtures | CB44: 3730 | CC44: 0.01858374894 | CD44: 1.849281111 | CG44: 7055 | CH44: HVAC Options | CJ44: 6500 | CK44: 0.0462633452 | CL44: 2.5 | CN44: 7055 | CO44: HVAC Options | CP44: 6500 | CQ44: 0.04339118825 | CR44: 2.321428571 | CU44: 6000 - 6999 Completion and Inspection | CW44: =SUM(CW45:CW50) -> 8500 | CX44: 0.078010279 | CY44: 5 | DB44: 5700 | DC44: HVAC—final | DD44: 4250 | DE44: 0.03990610329 | DF44: 3.214826021 | DI44: 5700 | DJ44: HVAC—final | DK44: 4250 | DL44: 0.03601694915 | DM44: 3.214826021
B45: 5510 - Ceramic tile | D45: 4510 | E45: 0.04130982368 | F45: 2.566875356 | I45: 5710 - Plumbing—final | K45: 2295 | L45: 0.01521157007 | M45: 0.969581749 | W45: 5720 - Electrical fixtures | Y45: 1200 | Z45: 0.009033350906 | AA45: 0.5752636625 | AD45: 6490 - Fences | AF45: 1500 | AG45: 0.015 | AH45: 1.293103448 | AK45: Star | AL45: =Y57 -> 12043.5 | AM45: =Z57 -> 0.09066096803 | AN45: 5.773489933 | AR45: 1112 Engineering Fees | AT45: 900 | AU45: 0.007922535211 | AV45: 0.4090909091 | AZ45: 6000 - 6999 Completion and Inspection | BB45: 2650 | BC45: 0.02121561469 | BD45: 1.261904762 | BY45: 6000 - 6999 Completion and Inspection | CB45: =SUM(CB46:CB50) -> 20740 | CC45: 0.1033316228 | CD45: 10.28259792 | CG45: 7060 | CH45: Interior Trim Options | CJ45: 4500 | CK45: 0.03202846975 | CL45: 1.730769231 | CN45: 7060 | CO45: Interior Trim Options | CP45: 4500 | CQ45: 0.0300400534 | CR45: 1.607142857 | CU45: 6100 | CV45: Clean-up | CW45: 500 | CX45: 0.004588839941 | CY45: 0.2941176471 | DB45: 5710 | DC45: Plumbing—final | DD45: 5685 | DE45: 0.05338028169 | DF45: 4.300302572 | DI45: 5710 | DJ45: Plumbing—final | DK45: 6500 | DL45: 0.05508474576 | DM45: 4.916792738 | DP45: TOTALS: | DR45: =SUM(DR8:DR43)/2 -> 124628 | DS45: =SUM(DS8:DS43)/2 -> 1 | DT45: =SUM(DT8:DT43)/2 -> 77.8925
B46: 5700 - HVAC—final | D46: 2750 | E46: 0.02518891688 | F46: 1.5651679 | I46: 5720 - Electrical fixtures | K46: 1350 | L46: 0.008947982396 | M46: 0.5703422053 | W46: 5730 - Electrical—final | Y46: 1136.4 | Z46: 0.008554583308 | AA46: 0.5447746884 | AD46: Finish | AF46: 7800 | AG46: 0.078 | AH46: 6.724137931 | AK46: Plemons + PrestWood | AL46: =AVERAGE(R36) -> 10620 | AM46: =AVERAGE(S36) -> 0.1041176471 | AN46: =AVERAGE(T36) -> 7.005277045 | AR46: 1430 Utility Meter/Conn Fee | AT46: 7500 | AU46: 0.06602112676 | AV46: 3.409090909 | AZ46: 6100 - Clean-up | BB46: 400 | BC46: 0.003202356935 | BD46: 0.1904761905 | BY46: 6310 | BZ46: Drives & Walks Concrete | CB46: 10195 | CC46: 0.05079391968 | CD46: 5.05453644 | CU46: 6200 | CV46: Final grade | CW46: 1500 | CX46: 0.01376651982 | CY46: 0.8823529412 | DB46: 5890 | DC46: Special finishes | DD46: 400 | DE46: 0.003755868545 | DF46: 0.3025718608 | DI46: 5890 | DJ46: Special finishes | DK46: 800 | DL46: 0.006779661017 | DM46: 0.6051437216
B47: 5710 - Plumbing—final | D47: 1870 | E47: 0.01712846348 | F47: 1.064314172 | I47: 5730 - Electrical—final | K47: 2970 | L47: 0.01968556127 | M47: 1.254752852 | W47: 5890 - Special finishes | Y47: 200 | Z47: 0.001505558484 | AA47: 0.09587727709 | AD47: 3401 Soffit and Facia | AF47: 2200 | AG47: 0.022 | AH47: 1.896551724 | AK47: Site | AL47: =AVERAGE(AL48:AL51) -> 4166.6575 | AM47: =AVERAGE(AM48:AM51) -> 0.03418929438 | AN47: =AVERAGE(AN48:AN51) -> 2.390217748 | AZ47: 6600 - Landscaping | BB47: 2250 | BC47: 0.01801325776 | BD47: 1.071428571 | BY47: 6450 | BZ47: Decks | CB47: 2385 | CC47: 0.01188263839 | CD47: 1.182449182 | CG47: TOTALS: | CJ47: =SUM(CJ8:CJ45)/2 -> 140500 | CK47: =SUM(CK8:CK45)/2 -> 1 | CL47: =SUM(CL8:CL45)/2 -> 54.03846154 | CN47: TOTALS: | CP47: =SUM(CP8:CP45)/2 -> 149800 | CQ47: =SUM(CQ8:CQ45)/2 -> 1 | CR47: 53.5 | CU47: 6300 | CV47: Driveways | CW47: 1800 | CX47: 0.01651982379 | CY47: 1.058823529 | DB47: 6000 - 6999 Completion and Inspection | DD47: =SUM(DD48:DD55) -> 12000 | DE47: 0.1126760563 | DF47: 9.077155825 | DI47: 6000 - 6999 Completion and Inspection | DK47: =SUM(DK48:DK55) -> 15115 | DL47: 0.1280932203 | DM47: 11.43343419
B48: 5720 - Electrical fixtures | D48: 1100 | E48: 0.01007556675 | F48: 0.6260671599 | I48: 5890 - Special finishes | K48: 616.95 | L48: 0.004089227955 | M48: 0.2606463878 | W48: 6000 - 6999 Completion and Inspection | Y48: 2650 | Z48: 0.01994864992 | AA48: 1.270373921 | AD48: 5550 Wood Flooring | AF48: 3600 | AG48: 0.036 | AH48: 3.103448276 | AK48: KCV | AL48: =AVERAGE(D57,K55) -> 1796.63 | AM48: =AVERAGE(E57,L55) -> 0.01395031748 | AN48: =AVERAGE(F57,M55) -> 0.8773489325 | AR48: TOTALS: | AT48: 113600 | AU48: 1 | AV48: 51.63636364 | AZ48: Finish | BB48: 12220 | BC48: 0.09783200436 | BD48: 5.819047619 | BY48: 6510 | BZ48: Mailboxes | CB48: 60 | CC48: 0.0002989342992 | CD48: 0.02974714923 | CU48: 6490 | CV48: Fences | CW48: 2000 | CX48: 0.01835535977 | CY48: 1.176470588 | DB48: 6101 | DC48: All Cleaning | DD48: 400 | DE48: 0.003755868545 | DF48: 0.3025718608 | DI48: 6101 | DJ48: All Cleaning | DK48: 400 | DL48: 0.003389830508 | DM48: 0.3025718608
B49: 5730 - Electrical—final | D49: 2420 | E49: 0.02216624685 | F49: 1.377347752 | I49: 6000 - 6999 Completion and Inspection | K49: 4257.5 | L49: 0.02821928522 | M49: 1.798690325 | W49: 6100 - Clean-up | Y49: 400 | Z49: 0.003011116969 | AA49: 0.1917545542 | AD49: 5621 Specialities | AF49: 700 | AG49: 0.007 | AH49: 0.6034482759 | AK49: Kevin Martin | AL49: =AF57 -> 3715 | AM49: =AG57 -> 0.03715 | AN49: 3.202586207 | AZ49: 3401 Soffit and Facia | BB49: 1100 | BC49: 0.00880648157 | BD49: 0.5238095238 | BY49: 6600 | BZ49: Landscaping | CB49: 6750 | CC49: 0.03363010866 | CD49: 3.346554289 | CU49: 6600 | CV49: Landscaping | CW49: 1500 | CX49: 0.01376651982 | CY49: 0.8823529412 | DB49: 6200 | DC49: Final grade | DD49: 600 | DE49: 0.005633802817 | DF49: 0.4538577912 | DI49: 6200 | DJ49: Final grade | DK49: 1230 | DL49: 0.01042372881 | DM49: 0.930408472
B50: 5890 - Special finishes | D50: 502.7 | E50: 0.004604534005 | F50: 0.2861126921 | I50: 6100 - Clean-up | K50: 337.5 | L50: 0.002236995599 | M50: 0.1425855513 | W50: 6600 - Landscaping | Y50: 2250 | Z50: 0.01693753295 | AA50: 1.078619367 | AD50: 6310 Drives &amp; Walks Concrete | AF50: 1300 | AG50: 0.013 | AH50: 1.120689655 | AK50: Star | AL50: =Y64 -> 10415 | AM50: =Z64 -> 0.07840195807 | AN50: 4.992809204 | AZ50: 5101 Drywall Material | BB50: 2500 | BC50: 0.02001473084 | BD50: 1.19047619 | BY50: 6720 | BZ50: Screen Lanai | CB50: 1350 | CC50: 0.006726021733 | CD50: 0.6693108577 | CU50: 6720 | CV50: Screen Lanai | CW50: 1200 | CX50: 0.01101321586 | CY50: 0.7058823529 | DB50: 6310 | DC50: Drives & Walks Concrete | DD50: 2200 | DE50: 0.020657277 | DF50: 1.664145234 | DI50: 6310 | DJ50: Drives & Walks Concrete | DK50: 4000 | DL50: 0.03389830508 | DM50: 3.025718608
B51: 6000 - 6999 Completion and Inspection | D51: 2755 | E51: 0.02523471491 | F51: 1.56801366 | I51: 6300 - Driveways | K51: 2520 | L51: 0.01670290047 | M51: 1.064638783 | W51: Finish | Y51: 13643.83 | Z51: 0.1027079201 | AA51: =SUM(AA52:AA56) -> 6.540661553 | AD51: Rough | AF51: 8900 | AG51: 0.089 | AH51: 7.672413793 | AK51: Plemons + PrestWood | AL51: =AVERAGE(R38) -> 740 | AM51: =AVERAGE(S38) -> 0.007254901961 | AN51: =AVERAGE(T38) -> 0.4881266491 | AZ51: 5350 Painting - TK | BB51: 2200 | BC51: 0.01761296314 | BD51: 1.047619048 | DB51: 6490 | DC51: Fences | DD51: 1800 | DE51: 0.01690140845 | DF51: 1.361573374 | DI51: 6490 | DJ51: Fences | DK51: 2485 | DL51: 0.02105932203 | DM51: 1.879727685
B52: 6100 - Clean-up | D52: 275 | E52: 0.002518891688 | F52: 0.15651679 | I52: 6600 - Landscaping | K52: 1400 | L52: 0.009279389151 | M52: 0.5914659907 | W52: 3401 Soffit and Facia | Y52: 1100 | Z52: 0.008280571664 | AA52: 0.527325024 | AD52: 2115 Stem Wall Concrete (PM) | AF52: 1500 | AG52: 0.015 | AH52: 1.293103448 | AZ52: 5512 Tile-Floor | BB52: 4000 | BC52: 0.03202356935 | BD52: 1.904761905 | BY52: TOTALS: | CB52: =SUM(CB8:CB50)/2 -> 200713 | CC52: =SUM(CC8:CC50)/2 -> 1 | CD52: =SUM(CD8:CD50)/2 -> 99.5106594 | CU52: TOTALS: | CW52: =SUM(CW6:CW50)/2 -> 108960 | CX52: =SUM(CX7:CX50)/2 -> 1 | CY52: =SUM(CY7:CY50)/2 -> 64.09411765 | DB52: 6600 | DC52: Landscaping | DD52: 1200 | DE52: 0.01126760563 | DF52: 0.9077155825 | DI52: 6600 | DJ52: Landscaping | DK52: 1200 | DL52: 0.01016949153 | DM52: 0.9077155825
B53: 6300 - Driveways | D53: 1980 | E53: 0.01813602015 | F53: 1.126920888 | I53: Finish | K53: 3577.5 | L53: 0.02371215335 | M53: 1.511406844 | W53: 5101 Drywall Material | Y53: 2500 | Z53: 0.01881948105 | AA53: 1.198465964 | AD53: 3101 Hurricane Tie Downs | AF53: 1200 | AG53: 0.012 | AH53: 1.034482759 | AK53: Totals | AL53: =AVERAGE(AL54:AL57) -> 115616.645 | AM53: =AVERAGE(AM54:AM57) -> 0.9945088349 | AN53: =AVERAGE(AN54:AN57) -> 69.68626198 | AZ53: 6101 All Cleaning | BB53: 720 | BC53: 0.005764242482 | BD53: 0.3428571429 | DB53: 7005 | DC53: Cabinet Options | DD53: 3000 | DE53: 0.02816901408 | DF53: 2.269288956 | DI53: 7005 | DJ53: Cabinet Options | DK53: 3000 | DL53: 0.02542372881 | DM53: 2.269288956
B54: 6600 - Landscaping | D54: 500 | E54: 0.004579803068 | F54: 0.2845759818 | I54: 4210 Stucco | K54: 3577.5 | L54: 0.02371215335 | M54: 1.511406844 | W54: 5350 Painting - TK | Y54: 2343.82 | Z54: 0.01764379043 | AA54: 1.123595398 | AD54: 3141 Roof Trusess | AF54: 2800 | AG54: 0.028 | AH54: 2.413793103 | AK54: KCV | AL54: =SUM(AL8,AL13,AL18,AL23,AL28,AL33,AL38,AL48) -> 127625.5 | AM54: =SUM(AM8,AM13,AM18,AM23,AM28,AM33,AM38,AM48) -> 0.9780352645 | AN54: =SUM(AN8,AN13,AN18,AN23,AN28,AN33,AN38,AN48) -> 61.57363389 | AZ54: 6350 Brick Pavers Drives &amp; Wal | BB54: 1700 | BC54: 0.01361001697 | BD54: 0.8095238095 | DB54: 7010 | DC54: Countertop Options | DD54: 2000 | DE54: 0.01877934272 | DF54: 1.512859304 | DI54: 7010 | DJ54: Countertop Options | DK54: 2000 | DL54: 0.01694915254 | DM54: 1.512859304
B55: Finish | D55: 2915 | E55: 0.02670025189 | F55: 1.659077974 | I55: Site | K55: 1979.96 | L55: 0.01312344239 | M55: 0.8364850021 | W55: 5512 Tile-Floor | Y55: 6000 | Z55: 0.04516675453 | AA55: 2.876318313 | AD55: 3301 House Wrap | AF55: 400 | AG55: 0.004 | AH55: 0.3448275862 | AK55: Kevin Martin | AL55: =AL9+AL14+AL19+AL24+AL29+AL34+AL39+AL44+AL49 -> 100000 | AM55: =AM9+AM14+AM19+AM24+AM29+AM34+AM39+AM44+AM49 -> 1 | AN55: 86.20689655 | AZ55: Rough | BB55: 11420.95 | BC55: 0.09143489608 | BD55: 5.438547619 | DB55: 7060 | DC55: Interior Trim Options | DD55: 800 | DE55: 0.007511737089 | DF55: 0.6051437216 | DI55: 7060 | DJ55: Interior Trim Options | DK55: 800 | DL55: 0.006779661017 | DM55: 0.6051437216
B56: 4210 Stucco | D56: 2915 | E56: 0.02670025189 | F56: 1.659077974 | I56: 1112 Engineering Fees | K56: 607.5 | L56: 0.004026592078 | M56: 0.2566539924 | W56: 6350 Brick Pavers Drives &amp; Wal | Y56: 1700 | Z56: 0.01279724712 | AA56: 0.8149568552 | AD56: 4171 Roof Shingles | AF56: 3000 | AG56: 0.03 | AH56: 2.586206897 | AK56: Star | AL56: =SUM(AL10,AL15,AL20,AL25,AL30,AL35,AL40,AL45,AL50) -> 132841.08 | AM56: =SUM(AM10,AM15,AM20,AM25,AM30,AM35,AM40,AM45,AM50) -> 1.000000075 | AN56: 63.68219559 | AZ56: 2011 Plumb. Rough | BB56: 800 | BC56: 0.006404713869 | BD56: 0.380952381
B57: Site | D57: 1613.3 | E57: 0.01477719258 | F57: 0.9182128628 | I57: 1221 Soil/Compaction Tests | K57: 540 | L57: 0.003579192958 | M57: 0.2281368821 | W57: Rough | Y57: 12043.5 | Z57: 0.09066096803 | AA57: =SUM(AA58:AA63) -> 5.773489933 | AD57: Site | AF57: 3715 | AG57: 0.03715 | AH57: 3.202586207 | AK57: Plemons + PrestWood | AL57: =SUM(AL11,AL16,AL21,AL26,AL31,AL36,AL41,AL46,AL51) -> 102000 | AM57: =SUM(AM11,AM16,AM21,AM26,AM31,AM36,AM41,AM46,AM51) -> 1 | AN57: =SUM(AN11,AN16,AN21,AN26,AN31,AN36,AN41,AN46,AN51) -> 67.2823219 | AZ57: 2101 Mono Slab Labor | BB57: 2000 | BC57: 0.01601178467 | BD57: 0.9523809524 | DB57: TOTALS: | DD57: =SUM(DD8:DD55)/2 -> 106500 | DE57: =SUM(DE8:DE55)/2 -> 1 | DF57: =SUM(DF8:DF55)/2 -> 80.55975794 | DI57: TOTALS: | DK57: =SUM(DK8:DK55)/2 -> 118000 | DL57: =SUM(DL8:DL55)/2 -> 1 | DM57: =SUM(DM8:DM55)/2 -> 88.23928285
B58: 1112 Engineering Fees | D58: 495 | E58: 0.004534005038 | F58: 0.281730222 | I58: 1491 Portable Toilets | K58: 832.46 | L58: 0.005517657352 | M58: 0.3516941276 | W58: 2011 Plumb. Rough | Y58: 1500 | Z58: 0.01129168863 | AA58: 0.7190795781 | AD58: 1112 Engineering Fees | AF58: 985 | AG58: 0.00985 | AH58: 0.849137931 | AZ58: 2118 SW-Slab Concrete | BB58: 5200 | BC58: 0.04163064015 | BD58: 2.476190476
B59: 1221 Soil/Compaction Tests | D59: 440 | E59: 0.0040302267 | F59: 0.250426864 | W59: 2101 Mono Slab Labor | Y59: 1923 | Z59: 0.01447594483 | AA59: 0.9218600192 | AD59: 1221 Soil/Compaction Tests | AF59: 200 | AG59: 0.002 | AH59: 0.1724137931 | AZ59: 3101 Hurricane Tie Downs | BB59: 1420.95 | BC59: 0.01137597272 | BD59: 0.6766428571
B60: 1491 Portable Toilets | D60: 678.3 | E60: 0.006212960843 | F60: 0.3860557769 | I60: TOTALS: | K60: 150872 | L60: =SUM(L8:L58)-100% -> 1 | M60: =SUM(M8:M58)/2 -> 63.73975496 | W60: 2118 SW-Slab Concrete | Y60: 5200 | Z60: 0.03914452059 | AA60: 2.492809204 | AD60: 1491 Portable Toilets | AF60: 1350 | AG60: 0.0135 | AH60: 1.163793103 | AZ60: 3301 House Wrap | BB60: 500 | BC60: 0.004002946168 | BD60: 0.2380952381
W61: 3101 Hurricane Tie Downs | Y61: 1420.5 | Z61: 0.01069322913 | AA61: 0.6809683605 | AD61: 2001 Grading-Build Pad | AF61: 800 | AG61: 0.008 | AH61: 0.6896551724 | AZ61: 3721 Plumb. Topout | BB61: 1500 | BC61: 0.01200883851 | BD61: 0.7142857143
B62: TOTALS: | D62: 109175 | E62: =D62/$D$62 -> 1 | F62: 62.13716562 | W62: 3301 House Wrap | Y62: 500 | Z62: 0.003763896211 | AA62: 0.2396931927 | AD62: 6101 Dumpster | AF62: 380 | AG62: 0.0038 | AH62: 0.3275862069 | AZ62: Site | BB62: 12810.42 | BC62: 0.1025588433 | BD62: 6.1002
W63: 3721 Plumb. Topout | Y63: 1500 | Z63: 0.01129168863 | AA63: 0.7190795781 | AZ63: 1011 Impact Fees | BB63: 7500 | BC63: 0.06004419253 | BD63: 3.571428571
W64: Site | Y64: 10415 | Z64: 0.07840195807 | AA64: =SUM(AA65:AA71) -> 4.992809204 | AD64: TOTALS: | AF64: =SUM(AF8:AF62)/2 -> 100000 | AG64: =SUM(AG8:AG62)/2 -> 1 | AH64: =SUM(AH8:AH62)/2 -> 86.20689655 | AZ64: 1112 Engineering Fees | BB64: 800 | BC64: 0.006404713869 | BD64: 0.380952381
W65: 1011 Impact Fees | Y65: 7500 | Z65: 0.05645844316 | AA65: 3.595397891 | AZ65: 1121 Plot Plans | BB65: 350 | BC65: 0.002802062318 | BD65: 0.1666666667
W66: 1112 Engineering Fees | Y66: 800 | Z66: 0.006022233937 | AA66: 0.3835091083 | AZ66: 1123 Survey-Stake Out | BB66: 400 | BC66: 0.003202356935 | BD66: 0.1904761905
W67: 1121 Plot Plans | Y67: 285 | Z67: 0.00214542084 | AA67: 0.1366251198 | AZ67: 1430 Utility Meter/Conn Fee | BB67: 3510.42 | BC67: 0.02810404458 | BD67: 1.671628571
W68: 1123 Survey-Stake Out | Y68: 400 | Z68: 0.003011116969 | AA68: 0.1917545542 | AZ68: 2002 Grading-Backfill | BB68: 250 | BC68: 0.002001473084 | BD68: 0.119047619
W69: 1491 Portable Toilets | Y69: 460 | Z69: 0.003462784514 | AA69: 0.2205177373
W70: 2002 Grading-Backfill | Y70: 250 | Z70: 0.001881948105 | AA70: 0.1198465964 | AZ70: TOTALS: | BB70: 124908 | BC70: 1 | BD70: 59.48
W71: 6101 Dumpster | Y71: 720 | Z71: 0.005420010543 | AA71: 0.3451581975
W73: TOTALS: | Y73: =SUM(Y8:Y71)/2 -> 132841.07 | Z73: =SUM(Z8:Z71)/2 -> 1 | AA73: =SUM(AA8:AA71)/2 -> 63.68219559

Sheet Analysis
B2: A | C2: Avg SQ FT | D2: =AVERAGE(D4:D9) -> 119.7605946 | E2: B | F2: Avg SQ FT | G2: =AVERAGE(G4:G9) -> 80.46724151 | H2: C | I2: Avg SQ FT | J2: =AVERAGE(J4:J9) -> 68.60966788
B4: WATERWAY ISLAND | D4: 148.2463896 | E4: Pescado drive | G4: 70.63676541 | H4: Rock Drive | J4: 62.13716562
B5: 116 Laural Court | D5: 124.9219238 | E5: 52 Marshview Drive | G5: 86.92842942 | H5: Commander Way | J5: 63.73975496
B6: 255 Myra | D6: 86.11347047 | E6: 748 Viscaya | G6: 83.83652968 | H6: DayLilly Road | J6: 67.2823219
H7: PLANTATION OAKS | J7: 63.68220038
H8: Grasse Str 12157 | J8: 86.20689655
B9: 1000 - 1999 Preparation Preliminaries | C9: % Cost | D9: Avg SQ FT | E9: 1000 - 1999 Preparation Preliminaries | F9: % Cost | G9: Avg SQ FT | H9: 1000 - 1999 Preparation Preliminaries | I9: % Cost | J9: Avg SQ FT
B10: 46107.46333 | C10: 0.1267895739 | D10: 14.42230283 | E10: 31118.5 | F10: 0.154731035 | G10: 13.21131943 | H10: 14082.44375 | I10: 0.1199254863 | J10: 8.54160602
B11: 2000 - 2999 Excavation and Foundation | E11: 2000 - 2999 Excavation and Foundation | H11: 2000 - 2999 Excavation and Foundation
B12: 27440.12 | C12: 0.0617067615 | D12: 8.243148664 | E12: 200 | F12: 0.000980247571 | G12: 0.08394836461 | H12: 9962.493333 | I12: 0.07858485662 | J12: 5.242869129
B13: 3000 - 3999 Rough Structure | E13: 3000 - 3999 Rough Structure | H13: 3000 - 3999 Rough Structure
B14: 89213.50333 | C14: 0.232117658 | D14: 27.52969999 | E14: 39855.83 | F14: 0.1981758062 | G14: 16.92074172 | H14: 31318.62125 | I14: 0.2676916689 | J14: 18.51682437
B15: 4000 - 4999 Full Enclosure | E15: 4000 - 4999 Full Enclosure | H15: 4000 - 4999 Full Enclosure
B16: 47531.5 | C16: 0.1122079355 | D16: 14.5270321 | E16: 21900.345 | F16: 0.1088954496 | G16: 9.297763497 | H16: 7700.4575 | I16: 0.06340225924 | J16: 4.265708321
B17: 5000 - 5999 Finishing Trades | E17: 5000 - 5999 Finishing Trades | H17: 5000 - 5999 Finishing Trades
B18: 98774.17667 | C18: 0.2701795353 | D18: 30.79666468 | E18: 45328.825 | F18: 0.2253892702 | G18: 19.24429476 | H18: 32564.3775 | I18: 0.289605073 | J18: 20.58735671
B19: 6000 - 6999 Completion and Inspection | E19: 6000 - 6999 Completion and Inspection | H19: 6000 - 6999 Completion and Inspection
B20: 19031.36667 | C20: 0.04960649442 | D20: 5.921430963 | E20: 7435 | F20: 0.03696917412 | G20: 3.156519754 | H20: 2401.5625 | I20: 0.02022283406 | J20: 1.408582056
B21: Finish | E21: Finish | H21: Finish
B22: 36385.13333 | C22: 0.09274988363 | D22: 11.31372926 | E22: 36010 | F22: 0.1772297651 | G22: 15.16468994 | H22: 8019.78 | I22: 0.06958892283 | J22: 4.931019708
B23: Rough | E23: Rough | H23: Rough
B24: 5375.26 | C24: 0.0240216652 | D24: 2.628737236 | E24: 16164 | F24: 0.08537706623 | G24: 7.200851512 | H24: 10521.16667 | I24: 0.0945928717 | J24: 6.817060257
B25: Site | E25: Site | H25: Site
B26: 17656.81 | C26: 0.03783732597 | D26: 5.279389607 | E26: 3101 | F26: 0.01541915386 | G26: 1.316525589 | H26: 4166.6575 | I26: 0.03418929438 | J26: 2.390217748
B28: Condensed Version | C28: A | D28: =D2 -> 119.7605946 | E28: Condensed Version | F28: B | G28: =G2 -> 80.46724151 | H28: Condensed Version | I28: C | J28: =J2 -> 68.60966788
B29: 1000 - 1999 Preparation Preliminaries | C29: % Cost | D29: Avg SQ FT | E29: 1000 - 1999 Preparation Preliminaries | F29: % Cost | G29: Avg SQ FT | H29: 1000 - 1999 Preparation Preliminaries | I29: % Cost | J29: Avg SQ FT
B30: 46107.46333 | C30: 0.1267895739 | D30: 14.42230283 | E30: 31118.5 | F30: 0.154731035 | G30: 13.21131943 | H30: 14082.44375 | I30: 0.1199254863 | J30: 8.54160602
B31: 2000 - 2999 Excavation and Foundation + Site | E31: 2000 - 2999 Excavation and Foundation + Site | H31: 2000 - 2999 Excavation and Foundation + Site
B32: =B26+B12 -> 45096.93 | C32: 0.09954408747 | D32: 13.52253827 | E32: 3301 | F32: 0.01639940143 | G32: =G26+G12 -> 1.400473954 | H32: 14129.15083 | I32: 0.112774151 | J32: 7.633086877
B33: 3000 - 3999 Rough Structure + Rough | E33: 3000 - 3999 Rough Structure + Rough | H33: 3000 - 3999 Rough Structure + Rough
B34: =B24+B14 -> 94588.76333 | C34: 0.2561393232 | D34: 30.15843723 | E34: 56019.83 | F34: 0.2835528724 | G34: 24.12159323 | H34: 41839.78792 | I34: 0.3622845406 | J34: 25.33388463
B35: 4000 - 4999 Full Enclosure | E35: 4000 - 4999 Full Enclosure | H35: 4000 - 4999 Full Enclosure
B36: 47531.5 | C36: 0.1122079355 | D36: 14.5270321 | E36: 21900.345 | F36: 0.1088954496 | G36: 9.297763497 | H36: 7700.4575 | I36: 0.06340225924 | J36: 4.265708321
B37: 5000 - 5999 Finishing Trades + Finish | E37: 5000 - 5999 Finishing Trades + Finish | H37: 5000 - 5999 Finishing Trades + Finish
B38: =B22+B18 -> 135159.31 | C38: 0.3629294189 | D38: 42.11039394 | E38: 81338.825 | F38: 0.4026190354 | G38: 34.4089847 | H38: 40584.1575 | I38: 0.3591939958 | J38: 25.51837642
B39: 6000 - 6999 Completion and Inspection | E39: 6000 - 6999 Completion and Inspection | H39: 6000 - 6999 Completion and Inspection
B40: 19031.36667 | C40: 0.04960649442 | D40: 5.921430963 | E40: 7435 | F40: 0.03696917412 | G40: 3.156519754 | H40: 2401.5625 | I40: 0.02022283406 | J40: 1.408582056
B42: STOP
B48: 1000 - 1999 Preparation Preliminaries | C48: % Cost | D48: Avg SQ FT | E48: 1000 - 1999 Preparation Preliminaries | F48: % Cost | G48: Avg SQ FT | H48: 1000 - 1999 Preparation Preliminaries | I48: % Cost | J48: Avg SQ FT
B49: =B10 -> 46107.46333 | C49: =C10 -> 0.1267895739 | D49: 14.42230283 | E49: 31118.5 | F49: 0.154731035 | G49: 13.21131943 | H49: 14082.44375 | I49: 0.1199254863 | J49: 8.54160602
B50: 1000- Administrative | C50: =A!R10/3 -> 0.02483333333 | D50: =A!S10/3 -> 3.102227774 | E50: 1000- Administrative | F50: 0 | G50: 0 | H50: 1000- Administrative | I50: =AVERAGE('C'!E10,'C'!L9,0,0,0) -> 0.005400098811 | J50: =AVERAGE('C'!F10,'C'!M9,0,0,0) -> 0.3415690147
B51: 1001- Mainsail | C51: 0 | D51: 0 | E51: 1001- Mainsail | F51: =AVERAGE(B!E7,B!K7,B!K8) -> 0.005340832617 | G51: =AVERAGE(B!F7,B!L7,B!L8) -> 0.3772591406 | H51: 1001- Mainsail | I51: 0 | J51: 0
B52: 1002- LIP ADJ | C52: =AVERAGE(A!E10,A!K10,)/3 -> 0.005188209283 | D52: =AVERAGE(A!F10,A!L10,)/3 -> 0.4548578881 | E52: 1002- LIP ADJ | F52: =AVERAGE(B!E8,B!K7,B!K8) -> 0.0006795101452 | G52: =AVERAGE(B!F8,B!L7,B!L8) -> 0.04799839872 | H52: 1002- LIP ADJ | I52: =AVERAGE('C'!E11,'C'!S9,'C'!S10,0,0) -> 0.00320315746 | J52: =AVERAGE('C'!F11,'C'!T9,'C'!T10,0,0) -> 0.214722808
B53: 1003-Contingency | C53: =AVERAGE(A!E11,A!R12,A!R12) -> 0.02319416832 | D53: =AVERAGE(A!F11,A!S12,A!S12) -> 3.438451714 | E53: 1003-Contingency | F53: 0 | G53: 0 | H53: 1003-Contingency | I53: 0 | J53: 0
B54: 1004-Direct Cost of Lot | C54: =AVERAGE(A!K13)/3 -> 0.0006421469284 | D54: =AVERAGE(A!L13)/3 -> 0.05529750055 | E54: 1004-Direct Cost of Lot | F54: =AVERAGE(B!E9,B!K7,B!K8) -> 0.003778204866 | G54: =AVERAGE(B!F9,B!L7,B!L8) -> 0.2668801708 | H54: 1004-Direct Cost of Lot | I54: 0 | J54: 0
B55: 1005-Misc.Rental Equip Charges | C55: =0 -> 0 | D55: =0 -> 0 | E55: 1005-Misc.Rental Equip Charges | F55: =AVERAGE(B!E10,B!K7,B!K8) -> 0.0005780653445 | G55: =AVERAGE(B!F10,B!L7,B!L8) -> 0.04083266613 | H55: 1005-Misc.Rental Equip Charges | I55: 0
B56: 1009- Insurance | C56: 0 | D56: 0 | E56: 1009- Insurance | F56: 0 | G56: 0 | H56: 1009- Insurance | I56: =AVERAGE('C'!AG9,0,0,0,0) -> 0.0012 | J56: =AVERAGE('C'!AH9,0,0,0,0) -> 0.1034482759
B57: 1010 - Building permits | C57: =AVERAGE(A!E12,A!K14,A!R13) -> 0.00848752783 | D57: =AVERAGE(A!F12,A!L14,A!S13) -> 0.9469335074 | E57: 1010 - Building permits | F57: =AVERAGE(B!K9,B!W7,B!K7) -> 0.06666887016 | G57: =AVERAGE(B!L9,B!X7,B!L7) -> 5.704005798 | H57: 1010 - Building permits | I57: =AVERAGE('C'!E12,'C'!L10,'C'!S11,'C'!Z9,'C'!AG10) -> 0.04855259413 | J57: =AVERAGE('C'!F12,'C'!M10,'C'!T11,'C'!AA9,'C'!AH10) -> 3.144083139
B58: 1030 - Warranty fees | C58: =AVERAGE(A!R14,A!K15,A!R11) -> 0.007615385386 | D58: =AVERAGE(A!S14,A!L15,A!S11) -> 0.8003089745 | E58: 1030 - Warranty fees | F58: =AVERAGE(B!W8,B!K8,B!K7) -> 0.001078419625 | G58: =AVERAGE(B!X8,B!L8,B!L7) -> 0.0904109589 | H58: 1030 - Warranty fees | I58: =AVERAGE('C'!L11,'C'!E13,0,0,0) -> 0.002020117727 | J58: =AVERAGE('C'!M11,'C'!F13,0,0,0) -> 0.1270472916
B59: 1110 - Blueprints | C59: =AVERAGE(A!R15,A!K16,A!E13) -> 0.004052147284 | D59: =AVERAGE(A!S15,A!L16,A!F13) -> 0.4968591269 | E59: 1110 - Blueprints | F59: =AVERAGE(B!W9,B!K7,B!K8) -> 0.0009858280411 | G59: =AVERAGE(B!X9,B!L7,B!L8) -> 0.08264840183 | H59: 1110 - Blueprints | I59: =AVERAGE('C'!Z10,'C'!AG11,0,0,0) -> 0.004068946524 | J59: =AVERAGE('C'!AA10,'C'!AH11,0,0,0) -> 0.3266935564
B60: 1120 - Surveys | C60: =AVERAGE(A!K17,A!R16,A!R11) -> 0.00154312434 | D60: =AVERAGE(A!L17,A!S16,A!S11) -> 0.1603731134 | E60: 1120 - Surveys | F60: =AVERAGE(B!K10,B!W10,B!K7) -> 0.003116785785 | G60: =AVERAGE(B!L10,B!X10,B!L7) -> 0.2674289121 | H60: 1120 - Surveys | I60: =AVERAGE('C'!AG12,'C'!L12,'C'!E14,0,0) -> 0.007443767863 | J60: =AVERAGE('C'!AH12,'C'!M12,'C'!F14,0,0) -> 0.5707358433
B61: 1210 - Lot clearing | C61: 0 | D61: 0 | E61: 1210 - Lot clearing | F61: =AVERAGE(B!W11,B!K11,B!K8) -> 0.01517632935 | G61: =AVERAGE(B!X11,B!L11,B!L8) -> 1.291187426 | H61: 1210 - Lot clearing | I61: =AVERAGE('C'!E15,'C'!L13,'C'!S12,'C'!Z11,'C'!AG13) -> 0.0164700957 | J61: =AVERAGE('C'!F15,'C'!M13,'C'!T12,'C'!AA11,'C'!AH13) -> 1.091991862
B62: 1220 - Fill dirt and material | C62: =AVERAGE(A!K18,A!Q11,A!Q12) -> 0.003526670931 | D62: =AVERAGE(A!L18,A!R11,A!R12) -> 0.303693873 | E62: 1220 - Fill dirt and material | F62: =AVERAGE(B!E11,B!K12,B!W12) -> 0.01174802709 | G62: =AVERAGE(B!F11,B!L12,B!X12) -> 0.9129138055 | H62: 1220 - Fill dirt and material | I62: =AVERAGE('C'!AG14,'C'!Z12,0,0,0) -> 0.002674446787 | J62: =AVERAGE('C'!AH14,'C'!AA12,0,0,0) -> 0.2034259596
B63: 1300 - Demolition | C63: =AVERAGE(A!K19,A!R11,A!R12) -> 0.01393458835 | D63: =AVERAGE(A!L19,A!S11,A!S12) -> 1.199955762 | E63: 1300 - Demolition | F63: 0 | G63: 0 | H63: 1300 - Demolition | I63: 0 | J63: 0
B64: 1400 - Temporary electric | C64: =AVERAGE(A!K20,A!E14,A!R11) -> 0.001560927434 | D64: =AVERAGE(A!L20,A!F14,A!S11) -> 0.1611805614 | E64: 1400 - Temporary electric | F64: =AVERAGE(B!W13,B!K8,B!K7) -> 0.0003177162195 | G64: =AVERAGE(B!X13,B!L8,B!L7) -> 0.02663622527 | H64: 1400 - Temporary electric | I64: =AVERAGE('C'!Z13,0,0,0,0) -> 0.0003763896211 | J64: =AVERAGE('C'!AA13,0,0,0,0) -> 0.02396931927
B65: 1420 - Individual wells | C65: 0 | D65: 0 | E65: 1420 - Individual wells | F65: 0 | G65: 0 | H65: 1420 - Individual wells | I65: =AVERAGE('C'!AG15,0,0,0,0) -> 0.0042 | J65: =AVERAGE('C'!AH15,0,0,0,0) -> 0.3620689655
B66: 1430 - Water service | C66: 0 | D66: 0 | E66: 1430 - Water service | F66: =AVERAGE(B!E12,B!W14,B!K8) -> 0.001448072451 | G66: =AVERAGE(B!F12,B!X14,B!L8) -> 0.1070800446 | H66: 1430 - Water service | I66: =AVERAGE('C'!Z14,'C'!L14,'C'!E16,0,0) -> 0.02811340159 | J66: =AVERAGE('C'!AA14,'C'!M14,'C'!F16,0,0) -> 1.772260749
B67: 1440 - Septic system | C67: 0 | D67: 0 | E67: 1440 - Septic system | F67: 0 | G67: 0 | H67: 1440 - Septic system | I67: =AVERAGE('C'!AG16,0,0,0,0) -> 0.013 | J67: =AVERAGE('C'!AH16,0,0,0,0) -> 1.120689655
B68: 1460 - Gas service | C68: =AVERAGE(A!E15,A!R11,A!R12) -> 0.001093439364 | D68: =AVERAGE(A!F15,A!S11,A!S12) -> 0.162098438 | E68: 1460 - Gas service | F68: 0 | G68: 0 | H68: 1460 - Gas service | I68: 0 | J68: 0
B69: 1470 - Electric service | C69: =AVERAGE(A!K21,A!R12,A!R11) -> 0.0008990056997 | D69: =AVERAGE(A!L21,A!S12,A!S11) -> 0.07741650077 | E69: 1470 - Electric service | F69: =AVERAGE(B!W15,B!K7,B!E13) -> 0.0007373921159 | G69: =AVERAGE(B!X15,B!L7,B!F13) -> 0.05687988443 | H69: 1470 - Electric service | I69: =AVERAGE('C'!E17,'C'!L15,0,0,0) -> 0.001769190071 | J69: =AVERAGE('C'!F17,'C'!M15,0,0,0) -> 0.111266071
B70: 1490 - Other utility connections | C70: 0 | D70: 0 | E70: 1490 - Other utility connections | F70: =AVERAGE(B!W16,B!K13,B!K8) -> 0.0097780761 | G70: =AVERAGE(B!X16,B!L13,B!L8) -> 0.8240027113 | H70: 1490 - Other utility connections | I70: 0 | J70: 0
B71: 1491 - Dumpsters/Port a Lets | C71: =AVERAGE(A!K22,A!R12,A!R11) -> 0.0005779322355 | D71: =AVERAGE(A!L22,A!S12,A!S11) -> 0.0497677505 | E71: 1491 - Dumpsters/Port a Lets | F71: 0 | G71: 0 | H71: 1491 - Dumpsters/Port a Lets | I71: 0 | J71: 0
B73: 2000 - 2999 Excavation and Foundation | C73: % Cost | D73: Avg SQ FT | E73: 2000 - 2999 Excavation and Foundation | F73: % Cost | G73: Avg SQ FT | H73: 2000 - 2999 Excavation and Foundation | I73: % Cost | J73: Avg SQ FT
B74: =B12 -> 27440.12 | C74: =C12 -> 0.0617067615 | D74: 8.243148664 | E74: 200 | F74: 0.000980247571 | G74: 0.08394836461 | H74: 9962.493333 | I74: 0.07858485662 | J74: 5.242869129
B75: 2000 - Excavation and backfill | C75: =AVERAGE(A!E17,0,0) -> 0.01164678595 | D75: =AVERAGE(A!F17,0,0) -> 1.726593968 | E75: 2000 - Excavation and backfill | F75: 0 | G75: 0 | H75: 2000 - Excavation and backfill | I75: 0 | J75: 0
B76: 2010 - Plumbing—ground | C76: =AVERAGE(A!E18,0,0) -> 0.01719681909 | D76: =AVERAGE(A!F18,0,0) -> 2.549366342 | E76: 2010 - Plumbing—ground | F76: 0 | G76: 0 | H76: 2010 - Plumbing—ground | I76: =AVERAGE('C'!E19,'C'!L17,0,0,0) -> 0.01346570543 | J76: =AVERAGE('C'!F19,'C'!M17,0,0,0) -> 0.8468712166
B77: 2100 - Footings and foundation | C77: =AVERAGE(A!E19,A!R19,0) -> 0.01904042412 | D77: =AVERAGE(A!F19,A!S19,0) -> 2.725488859 | E77: 2100 - Footings and foundation | F77: 0 | G77: 0 | H77: 2100 - Footings and foundation | I77: =AVERAGE('C'!AG18,'C'!L18,'C'!E20) -> 0.08388041281 | J77: =AVERAGE('C'!AH18,'C'!M18,'C'!F20) -> 5.562149834
B78: 2105 - Rebar and reinforcing steel | C78: 0 | D78: 0 | E78: 2105 - Rebar and reinforcing steel | F78: 0 | G78: 0 | H78: 2105 - Rebar and reinforcing steel | I78: =AVERAGE('C'!Z16,0,0,0,0) -> 0.0009786130148 | J78: =AVERAGE('C'!AA16,0,0,0,0) -> 0.06232023011
B79: 2110 - Concrete block | C79: 0 | D79: 0 | E79: 2110 - Concrete block | F79: 0 | G79: 0 | H79: 2110 - Concrete block | I79: =AVERAGE('C'!L19,'C'!E21,0,0,0) -> 0.01797079256 | J79: =AVERAGE('C'!M19,'C'!F21,0,0,0) -> 1.130200493
B80: 2113 SW-Footer Concrete | C80: =AVERAGE(A!K24,0,0) -> 0.01243851443 | D80: =AVERAGE(A!L24,0,0) -> 1.071123645 | E80: 2113 SW-Footer Concrete | F80: 0 | G80: 0 | H80: 2113 SW-Footer Concrete | I80: 0 | J80: 0
B81: 2120 - Rough grading | C81: 0 | D81: 1 | E81: 2120 - Rough grading | F81: 0 | G81: 0 | H81: 2120 - Rough grading | I81: =AVERAGE('C'!E22,'C'!L20,0,0,0) -> 0.00133164844 | J81: =AVERAGE('C'!F22,'C'!M20,0,0,0) -> 0.08374865557
B82: 2300 - Termite protection | C82: =AVERAGE(A!E20,A!K25,A!R20) -> 0.001384217912 | D82: =AVERAGE(A!F20,A!L25,A!S20) -> 0.1705758498 | E82: 2300 - Termite protection | F82: =AVERAGE(B!K15,B!W19,0) -> 0.0006534983806 | G82: =AVERAGE(B!L15,B!X19,0) -> 0.0559655764 | H82: 2300 - Termite protection | I82: =AVERAGE('C'!E23,'C'!L21,'C'!Z17,'C'!AG19,0) -> 0.001409457133 | J82: =AVERAGE('C'!F23,'C'!M21,'C'!AA17,'C'!AH19,0) -> 0.1005681166
B84: 3000 - 3999 Rough Structure | E84: 3000 - 3999 Rough Structure | H84: 3000 - 3999 Rough Structure
B85: =B14 -> 89213.50333 | C85: =C14 -> 0.232117658 | D85: 27.52969999 | E85: 39855.83 | F85: 0.1981758062 | G85: 16.92074172 | H85: 31318.62125 | I85: 0.2676916689 | J85: 18.51682437
B86: 3110 - Lumber—1st package | C86: =AVERAGE(A!K27,0,0) -> 0.02186783846 | D86: =AVERAGE(A!L27,0,0) -> 1.883115461 | E86: 3110 - Lumber—1st package | F86: =AVERAGE(B!W21,0,0) -> 0.02360177631 | G86: =AVERAGE(B!X21,0,0) -> 1.97869102 | H86: 3110 - Lumber—1st package | I86: =AVERAGE('C'!Z19,'C'!AG21,'C'!L23,'C'!E25,0) -> 0.05014746303 | J86: =AVERAGE('C'!AA19,'C'!AH21,'C'!M23,'C'!F25,0) -> 3.468246344
B87: 3120 - Lumber—2nd package | C87: =0 -> 0 | D87: 0 | E87: 3120 - Lumber—2nd package | F87: =AVERAGE(B!W22,0,0) -> 0.009077606272 | G87: =AVERAGE(B!X22,0,0) -> 0.7610350076 | H87: 3120 - Lumber—2nd package | I87: =0 -> 0 | J87: 0
B88: 3140 - Trusses | C88: =AVERAGE(A!R22,A!K28,A!E22) -> 0.01909132318 | D88: =AVERAGE(A!S22,A!L28,A!F22) -> 2.210199211 | E88: 3140 - Trusses | F88: =AVERAGE(B!W23,B!K17,0) -> 0.01890298744 | G88: =AVERAGE(B!X23,B!L17,0) -> 1.61163158 | H88: 3140 - Trusses | I88: =AVERAGE('C'!Z20,'C'!L24,'C'!E26,0,0) -> 0.02272622493 | J88: =AVERAGE('C'!AA20,'C'!M24,'C'!F26,0,0) -> 1.436719537
B89: 3210 - Framing labor—draw #1 | C89: =AVERAGE(A!E23,A!K29,A!R23) -> 0.07405151175 | D89: =AVERAGE(A!F23,A!L29,A!S23) -> 8.841428372 | E89: 3210 - Framing labor—draw #1 | F89: =AVERAGE(B!W24,0,0) -> 0.0199707338 | G89: =AVERAGE(B!X24,0,0) -> 1.674277017 | H89: 3210 - Framing labor—draw #1 | I89: =AVERAGE('C'!E27,'C'!L25,'C'!S14,'C'!Z21,'C'!AG22) -> 0.07659698821 | J89: =AVERAGE('C'!F27,'C'!M25,'C'!T14,'C'!AA21,'C'!AH22) -> 5.241103351
B90: 3300 - Windows | C90: =AVERAGE(A!R24,A!K30,A!E24) -> 0.01963399319 | D90: =AVERAGE(A!S24,A!L30,A!F24) -> 2.347212748 | E90: 3300 - Windows | F90: =AVERAGE(B!W26,B!K18,0) -> 0.01278294408 | G90: =AVERAGE(B!X26,B!L18,0) -> 1.091621679 | H90: 3300 - Windows | I90: =AVERAGE('C'!AG23,'C'!Z22,'C'!S15,'C'!L26,'C'!E28) -> 0.02278094993 | J90: =AVERAGE('C'!AH23,'C'!AA22,'C'!T15,'C'!M26,'C'!F28) -> 1.573123933
B91: 3400 - Exterior siding | C91: =AVERAGE(A!E25,A!K31,0) -> 0.03333793849 | D91: =AVERAGE(A!F25,A!L31,0) -> 4.281785768 | E91: 3400 - Exterior siding | F91: =AVERAGE(B!K19,0,0) -> 0.0211930627 | G91: =AVERAGE(B!L19,0,0) -> 1.842279655 | H91: 3400 - Exterior siding | I91: =AVERAGE('C'!S16,'C'!Z23,'C'!AG24,0,0) -> 0.03562309533 | J91: =AVERAGE('C'!T16,'C'!AA23,'C'!AH24,0,0) -> 2.485915041
B92: 3410 - Exterior trim labor | C92: =AVERAGE(A!R25,0,0) -> 0.001436875 | D92: =AVERAGE(A!S25,0,0) -> 0.1794971893 | E92: 3410 - Exterior trim labor | F92: 0 | G92: 0 | H92: 3410 - Exterior trim labor | I92: =AVERAGE('C'!AG25,0,0,0,0) -> 0.0012 | J92: =AVERAGE('C'!AH25,0,0,0,0) -> 0.1034482759
B93: 3500 - Flatwork material | C93: 0 | D93: 0 | E93: 3500 - Flatwork material | F93: 0 | G93: 0 | H93: 3500 - Flatwork material | I93: =AVERAGE('C'!AG26,0,0,0,0) -> 0.0076 | J93: =AVERAGE('C'!AH26,0,0,0,0) -> 0.6551724138
B94: 3550 - Flatwork labor | C94: =0 -> 0 | D94: 0 | E94: 3550 - Flatwork labor | F94: =AVERAGE(B!K20,0,0) -> 0.005336382695 | G94: =AVERAGE(B!L20,0,0) -> 0.4638833665 | H94: 3550 - Flatwork labor | I94: 0 | J94: 0
B95: 3610 - HVAC—rough | C95: =AVERAGE(A!E26,A!K32,A!R26) -> 0.01957648984 | D95: =AVERAGE(A!F26,A!L32,A!S26) -> 2.479169249 | E95: 3610 - HVAC—rough | F95: =AVERAGE(B!W27,0,0) -> 0.005346710094 | G95: =AVERAGE(B!X27,0,0) -> 0.4482496195 | H95: 3610 - HVAC—rough | I95: =AVERAGE('C'!E29,'C'!L27,'C'!Z24,0,0) -> 0.01440483965 | J95: =AVERAGE('C'!F29,'C'!M27,'C'!AA24,0,0) -> 0.9098058332
B96: 3720 - Plumbing—rough | C96: =AVERAGE(A!K33,0,0) -> 0.004740739599 | D96: =AVERAGE(A!L33,0,0) -> 0.4082415395 | E96: 3720 - Plumbing—rough | F96: =AVERAGE(B!W28,0,0) -> 0.005628115888 | G96: =AVERAGE(B!X28,0,0) -> 0.4718417047 | H96: 3720 - Plumbing—rough | I96: =AVERAGE('C'!L28,'C'!E30,0,0,0) -> 0.009958834606 | J96: =AVERAGE('C'!M28,'C'!F30,0,0,0) -> 0.6263207252
B97: 3810 - Electrical—rough | C97: =AVERAGE(A!E27,A!K34,A!R27) -> 0.0370114818 | D97: =AVERAGE(A!F27,A!L34,A!S27) -> 4.727974043 | E97: 3810 - Electrical—rough | F97: =AVERAGE(B!W29,0,0) -> 0.01129798877 | G97: =AVERAGE(B!X29,0,0) -> 0.9471841705 | H97: 3810 - Electrical—rough | I97: =AVERAGE('C'!E31,'C'!L29,'C'!Z25,0,0) -> 0.01815622 | J97: =AVERAGE('C'!F31,'C'!M29,'C'!AA25,0,0) -> 1.146293652
B98: 3910 - Gutters and downspouts | C98: =AVERAGE(A!R28,0,0) -> 0.001369466667 | D98: =AVERAGE(A!S28,0,0) -> 0.1710764106 | E98: 3910 - Gutters and downspouts | F98: 0 | G98: 0 | H98: 3910 - Gutters and downspouts | I98: =AVERAGE('C'!L30,'C'!E32,0,0,0) -> 0.003614474338 | J98: =AVERAGE('C'!M30,'C'!F32,0,0,0) -> 0.2273177794
B100: 4000 - 4999 Full Enclosure | E100: 4000 - 4999 Full Enclosure | H100: 4000 - 4999 Full Enclosure
B101: =B16 -> 47531.5 | C101: =C16 -> 0.1122079355 | D101: 14.5270321 | E101: 21900.345 | F101: 0.1088954496 | G101: 9.297763497 | H101: 7700.4575 | I101: 0.06340225924 | J101: 4.265708321
B102: 4100 - Roofing material | C102: =AVERAGE(A!E29,A!K36,A!R30) -> 0.05334641908 | D102: =AVERAGE(A!F29,A!L36,A!S30) -> 7.187711989 | E102: 4100 - Roofing material | F102: =0 -> 0 | G102: 0 | H102: 4100 - Roofing material | I102: =AVERAGE('C'!Z27,0,0,0,0) -> 0.00481778715 | J102: =AVERAGE('C'!AA27,0,0,0,0) -> 0.3068072867
B103: 4150 - Roofing labor | C103: =AVERAGE(A!K37,0,0) -> 0.009039232609 | D103: =AVERAGE(A!L37,0,0) -> 0.7783996903 | E103: 4150 - Roofing labor | F103: =AVERAGE(B!K22,0,0) -> 0.04913850962 | G103: =AVERAGE(B!L22,0,0) -> 4.271533466 | H103: 4150 - Roofing labor | I103: =AVERAGE('C'!E34,'C'!L32,'C'!S18,'C'!Z28,0) -> 0.0303843249 | J103: =AVERAGE('C'!F34,'C'!M32,'C'!T18,'C'!AA28,0) -> 1.948685407
B104: 4300 - Exterior doors | C104: =AVERAGE(A!E30,A!K38,A!R31) -> 0.03302975259 | D104: =AVERAGE(A!F30,A!L38,A!S31) -> 4.301338776 | E104: 4300 - Exterior doors | F104: =AVERAGE(B!K23,B!W31,0) -> 0.006793079539 | G104: =AVERAGE(B!L23,B!X31,0) -> 0.5848534183 | H104: 4300 - Exterior doors | I104: =AVERAGE('C'!Z29,0,0,0,0) -> 0.003011116969 | J104: =AVERAGE('C'!AA29,0,0,0,0) -> 0.1917545542
B105: 4350 - Garage door | C105: =AVERAGE(A!K39,A!E31,0) -> 0.003059496049 | D105: =AVERAGE(A!L39,A!F31,0) -> 0.388923733 | E105: 4350 - Garage door | F105: =AVERAGE(B!K24,B!W32,0) -> 0.003599119767 | G105: =AVERAGE(B!L24,B!X32,0) -> 0.308459302 | H105: 4350 - Garage door | I105: =AVERAGE('C'!E35,'C'!L33,'C'!S19,'C'!Z30,'C'!AG28) -> 0.008932484681 | J105: =AVERAGE('C'!F35,'C'!M33,'C'!T19,'C'!AA30,'C'!AH28) -> 0.6045740162
B106: 4400 - Insulation | C106: =AVERAGE(A!E32,A!R32,0) -> 0.0067564778 | D106: =AVERAGE(A!F32,A!S32,0) -> 0.9403967176 | E106: 4400 - Insulation | F106: =AVERAGE(B!K25,0,0) -> 0.00281762531 | G106: =AVERAGE(B!L25,0,0) -> 0.2449317429 | H106: 4400 - Insulation | I106: =AVERAGE('C'!AG29,'C'!Z31,'C'!S20,'C'!L34,'C'!E36) -> 0.01241736098 | J106: =AVERAGE('C'!AH29,'C'!AA31,'C'!T20,'C'!M34,'C'!F36) -> 0.8500572704
B107: 4500 - Fireplaces | C107: =AVERAGE(A!E33,0,0) -> 0.002518223989 | D107: =AVERAGE(A!F33,0,0) -> 0.3733176147 | E107: 4500 - Fireplaces | F107: =0 -> 0 | G107: 0 | H107: 4500 - Fireplaces | I107: =0 -> 0 | J107: =0 -> 0
B108: 4600 - Painting—exterior | C108: =AVERAGE(A!R33,0,0) -> 0.004458333333 | D108: =AVERAGE(A!S33,0,0) -> 0.5569435769 | E108: 4600 - Painting—exterior | F108: =AVERAGE(B!K26,0,0) -> 0.004955212502 | G108: 0 | H108: 4600 - Painting—exterior | I108: =AVERAGE('C'!AG30,'C'!Z32,'C'!L35,'C'!E37,0) -> 0.01411864873 | J108: =AVERAGE('C'!AH30,'C'!AA32,'C'!M35,'C'!F37,0) -> 0.951348944
B110: 5000 - 5999 Finishing Trades | E110: 5000 - 5999 Finishing Trades | H110: 5000 - 5999 Finishing Trades
B111: =B18 -> 98774.17667 | C111: =C18 -> 0.2701795353 | D111: 30.79666468 | E111: 45328.825 | F111: 0.2253892702 | G111: 19.24429476 | H111: 32564.3775 | I111: 0.289605073 | J111: 20.58735671
B112: 5100 - Drywall | C112: =AVERAGE(A!E35,A!K41,A!R35) -> 0.03066063437 | D112: =AVERAGE(A!F35,A!L41,A!S35) -> 3.486463914 | E112: 5100 - Drywall | F112: =AVERAGE(B!K28,B!W34,0) -> 0.02671143209 | G112: =AVERAGE(B!L28,B!X34,0) -> 2.28212763 | H112: 5100 - Drywall | I112: =AVERAGE('C'!E39,'C'!L37,'C'!S22,'C'!Z34,'C'!AG32) -> 0.04575544402 | J112: =AVERAGE('C'!F39,'C'!M37,'C'!T22,'C'!AA34,'C'!AH32) -> 3.133634278
B113: 5200 - Interior trim material | C113: =AVERAGE(A!K42,A!R36,A!E36) -> 0.02924227937 | D113: =AVERAGE(A!L42,A!S36,A!F36) -> 3.370506581 | E113: 5200 - Interior trim material | F113: =AVERAGE(B!W35,B!K29,0) -> 0.01147748777 | G113: =AVERAGE(B!X35,B!L29,0) -> 0.9842085085 | H113: 5200 - Interior trim material | I113: =AVERAGE('C'!AG33,'C'!Z35,'C'!L38,'C'!E40,0) -> 0.008894923042 | J113: =AVERAGE('C'!AH33,'C'!AA35,'C'!M38,'C'!F40,0) -> 0.6697608319
B114: 5250 - Interior trim labor | C114: =AVERAGE(A!E37,A!K43,0) -> 0.01105347076 | D114: =AVERAGE(A!F37,A!L43,0) -> 1.271172287 | E114: 5250 - Interior trim labor | F114: =AVERAGE(B!K30,B!W36,0) -> 0.006687451883 | G114: =AVERAGE(B!L30,B!X36,0) -> 0.5729095745 | H114: 5250 - Interior trim labor | I114: =AVERAGE('C'!E41,'C'!L39,'C'!Z36,'C'!AG34,0) -> 0.004579664962 | J114: =AVERAGE('C'!F41,'C'!M39,'C'!AA36,'C'!AH34,0) -> 0.3127649819
B115: 5300 - Painting—interior | C115: =AVERAGE(A!R37,A!K44,A!E38) -> 0.03624501795 | D115: =AVERAGE(A!S37,A!L44,A!F38) -> 4.317583716 | E115: 5300 - Painting—interior | F115: =AVERAGE(B!K31,0,0) -> 0.005336382695 | G115: =AVERAGE(B!L31,0,0) -> 0.4638833665 | H115: 5300 - Painting—interior | I115: =AVERAGE('C'!AG35,'C'!S23,'C'!L40,'C'!E42,0) -> 0.01176510001 | J115: =AVERAGE('C'!AH35,'C'!T23,'C'!M40,'C'!F42,0) -> 0.840003051
B116: 5400 - Cabinets and vanities | C116: =AVERAGE(A!E39,A!K45,A!R38) -> 0.03629326584 | D116: =AVERAGE(A!F39,A!L45,A!S38) -> 4.432443828 | E116: 5400 - Cabinets and vanities | F116: =AVERAGE(B!W37,0,0) -> 0.005809668014 | G116: =AVERAGE(B!X37,0,0) -> 0.4870624049 | H116: 5400 - Cabinets and vanities | I116: =AVERAGE('C'!E43,'C'!L41,'C'!S24,'C'!Z37,'C'!AG36) -> 0.04135851258 | J116: =AVERAGE('C'!F43,'C'!M41,'C'!T24,'C'!AA37,'C'!AH36) -> 2.928324745
B117: 5450 - Countertops | C117: =AVERAGE(A!R39,A!K46,A!E40) -> 0.02929091993 | D117: =AVERAGE(A!S39,A!L46,A!F40) -> 3.542722092 | E117: 5450 - Countertops | F117: =AVERAGE(B!K32,0,0) -> 0.008385744235 | G117: =AVERAGE(B!L32,0,0) -> 0.7289595759 | H117: 5450 - Countertops | I117: =AVERAGE('C'!Z38,'C'!L42,'C'!E44,0,0) -> 0.006402631912 | J117: =AVERAGE('C'!AA38,'C'!M42,'C'!F44,0,0) -> 0.40624145
B118: 5510 - Ceramic tile | C118: =AVERAGE(A!E41,A!K47,0) -> 0.02141891236 | D118: =AVERAGE(A!F41,A!L47,0) -> 2.37170143 | E118: 5510 - Ceramic tile | F118: =0 -> 0 | G118: 0 | H118: 5510 - Ceramic tile | I118: =AVERAGE('C'!E45,'C'!L43,'C'!AG37,0,0) -> 0.0181993103 | J118: =AVERAGE('C'!F45,'C'!M43,'C'!AH37,0,0) -> 1.205193611
B119: 5520 - Special flooring | C119: =AVERAGE(A!R40,0,0) -> 0.01875 | D119: =AVERAGE(A!S40,0,0) -> 2.342286071 | E119: 5520 - Special flooring | F119: =0 -> 0 | G119: 0 | H119: 5520 - Special flooring | I119: =AVERAGE('C'!S25,0,0,0,0) -> 0.01496178431 | J119: =AVERAGE('C'!T25,0,0,0,0) -> 1.006663588
B120: 5540 - Carpet | C120: =AVERAGE(A!E42,A!K49,0) -> 0.004453793791 | D120: =AVERAGE(A!F42,A!L49,0) -> 0.4965155567 | E120: 5540 - Carpet | F120: =AVERAGE(B!K33,B!W38,0) -> 0.006916153999 | G120: =AVERAGE(B!L33,B!X38,0) -> 0.5927902902 | H120: 5540 - Carpet | I120: =AVERAGE('C'!Z39,0,0,0,0) -> 0.002764205377 | J120: =AVERAGE('C'!AA39,0,0,0,0) -> 0.1760306807
B121: 5610 - Hardware | C121: =AVERAGE(A!K50,0,0) -> 0.002070256011 | D121: =AVERAGE(A!L50,0,0) -> 0.1782769299 | E121: 5610 - Hardware | F121: =0 -> 0 | G121: 0 | H121: 5610 - Hardware | I121: =AVERAGE('C'!Z40,0,0,0,0) -> 0.0009033350906 | J121: =AVERAGE('C'!AA40,0,0,0,0) -> 0.05752636625
B122: 5620 - Shower doors and mirrors | C122: =AVERAGE(A!K51,A!R41) -> 0.002847767053 | D122: =AVERAGE(A!L51,A!S41) -> 0.2502276924 | E122: 5620 - Shower doors and mirrors | F122: =AVERAGE(B!K34,0,0) -> 0.003430531732 | G122: =AVERAGE(B!L34,0,0) -> 0.2982107356 | H122: 5620 - Shower doors and mirrors | I122: =AVERAGE('C'!Z41,'C'!AG38,0,0,0) -> 0.002220614069 | J122: =AVERAGE('C'!AA41,'C'!AH38,0,0,0) -> 0.1571808774
B123: 5630 - Appliances | C123: =AVERAGE(A!K52,A!E43,0) -> 0.01283441132 | D123: =AVERAGE(A!L52,A!F43,0) -> 1.722839151 | E123: 5630 - Appliances | F123: =AVERAGE(B!K35,B!W39,0) -> 0.01369247715 | G123: =AVERAGE(B!L35,B!X39,0) -> 1.174329064 | H123: 5630 - Appliances | I123: =AVERAGE('C'!Z42,0,0,0,0) -> 0.006624457331 | J123: =AVERAGE('C'!AA42,0,0,0,0) -> 0.4218600192
B124: 5700 - HVAC—final | C124: =AVERAGE(A!K53,0,0) -> 0.005266889106 | D124: =AVERAGE(A!L53,0,0) -> 0.4535500995 | E124: 5700 - HVAC—final | F124: =AVERAGE(B!K36,B!W40,0) -> 0.01746792222 | G124: =AVERAGE(B!L36,B!X40,0) -> 1.501927552 | H124: 5700 - HVAC—final | I124: =AVERAGE('C'!E46,'C'!L44,'C'!S26,'C'!Z43,'C'!AG39) -> 0.03242444749 | J124: =AVERAGE('C'!F46,'C'!M44,'C'!T26,'C'!AA43,'C'!AH39) -> 2.29252806
B125: 5710 - Plumbing—final | C125: =AVERAGE(A!K54,0,0) -> 0.006450186094 | D125: =AVERAGE(A!L54,0,0) -> 0.5554479098 | E125: 5710 - Plumbing—final | F125: =AVERAGE(B!K37,B!W41,0) -> 0.01517543664 | G125: =AVERAGE(B!L37,B!X41,0) -> 1.302897985 | H125: 5710 - Plumbing—final | I125: =AVERAGE('C'!AG40,'C'!Z44,'C'!S27,'C'!L45,'C'!E47) -> 0.03440837351 | J125: =AVERAGE('C'!AH40,'C'!AA44,'C'!T27,'C'!M45,'C'!F47) -> 2.519140924
B126: 5720 - Electrical fixtures | C126: =AVERAGE(A!K55,0,0) -> 0.003019349171 | D126: =AVERAGE(A!L55,0,0) -> 0.2600066357 | E126: 5720 - Electrical fixtures | F126: =AVERAGE(B!K38,0,0) -> 0.00457404231 | G126: =AVERAGE(B!L38,0,0) -> 0.3976143141 | H126: 5720 - Electrical fixtures | I126: =AVERAGE('C'!E48,'C'!L46,'C'!Z45,'C'!AG41,0) -> 0.00661138001 | J126: =AVERAGE('C'!F48,'C'!M46,'C'!AA45,'C'!AH41,0) -> 0.4405415021
B127: 5730 - Electrical—final | C127: =AVERAGE(A!K56,0,0) -> 0.003714845666 | D127: =AVERAGE(A!L56,0,0) -> 0.3198982526 | E127: 5730 - Electrical—final | F127: =AVERAGE(B!K39,B!W42,0) -> 0.02107534509 | G127: =AVERAGE(B!L39,B!X42,0) -> 1.804597075 | H127: 5730 - Electrical—final | I127: =AVERAGE('C'!E49,'C'!L47,'C'!S28,'C'!Z46,'C'!AG42) -> 0.03048519985 | J127: =AVERAGE('C'!F49,'C'!M47,'C'!T28,'C'!AA46,'C'!AH42) -> 2.208798769
B128: 5890 - Special finishes | C128: =AVERAGE(A!K57,0,0) -> 0.01349438378 | D128: =AVERAGE(A!L57,0,0) -> 1.162048219 | E128: 5890 - Special finishes | F128: =0 -> 0 | G128: 0 | H128: 5890 - Special finishes | I128: =AVERAGE('C'!Z47,'C'!L48,'C'!E50,0,0) -> 0.002039864089 | J128: =AVERAGE('C'!AA47,'C'!M48,'C'!F50,0,0) -> 0.1285272714
B130: 6000 - 6999 Completion and Inspection | E130: 6000 - 6999 Completion and Inspection | H130: 6000 - 6999 Completion and Inspection
B131: =B20 -> 19031.36667 | C131: =C20 -> 0.04960649442 | D131: 5.921430963 | E131: 7435 | F131: 0.03696917412 | G131: 3.156519754 | H131: 2401.5625 | I131: 0.02022283406 | J131: 1.408582056
B132: 6100 - Clean-up | C132: =AVERAGE(A!E45,A!K59,0) -> 0.005139769777 | D132: =AVERAGE(A!F45,A!L59,0) -> 0.5455406547 | E132: 6100 - Clean-up | F132: =AVERAGE(B!K41,B!W44,0) -> 0.001356087252 | G132: =AVERAGE(B!L41,B!X44,0) -> 0.1151038972 | H132: 6100 - Clean-up | I132: =AVERAGE('C'!S30,'C'!Z49,'C'!L50,'C'!E52,0) -> 0.002435753792 | J132: =AVERAGE('C'!T30,'C'!AA49,'C'!M50,'C'!F52,0) -> 0.1575381337
B133: 6200 - Final grade | C133: =0 -> 0 | D133: 0 | E133: 6200 - Final grade | F133: =AVERAGE(B!E15,0,0) -> 0.0003778204866 | G133: =AVERAGE(B!F15,0,0) -> 0.02668801708 | H133: 6200 - Final grade | I133: =AVERAGE('C'!AG44,0,0,0,0) -> 0.001 | J133: =AVERAGE('C'!AH44,0,0,0,0) -> 0.08620689655
B134: 6300 - Driveways | C134: =AVERAGE(A!E46,0,0) -> 0.002711762757 | D134: =AVERAGE(A!F46,0,0) -> 0.4020090382 | E134: 6300 - Driveways | F134: =0 -> 0 | G134: 0 | H134: 6300 - Driveways | I134: =AVERAGE('C'!L51,'C'!E53,0,0,0) -> 0.006967784125 | J134: =AVERAGE('C'!M51,'C'!F53,0,0,0) -> 0.4383119342
B135: 6400 - Patios, walks | C135: =AVERAGE(A!K60,0,0) -> 0.0007392652298 | D135: =AVERAGE(A!L60,0,0) -> 0.06366069454 | E135: 6400 - Patios, walks | F135: =0 -> 0 | G135: 0 | H135: 6400 - Patios, walks | I135: =0 -> 0 | J135: 0
B136: 6490 - Fences | C136: =AVERAGE(A!K61,0,0) -> 0.002942317226 | D136: =AVERAGE(A!L61,0,0) -> 0.2533731475 | E136: 6490 - Fences | F136: =0 -> 0 | G136: 0 | H136: 6490 - Fences | I136: =AVERAGE('C'!AG45,0,0,0,0) -> 0.003 | J136: =AVERAGE('C'!AH45,0,0,0,0) -> 0.2586206897
B137: 6600 - Landscaping | C137: =AVERAGE(A!K62,A!R45,A!E47) -> 0.01932337943 | D137: =AVERAGE(A!L62,A!S45,A!F47) -> 2.314561357 | E137: 6600 - Landscaping | F137: =AVERAGE(B!E16,B!K42,B!W45) -> 0.02519099786 | G137: =AVERAGE(B!F16,B!L42,B!X45) -> 2.119335679 | H137: 6600 - Landscaping | I137: =AVERAGE('C'!E54,'C'!L52,'C'!S31,'C'!Z50,0) -> 0.008120129347 | J137: =AVERAGE('C'!F54,'C'!M52,'C'!T31,'C'!AA50,0) -> 0.5228583893
B138: 6700 - Pools | C138: =AVERAGE(A!R46,0,0) -> 0.01875 | D138: =AVERAGE(A!S46,0,0) -> 2.342286071 | E138: 6700 - Pools | F138: 0 | G138: 0 | H138: 6700 - Pools | I138: 0 | J138: 0
B140: Finish | E140: Finish | H140: Finish
B141: =B22 -> 36385.13333 | C141: =C22 -> 0.09274988363 | D141: 11.31372926 | E141: =E38 -> 81338.825 | F141: =F38 -> 0.4026190354 | G141: 34.4089847 | H141: 8019.78 | I141: 0.06958892283 | J141: 4.931019708
B142: 3401 Soffit and Facia | C142: =AVERAGE(A!R48,A!K64,0) -> 0.003533576964 | D142: =AVERAGE(A!S48,A!L64,0) -> 0.3696161386 | E142: 3401 Soffit and Facia | F142: =AVERAGE(B!E18,0,0) -> 0.0031951334 | G142: =AVERAGE(B!F18,0,0) -> 0.2256938884 | H142: 3401 Soffit and Facia | I142: =AVERAGE('C'!AG47,'C'!Z52,'C'!S33,0,0) -> 0.008997290803 | J142: =AVERAGE('C'!AH47,'C'!AA52,'C'!T33,0,0) -> 0.6826645317
B143: 3820 Low Voltage-Rough In | C143: =AVERAGE(A!K65,0,0) -> 0.0009325257694 | D143: =AVERAGE(A!L65,0,0) -> 0.0803030303 | E143: 3820 Low Voltage-Rough In | F143: =AVERAGE(B!E19,0,0) -> 0.001301591576 | G143: =AVERAGE(B!F19,0,0) -> 0.09194021884 | H143: 3820 Low Voltage-Rough In | I143: =0 -> 0 | J143: 0
B144: 4210 Stucco | C144: =AVERAGE(A!K66,A!R49,0) -> 0.02663966118 | D144: =AVERAGE(A!L66,A!S49,0) -> 3.215734443 | E144: 4210 Stucco | F144: =AVERAGE(B!E20,B!W48,0) -> 0.03073814858 | G144: =AVERAGE(B!F20,B!X48,0) -> 2.315030106 | H144: 4210 Stucco | I144: =AVERAGE('C'!E56,'C'!L54,0,0,0) -> 0.01008248105 | J144: =AVERAGE('C'!F56,'C'!M54,0,0,0) -> 0.6340969636
B145: 4220 Stone | C145: =AVERAGE(A!R50,0,0) -> 0.006916666667 | D145: =AVERAGE(A!S50,0,0) -> 0.8640433063 | E145: 4220 Stone | F145: =AVERAGE(B!E21,B!K44,0) -> 0.008245359 | G145: =AVERAGE(B!F21,B!L44,0) -> 0.6619121672 | H145: 4220 Stone | I145: 0 | J145: 0
B146: 5101 Drywall Material | C146: =0 -> 0 | D146: 0 | E146: 5101 Drywall Material | F146: =AVERAGE(B!E22,0,0) -> 0.006896111759 | G146: =AVERAGE(B!F22,0,0) -> 0.4871190286 | H146: 5101 Drywall Material | I146: =AVERAGE('C'!Z53,0,0,0,0) -> 0.003763896211 | J146: =AVERAGE('C'!AA53,0,0,0,0) -> 0.2396931927
B147: 5102 Drywall Hang &amp; Finish | C147: =0 -> 0 | D147: 0 | E147: 5102 Drywall Hang &amp; Finish | F147: =AVERAGE(B!E23,0,0) -> 0.009328387814 | G147: =AVERAGE(B!F23,0,0) -> 0.6589271417 | H147: 5102 Drywall Hang &amp; Finish | I147: 0 | J147: 0
B148: 5200 Interior Trim &amp; Doors DO NOT USE | C148: 0 | D148: 0 | E148: 5200 Interior Trim &amp; Doors DO NOT USE | F148: =AVERAGE(B!E24,0,0) -> 0.006412784901 | G148: =AVERAGE(B!F24,0,0) -> 0.4529783827 | H148: 5200 Interior Trim &amp; Doors DO NOT USE | I148: 0 | J148: 0
B149: 5201 Door HW &amp; Lock Sets | C149: 0 | D149: 0 | E149: 5201 Door HW &amp; Lock Sets | F149: =AVERAGE(B!E25,B!K45,0) -> 0.002703589893 | G149: =AVERAGE(B!F25,B!L45,0) -> 0.2232643079 | H149: 5201 Door HW &amp; Lock Sets | I149: 0 | J149: 0
B150: 5250 Trim Carpentry Labor DO NOT USE | C150: 0 | D150: 0 | E150: 5250 Trim Carpentry Labor DO NOT USE | F150: =AVERAGE(B!E26,0,0) -> 0.002646254688 | G150: =AVERAGE(B!F26,0,0) -> 0.1869228716 | H150: 5250 Trim Carpentry Labor DO NOT USE | I150: 0 | J150: 0
B151: 5350 Painting - TK | C151: =0 -> 0 | D151: 0 | E151: 5350 Painting - TK | F151: =AVERAGE(B!E27,B!W49,0) -> 0.01903628386 | G151: =AVERAGE(B!F27,B!X49,0) -> 1.457294444 | H151: 5350 Painting - TK | I151: =AVERAGE('C'!Z54,0,0,0,0) -> 0.003528758087 | J151: =AVERAGE('C'!AA54,0,0,0,0) -> 0.2247190796
B152: 5400 Cabinets DO NOT USE | C152: =0 -> 0 | D152: 0 | E152: 5400 Cabinets DO NOT USE | F152: =AVERAGE(B!E28,0,0) -> 0.008268601349 | G152: =AVERAGE(B!F28,0,0) -> 0.5840672538 | H152: 5400 Cabinets DO NOT USE | I152: 0 | J152: 0
B153: 5451 Countertops Kitchen | C153: 0 | D153: 0 | E153: 5451 Countertops Kitchen | F153: =AVERAGE(B!E29,B!W50,0) -> 0.01162203962 | G153: =AVERAGE(B!F29,B!X50,0) -> 0.8928366437 | H153: 5451 Countertops Kitchen | I153: 0 | J153: 0
B154: 5452 Countertops Baths | C154: 0 | D154: 0 | E154: 5452 Countertops Baths | F154: =AVERAGE(B!W51,B!K46,B!E30) -> 0.0239794938 | G154: =AVERAGE(B!X51,B!L46,B!F30) -> 2.048339863 | H154: 5452 Countertops Baths | I154: 0 | J154: 0
B155: 5511 Tile-Baths | C155: 0 | D155: 0 | E155: 5511 Tile-Baths | F155: =AVERAGE(B!E31,B!K47,B!W52) -> 0.02007144028 | G155: =AVERAGE(B!F31,B!L47,B!X52) -> 1.660263713 | H155: 5511 Tile-Baths | I155: =AVERAGE('C'!S34,0,0,0,0) -> 0.004901960784 | J155: =AVERAGE('C'!T34,0,0,0,0) -> 0.3298153034
B156: 5512 Tile-Floor | C156: 0 | D156: 0 | E156: 5512 Tile-Floor | F156: 0 | G156: 0 | H156: 5512 Tile-Floor | I156: =AVERAGE('C'!Z55,0,0,0,0) -> 0.009033350906 | J156: =AVERAGE('C'!AA55,0,0,0,0) -> 0.5752636625
B157: 5540 Carpet DO NOT USE | C157: 0 | D157: 0 | E157: 5540 Carpet DO NOT USE | F157: =AVERAGE(B!E33,0,0) -> 0.003542067062 | G157: =AVERAGE(B!F33,0,0) -> 0.2502001601 | H157: 5540 Carpet DO NOT USE | I157: 0 | J157: 0
B158: 5550 Wood Flooring | C158: =AVERAGE(A!E49,0,0) -> 0.01141882041 | D158: =AVERAGE(A!F49,0,0) -> 1.6927989 | E158: 5550 Wood Flooring | F158: =AVERAGE(B!K49,0,0) -> 0.01052029731 | G158: =AVERAGE(B!L49,0,0) -> 0.9145129225 | H158: 5550 Wood Flooring | I158: =AVERAGE('C'!AG48,0,0,0,0) -> 0.0072 | J158: =AVERAGE('C'!AH48,0,0,0,0) -> 0.6206896552
B159: 5621 Specialities | C159: =AVERAGE(A!R51,0,A!E50) -> 0.00906925116 | D159: =AVERAGE(A!S51,0,A!F50) -> 1.208424357 | E159: 5621 Specialities | F159: =AVERAGE(B!E34,B!W54,0) -> 0.005540070282 | G159: =AVERAGE(B!F34,B!X54,0) -> 0.4380633274 | H159: 5621 Specialities | I159: =AVERAGE('C'!AG49,0,0,0,0) -> 0.0014 | J159: =AVERAGE('C'!AH49,0,0,0,0) -> 0.1206896552
B160: 5630 Appliances DO NOT USE | C160: 0 | D160: 0 | E160: 5630 Appliances DO NOT USE | F160: =AVERAGE(B!E35,0,0) -> 0.005000114102 | G160: =AVERAGE(B!F35,0,0) -> 0.3531918868 | H160: 5630 Appliances DO NOT USE | I160: 0 | J160: 0
B161: 5740 Low Voltage-Finish | C161: =AVERAGE(A!K67,0,0) -> 0.0009325257694 | D161: =AVERAGE(A!L67,0,0) -> 0.0803030303 | E161: 5740 Low Voltage-Finish | F161: =AVERAGE(B!E36,0,0) -> 0.001301591576 | G161: =AVERAGE(B!F36,0,0) -> 0.09194021884 | H161: 5740 Low Voltage-Finish | I161: 0 | J161: 0
B162: 6101 All Cleaning | C162: =AVERAGE(A!R52,0,0) -> 0.001666666667 | D162: =AVERAGE(A!S52,0,0) -> 0.2082032063 | E162: 6101 All Cleaning | F162: =AVERAGE(B!E37,0,0) -> 0.001110489974 | G162: =AVERAGE(B!F37,0,0) -> 0.0784414198 | H162: 6101 All Cleaning | I162: 0 | J162: 0
B163: 6310 Drives &amp; Walks Concrete | C163: 0 | D163: 0 | E163: 6310 Drives &amp; Walks Concrete | F163: =AVERAGE(B!E38,B!W55,0) -> 0.007676373708 | G163: =AVERAGE(B!F38,B!X55,0) -> 0.6016660513 | H163: 6310 Drives &amp; Walks Concrete | I163: =AVERAGE('C'!AG50,0,0,0,0) -> 0.0026 | J163: =AVERAGE('C'!AH50,0,0,0,0) -> 0.224137931
B164: 6350 Brick Pavers Drives &amp; Wal | C164: =AVERAGE(A!K68,A!R53,0) -> 0.01094538971 | D164: =AVERAGE(A!L68,A!S53,0) -> 1.233285489 | E164: 6350 Brick Pavers Drives &amp; Wal | F164: =0 -> 0 | G164: 0 | H164: 6350 Brick Pavers Drives &amp; Wal | I164: =AVERAGE('C'!Z56,0,0,0,0) -> 0.002559449423 | J164: =AVERAGE('C'!AA56,0,0,0,0) -> 0.162991371
B165: 6510 Mailboxes | C165: =0 -> 0 | D165: 0 | E165: 6510 Mailboxes | F165: =AVERAGE(B!E39,B!K50,B!W56) -> 0.001184565266 | G165: =AVERAGE(B!F39,B!L50,B!X56) -> 0.09168108945 | H165: 6510 Mailboxes | I165: 0 | J165: 0
B166: 6600 Landscaping - TK DO NOT USE | C166: 0 | D166: 0 | E166: 6600 Landscaping - TK DO NOT USE | F166: =AVERAGE(B!E40,0,0) -> 0.03570018222 | G166: =AVERAGE(B!F40,0,0) -> 2.521745396 | H166: 6600 Landscaping - TK DO NOT USE | I166: 0 | J166: 0
B167: 6720 Screen Lanai | C167: =AVERAGE(A!R54,0,0) -> 0.001155833333 | D167: =AVERAGE(A!S54,0,0) -> 0.1443889236 | E167: 6720 Screen Lanai | F167: =0 -> 0 | G167: 0 | H167: 6720 Screen Lanai | I167: 0 | J167: 0
B168: 7000 Structural Options DO NOT USE | C168: 0 | D168: 0 | E168: 7000 Structural Options DO NOT USE | F168: =AVERAGE(B!K51,0,0) -> 0.01448446731 | G168: =AVERAGE(B!L51,0,0) -> 1.259111995 | H168: 7000 Structural Options DO NOT USE | I168: 0 | J168: 0
B169: 7020 Tile Floor Options | C169: 0 | D169: 0 | E169: 7020 Tile Floor Options | F169: =AVERAGE(B!E41,0,0) -> 0.0004722756083 | G169: =AVERAGE(B!F41,0,0) -> 0.03336002135 | H169: 7020 Tile Floor Options | I169: 0 | J169: 0
B170: 7025 Tile Wall Options | C170: =0 -> 0 | D170: 0 | E170: 7025 Tile Wall Options | F170: =AVERAGE(B!K52,0,0) -> 0.0009910425005 | G170: =AVERAGE(B!L52,0,0) -> 0.08614976806 | H170: 7025 Tile Wall Options | I170: 0 | J170: 0
B171: 7040 Plumbing Options | C171: =AVERAGE(A!K69,A!R56,0) -> 0.01341920111 | D171: =AVERAGE(A!L69,A!S56,0) -> 1.589379074 | E171: 7040 Plumbing Options | F171: =AVERAGE(B!E42,0,0) -> 0.001290256962 | G171: =AVERAGE(B!F42,0,0) -> 0.09113957833 | H171: 7040 Plumbing Options | I171: 0 | J171: 0
B172: 7045 Electric Options | C172: =AVERAGE(A!R57,0,0) -> 0.002583333333 | D172: =AVERAGE(A!S57,0,0) -> 0.3227149698 | E172: 7045 Electric Options | F172: 0 | G172: 0 | H172: 7045 Electric Options | I172: 0 | J172: 0
B173: 7050 Low Voltage Options | C173: =AVERAGE(A!K70,0,0) -> 0.0004286972894 | D173: =AVERAGE(A!L70,0,0) -> 0.03691661137 | E173: 7050 Low Voltage Options | F173: 0 | G173: 0 | H173: 7050 Low Voltage Options | I173: 0 | J173: 0
B174: 7060 Interior Trim Options | C174: =0 -> 0 | D174: 0 | E174: 7060 Interior Trim Options | F174: 0 | G174: 0 | H174: 7060 Interior Trim Options | I174: =AVERAGE('C'!S35,0,0,0,0) -> 0.006645176471 | J174: =AVERAGE('C'!T35,0,0,0,0) -> 0.4471029024
B175: 7065 Paint Options | C175: =AVERAGE(A!K71,0,0) -> 0.003107734274 | D175: =AVERAGE(A!L71,0,0) -> 0.2676177837 | E175: 7065 Paint Options | F175: 0 | G175: 0 | H175: 7065 Paint Options | I175: =0 -> 0 | J175: 0
B177: Rough | E177: Rough | H177: Rough
B178: =B24 -> 5375.26 | C178: =C24 -> 0.0240216652 | D178: 2.628737236 | E178: 16164 | F178: 0.08537706623 | G178: 7.200851512 | H178: 10521.16667 | I178: 0.0945928717 | J178: 6.817060257
B179: 2011 Plumb. Rough | C179: =0 -> 0 | D179: 0 | E179: 2011 Plumb. Rough | F179: =AVERAGE(B!E44,0,0) -> 0.002970235755 | G179: =AVERAGE(B!F44,0,0) -> 0.2098078463 | H179: 2011 Plumb. Rough | I179: =AVERAGE('C'!Z58,0,0,0,0) -> 0.002258337726 | J179: =AVERAGE('C'!AA58,0,0,0,0) -> 0.1438159156
B180: 2101 Mono Slab Labor | C180: 0 | D180: 0 | E180: 2101 Mono Slab Labor | F180: =AVERAGE(B!E45,B!W58,0) -> 0.01599691685 | G180: =AVERAGE(B!F45,B!X58,0) -> 1.225828273 | H180: 2101 Mono Slab Labor | I180: =AVERAGE('C'!Z59,0,0,0,0) -> 0.002895188965 | J180: =AVERAGE('C'!AA59,0,0,0,0) -> 0.1843720038
B181: 2102 Mono Slab Prep Pack | C181: 0 | D181: 0 | E181: 2102 Mono Slab Prep Pack | F181: =AVERAGE(B!W59,B!E46,0) -> 0.00235863283 | G181: =AVERAGE(B!X59,B!F46,0) -> 0.1795469983 | H181: 2102 Mono Slab Prep Pack | I181: 0 | J181: 0
B182: 2103 Mono Slab Concrete | C182: =AVERAGE(A!R59,0,0) -> 0.0008333333333 | D182: =AVERAGE(A!S59,0,0) -> 0.1041016032 | E182: 2103 Mono Slab Concrete | F182: =AVERAGE(B!E47,B!W60,0) -> 0.0268054664 | G182: =AVERAGE(B!F47,B!X60,0) -> 2.056122146 | H182: 2103 Mono Slab Concrete | I182: =AVERAGE('C'!S37,0,0,0,0) -> 0.02082352941 | J182: =AVERAGE('C'!T37,0,0,0,0) -> 1.401055409
B183: 2104 Mono Conc. Pumping | C183: 0 | D183: 0 | E183: 2104 Mono Conc. Pumping | F183: =AVERAGE(B!W61,0,B!E48) -> 0.003655013576 | G183: =AVERAGE(B!X61,0,B!F48) -> 0.2791472326 | H183: 2104 Mono Conc. Pumping | I183: 0 | J183: 0
B184: 2115 Stem Wall Concrete (PM) | C184: 0 | D184: 0 | E184: 2115 Stem Wall Concrete (PM) | F184: =0 -> 0 | G184: =0 -> 0 | H184: 2115 Stem Wall Concrete (PM) | I184: =AVERAGE('C'!AG52,0,0,0,0) -> 0.003 | J184: =AVERAGE('C'!AH52,0,0,0,0) -> 0.2586206897
B185: 2117 SW-Slab Labor | C185: =AVERAGE(A!R60,0,0) -> 0.003550166667 | E185: 2117 SW-Slab Labor | F185: 0 | G185: 0 | H185: 2117 SW-Slab Labor | I185: =0 -> 0 | J185: 0
B186: 2118 SW-Slab Concrete | C186: 0 | D186: 0 | E186: 2118 SW-Slab Concrete | F186: 0 | G186: 0 | H186: 2118 SW-Slab Concrete | I186: =AVERAGE('C'!Z60,0,0,0,0) -> 0.007828904118 | J186: =AVERAGE('C'!AA60,0,0,0,0) -> 0.4985618408
B187: 3101 Hurricane Tie Downs | C187: =AVERAGE(A!K73,0,0) -> 0.003265702419 | D187: =AVERAGE(A!L73,0,0) -> 0.2812209688 | E187: 3101 Hurricane Tie Downs | F187: =AVERAGE(B!E49,0,0) -> 0.004119754586 | G187: =AVERAGE(B!F49,0,0) -> 0.2910061382 | H187: 3101 Hurricane Tie Downs | I187: =AVERAGE('C'!Z61,'C'!AG53,0,0,0) -> 0.004538645827 | J187: =AVERAGE('C'!AA61,'C'!AH53,0,0,0) -> 0.3430902238
B188: 3110 Lumber-Material DO NOT USE | C188: 0 | D188: 0 | E188: 3110 Lumber-Material DO NOT USE | F188: =AVERAGE(B!E50,0,0) -> 0.01754602118 | G188: =AVERAGE(B!F50,0,0) -> 1.239394182 | H188: 3110 Lumber-Material DO NOT USE | I188: =0 -> 0 | J188: 0
B189: 3141 Roof Trusess | C189: 0 | D189: 0 | E189: 3141 Roof Trusess | F189: =AVERAGE(B!E51,0,0) -> 0.01327457167 | G189: =AVERAGE(B!F51,0,0) -> 0.9376728049 | H189: 3141 Roof Trusess | I189: =AVERAGE('C'!AG54,0,0,0,0) -> 0.0056 | J189: =AVERAGE('C'!AH54,0,0,0,0) -> 0.4827586207
B190: 3210 Framing Labor DO NOT USE | C190: 0 | D190: 0 | E190: 3210 Framing Labor DO NOT USE | F190: =AVERAGE(B!E52,0,0) -> 0.02098509438 | G190: =AVERAGE(B!F52,0,0) -> 1.482319189 | H190: 3210 Framing Labor DO NOT USE | I190: 0 | J190: 0
B191: 3300 Windows DO NOT USE | C191: 0 | D191: 0 | E191: 3300 Windows DO NOT USE | F191: =AVERAGE(B!E53,0,0) -> 0.006260164316 | G191: =AVERAGE(B!F53,0,0) -> 0.4421977582 | H191: 3300 Windows DO NOT USE | I191: 0 | J191: 0
B192: 3301 House Wrap | C192: =AVERAGE(A!K74,A!R61,0) -> 0.001241853724 | D192: =AVERAGE(A!L74,A!S61,0) -> 0.1489828251 | E192: 3301 House Wrap | F192: =AVERAGE(B!E54,0,0) -> 0.002123653391 | G192: =AVERAGE(B!F54,0,0) -> 0.1500080064 | H192: 3301 House Wrap | I192: =AVERAGE('C'!Z61,'C'!AG55,0) -> 0.004897743045 | J192: =AVERAGE('C'!AA61,'C'!AH55,0) -> 0.3419319822
B193: 3610 HVAC Rough In DO NOT USE | C193: 0 | D193: 0 | E193: 3610 HVAC Rough In DO NOT USE | F193: =AVERAGE(B!E55,0,0) -> 0.005336714373 | G193: =AVERAGE(B!F55,0,0) -> 0.3769682413 | H193: 3610 HVAC Rough In DO NOT USE | I193: 0 | J193: 0
B194: 3721 Plumb. Topout | C194: =AVERAGE(A!K75,0,0) -> 0.003554784123 | D194: =AVERAGE(A!L75,0,0) -> 0.3061147976 | E194: 3721 Plumb. Topout | F194: =AVERAGE(B!E56,B!W62,0) -> 0.008235247393 | G194: =AVERAGE(B!F56,B!X62,0) -> 0.6512081507 | H194: 3721 Plumb. Topout | I194: =AVERAGE('C'!Z63,0,0) -> 0.003763896211 | J194: 0
B195: 3740 Gas Piping Rough In | C195: =AVERAGE(A!R62,0,0) -> 0.00175 | D195: =AVERAGE(A!S62,0,0) -> 0.2186133666 | E195: 3740 Gas Piping Rough In | F195: =AVERAGE(B!E57,0,0) -> 0.002125240237 | G195: =AVERAGE(B!F57,0,0) -> 0.1501200961 | H195: 3740 Gas Piping Rough In | I195: 0 | J195: 0
B196: 3810 Elect. Rough In DO NOT USE | C196: 0 | D196: 0 | E196: 3810 Elect. Rough In DO NOT USE | F196: =AVERAGE(B!E58,0,0) -> 0.01127983063 | G196: =AVERAGE(B!F58,0,0) -> 0.7967707499 | H196: 3810 Elect. Rough In DO NOT USE | I196: 0 | J196: 0
B197: 4170 TK - Roof Shingles | C197: 0 | D197: 0 | E197: 4170 TK - Roof Shingles | F197: =AVERAGE(B!E59,B!W63,0) -> 0.03035740822 | G197: =AVERAGE(B!F59,B!X63,0) -> 2.333668298 | H197: 4170 TK - Roof Shingles | I197: 0 | J197: 0
B198: 4171 Roof Shingles | C198: 0 | D198: 0 | E198: 4171 Roof Shingles | F198: =AVERAGE(B!W63,0,0) -> 0.01434261791 | G198: =AVERAGE(B!X63,0,0) -> 1.202435312 | H198: 4171 Roof Shingles | I198: =AVERAGE('C'!AG56,0,0) -> 0.01 | J198: =AVERAGE('C'!AH56,0,0) -> 0.8620689655
B199: 4300 Exterior Doors DO NOT USE | C199: 0 | D199: 0 | E199: 4300 Exterior Doors DO NOT USE | F199: =AVERAGE(B!E60,0,0) -> 0.001185959616 | G199: =AVERAGE(B!F60,0,0) -> 0.08377235121 | H199: 4300 Exterior Doors DO NOT USE | I199: 0 | J199: 0
B200: 4301 Exterior Doors Labor | C200: 0 | D200: 0 | E200: 4301 Exterior Doors Labor | F200: =AVERAGE(B!E61,0,B!W64) -> 0.0004925182151 | G200: =AVERAGE(B!F61,0,B!X64) -> 0.0374259834 | H200: 4301 Exterior Doors Labor | I200: 0 | J200: 0
B201: 4350 Garage Doors DO NOT USE | C201: 0 | D201: 0 | E201: 4350 Garage Doors DO NOT USE | F201: =AVERAGE(B!E62,0,0) -> 0.001586846044 | G201: =AVERAGE(B!F62,0,0) -> 0.1120896717 | H201: 4350 Garage Doors DO NOT USE | I201: 0 | J201: 0
B202: 4401 Insulation - Walls | C202: =AVERAGE(A!K76,0,0) -> 0.002478687143 | D202: =AVERAGE(A!L76,0,0) -> 0.2134483521 | E202: 4401 Insulation - Walls | F202: =AVERAGE(B!E63,B!W65,0) -> 0.00507789668 | G202: =AVERAGE(B!F63,B!X65,0) -> 0.4042186565 | H202: 4401 Insulation - Walls | I202: 0 | J202: 0
B203: 4402 Insulation - Ceiling | C203: =AVERAGE(A!K77,0,0) -> 0.0001303044547 | D203: =AVERAGE(A!L77,0,0) -> 0.01122096881 | E203: 4402 Insulation - Ceiling | F203: =AVERAGE(B!W66,B!E64,0) -> 0.004525676112 | G203: =AVERAGE(B!X66,B!F64,0) -> 0.3487959317 | H203: 4402 Insulation - Ceiling | I203: 0 | J203: 0
B204: 5700 HVAC Final DO NOT USE | C204: 0 | D204: 0 | E204: 5700 HVAC Final DO NOT USE | F204: =AVERAGE(B!E65,0,0) -> 0.005336714373 | G204: =AVERAGE(B!F65,0,0) -> 0.3769682413 | H204: 5700 HVAC Final DO NOT USE | I204: 0 | J204: 0
B205: 5710 Plumb. Final DO NOT USE | C205: 0 | D205: 0 | E205: 5710 Plumb. Final DO NOT USE | F205: =AVERAGE(B!E66,0,0) -> 0.003960314341 | G205: =AVERAGE(B!F66,0,0) -> 0.279743795 | H205: 5710 Plumb. Final DO NOT USE | I205: 0 | J205: 0
B206: 5711 Plumb. Fixtures | C206: 0 | D206: 0 | E206: 5711 Plumb. Fixtures | F206: =AVERAGE(B!K54,0,0) -> 0.009300552697 | G206: =AVERAGE(B!L54,0,0) -> 0.8084824387 | H206: 5711 Plumb. Fixtures | I206: 0 | J206: 0
B207: 5712 Tankless Water Heater | C207: 0 | D207: 0 | E207: 5712 Tankless Water Heater | F207: =AVERAGE(B!E67,0,0) -> 0.001329531401 | G207: =AVERAGE(B!F67,0,0) -> 0.0939137977 | H207: 5712 Tankless Water Heater | I207: 0 | J207: 0
B208: 5720 Elect.&amp; Light Fixtures DO NOT USE | C208: 0 | D208: 0 | E208: 5720 Elect.&amp; Light Fixtures DO NOT USE | F208: =AVERAGE(B!E68,0,0) -> 0.001433753183 | G208: =AVERAGE(B!F68,0,0) -> 0.1012756872 | H208: 5720 Elect.&amp; Light Fixtures DO NOT USE | I208: 0 | J208: 0
B209: 5730 Elect. Final DO NOT USE | C209: 0 | D209: 0 | E209: 5730 Elect. Final DO NOT USE | F209: =AVERAGE(B!E69,0,0) -> 0.004834213126 | G209: =AVERAGE(B!F69,0,0) -> 0.3414731785 | H209: 5730 Elect. Final DO NOT USE | I209: 0 | J209: 0
B211: Site | E211: Site | H211: Site
B212: =B26 -> 17656.81 | C212: =C26 -> 0.03783732597 | D212: 5.279389607 | E212: 3101 | F212: 0.01541915386 | G212: 1.316525589 | H212: 4166.6575 | I212: 0.03418929438 | J212: 2.390217748
B213: 1010 Permits - Building DO NOT USE | C213: =0 -> 0 | D213: 0 | E213: 1010 Permits - Building DO NOT USE | F213: =AVERAGE(B!K56,0,0) -> 0.0005336382695 | G213: =AVERAGE(B!L56,0,0) -> 0.04638833665 | H213: 1010 Permits - Building DO NOT USE | I213: 0 | J213: 0
B214: 1011 Impact Fees | C214: =0 -> 0 | D214: 0 | E214: 1011 Impact Fees | F214: 0 | G214: 0 | H214: 1011 Impact Fees | I214: =AVERAGE('C'!Z65,0,0,0,0) -> 0.01129168863 | J214: =AVERAGE('C'!AA65,0,0,0,0) -> 0.7190795781
B215: 1110 Architect Fees DO NOT USE | C215: =0 -> 0 | D215: 0 | E215: 1110 Architect Fees DO NOT USE | F215: =AVERAGE(B!K57,0,0) -> 0.00152468077 | G215: =AVERAGE(B!L57,0,0) -> 0.1325381047 | H215: 1110 Architect Fees DO NOT USE | I215: 0 | J215: 0
B216: 1112 Engineering Fees | C216: =AVERAGE(A!E52,A!K79,A!R64,) -> 0.007814144549 | D216: =AVERAGE(A!F52,A!L79,A!S64,) -> 1.132313129 | E216: 1112 Engineering Fees | F216: =AVERAGE(B!W68,B!K58,0) -> 0.003347249859 | G216: =AVERAGE(B!X68,B!L58,0) -> 0.2881644683 | H216: 1112 Engineering Fees | I216: =AVERAGE('C'!E58,'C'!S39,'C'!L56,'C'!Z66,'C'!AG58) -> 0.006337546603 | J216: =AVERAGE('C'!F58,'C'!T39,'C'!M56,'C'!AA66,'C'!AH58) -> 0.4518315806
B217: 1121 Plot Plans | C217: =AVERAGE(A!K80,0,0) -> 0.0002889661178 | D217: =AVERAGE(A!L80,0,0) -> 0.02488387525 | E217: 1121 Plot Plans | F217: 0 | G217: 0 | H217: 1121 Plot Plans | I217: =AVERAGE('C'!Z67,0,0,0,0) -> 0.000429084168 | J217: =AVERAGE('C'!AA67,0,0,0,0) -> 0.02732502397
... 188 more rows

Sheet Uniform budget Example
A1: Project Cost Summary
A2: Project Name: | B2: Johns Residence | C2: Construction Price: | D2: =G7+G6 -> 164245.38 | F2: Direct Construction: | G2: =G284 -> 128605.63
A3: Project Number: | B3: TBD | C3: Total Square Footage: | D3: 2372 | F3: Indirect Construction: | G3: =G18 -> 1745
A4: Owner: | B4: Cory Johns | C4: Conditioned Space: | D4: 1932 | F4: Interest Expense: | G4: 9600
A5: Designer: | B5: SDI Drafting | C5: Const. Sq. Ft: | D5: =D2/D3 -> 69.24341484 | F5: General Conditions: | G5: 2642.17
A6: Address: | B6: TBD | F6: Total Construction Cost: | G6: =SUM(G2:G5) -> 142592.8
A7: Location: | B7: Hernando County FL | C7: Land Cost: | D7: 23000 | F7: Builder Margin: | G7: 21652.58
C8: Contract Price: | D8: 198603.14
C9: Cost Pre Sq. Ft: | D9: =(D2+D7)/D3 -> 78.93987352 | F9: Const. Sq. Ft DC: | G9: =G2/D3 -> 54.21822513
A10: Detailed Cost Estimate
A11: Division: (0) Indirect Construction Costs
A12: Cost Code: | B12: SubDivision: | C12: Company Name: | D12: Unit: | E12: Quanity | F12: Unit Cost: | G12: Commited Cost:
B13: Builder Expense
B14: GL Insurance | C14: Wallace Insurance | D14: Monthly | E14: 3 | F14: 315 | G14: =E14*F14 -> 945
B15: Builders All Risk | C15: Wallace Insurance | D15: Per | E15: 1 | F15: 800 | G15: =E15*F15 -> 800
F16: Total Cost: | G16: =SUM(G13:G15) -> 1745
F18: Division Total Cost: | G18: =G16 -> 1745
A20: Division: (1) General Requirements
A21: Cost Code: | B21: SubDivision: | C21: Company Name: | D21: Unit: | E21: Quanity | F21: Unit Cost: | G21: Commited Cost:
B22: Permits/Fees
B23: Job Document Box | C23: Builders First Source | D23: Per | E23: 1 | F23: 53 | G23: =E23*F23 -> 53
B24: Building Permit | C24: Hernando County | D24: Per | E24: 1 | F24: 1200 | G24: 1200
B25: Notice of Commencement | C25: Hernando County | D25: Per | E25: 1 | F25: 53 | G25: 53
B26: Impact Fee | C26: Hernando County | D26: Per | E26: 1 | F26: 5000 | G26: 5000
B27: Design Coordinator Fee | C27: Total Design Source | D27: Per | E27: 1 | F27: 250 | G27: 250
B28: Architectural Design | C28: SDI Drafting | D28: H-SQ FT | E28: 1 | F28: 500 | G28: 500
F29: Total Cost: | G29: =SUM(G22:G28) -> 7056
B30: Utility Meters
B31: 3/4" Water Meter | C31: Hernando County | D31: Per | E31: 1 | F31: 1463 | G31: =E31*F31 -> 1463
B32: Permanent Electric Meter | C32: Withalochee Electric | D32: Per | E32: 1 | F32: 175 | G32: =E32*F32 -> 175
B33: Temp Power Activation | C33: Withalochee Electric | D33: Per | E33: 1 | F33: 285 | G33: =E33*F33 -> 285
B34: Temporary Electric Service | C34: Withalochee Electric | D34: Monthly | E34: 4 | F34: 85 | G34: =E34*F34 -> 340
F35: Tota Costl: | G35: =SUM(G30:G34) -> 2263
B36: OSHA/EPA Compliance
B37: Portable Toilets | C37: AWS Roll Off and Portable | D37: Per Month | E37: 4 | F37: 95.9 | G37: =E37*F37 -> 383.6
B38: 20 Yd. Roll Off Dumpster | C38: AWS Roll Off and Portable | D38: Per Tonnage | E38: 4 | F38: 395 | G38: =E38*F38 -> 1580
F39: Total Cost: | G39: =SUM(G36:G38) -> 1963.6
B40: Sanitary Services
B41: Cleaning Services | C41: Millenium Cleaning | D41: SQ FT | E41: 2372 | F41: 0.16 | G41: =E41*F41 -> 379.52
B42: General Sweep Out | C42: Millenium Cleaning | D42: Per | E42: 1 | F42: 45 | G42: =E42*F42 -> 45
B43: Pressure Wash | C43: Millenium Cleaning | D43: Per | E43: 1 | F43: 150 | G43: =E43*F43 -> 150
F44: Total Cost: | G44: =SUM(G40:G43) -> 574.52
F46: Division Total Cost: | G46: =G29+G35+G39+G44 -> 11857.12
A48: Division: (2) SiteWork
A49: Cost Code: | B49: SubDivision: | C49: Company Name: | D49: Unit: | E49: Quanity | F49: Unit Cost: | G49: Commited Cost:
B51: Surveying
B52: Draft Site Plan | C52: Integrity Land Survey Group | D52: Per | E52: 1 | F52: 75 | G52: =E52*F52 -> 75
B53: Rough Stake Out | C53: Integrity Land Survey Group | D53: Per | E53: 1 | F53: 200 | G53: =E53*F53 -> 200
B54: Lot Stake and House Pin | C54: Integrity Land Survey Group | D54: Per | E54: 1 | F54: 225 | G54: =E54*F54 -> 225
B55: Form Elevation | C55: Integrity Land Survey Group | D55: Per | E55: 1 | F55: 175 | G55: =E55*F55 -> 175
B56: Final Survey | C56: Integrity Land Survey Group | D56: Per | E56: 1 | F56: 185 | G56: =E56*F56 -> 185
F57: Total Cost: | G57: =SUM(G50:G56) -> 860
B58: Excavation
B59: Lot Bench | C59: Independence Contracting Svs | D59: Per Yd of Fill (Turnkey) | E59: 185 | F59: 14 | G59: =E59*F59 -> 2590
F60: Total Cost: | G60: =SUM(G58:G59) -> 2590
B61: Geotechnical Services
B62: Modified Proctor Test | C62: Faulkner Engineering | D62: Per | E62: 1 | F62: 80 | G62: =E62*F62 -> 80
B63: Compaction/Density Testing | C63: Faulkner Engineering | D63: Per | E63: 1 | F63: 80 | G63: =E63*F63 -> 80
F64: Total Cost: | G64: =SUM(G61:G63) -> 160
B65: Grading
B66: Rough Grading | C66: Independence Contracting Svs | D66: Up to 5 Loads | E66: 1 | F66: 200 | G66: =E66*F66 -> 200
B67: Final Grading | C67: Independence Contracting Svs | D67: Up to 5 Loads | E67: 1 | F67: 300 | G67: =E67*F67 -> 300
B68: Flatwork Grade | C68: Independence Contracting Svs | D68: Per | E68: 1 | F68: 150 | G68: =E68*F68 -> 150
F69: Total Cost: | G69: =SUM(G65:G68) -> 650
B70: Termite Protection
B71: Termiticide Soil Treatment | C71: Home Team Pest Defense | D71: SQ FT | E71: 2372 | F71: 0.12 | G71: =E71*F71 -> 284.64
F72: Total Cost: | G72: =SUM(G70:G71) -> 284.64
B73: Landscape
B74: Tree | C74: Tampa Bay Landscape | D74: Each | E74: 1 | F74: 105 | G74: =E74*F74 -> 105
B75: Plants | C75: Tampa Bay Landscape | D75: Each | E75: 6 | F75: 38 | G75: =E75*F75 -> 228
B76: Mulch | C76: Tampa Bay Landscape | D76: Per Bag | E76: 12 | F76: 15 | G76: =E76*F76 -> 180
F77: Total Cost: | G77: =SUM(G73:G76) -> 513
B78: Sodding
B79: St. Augustine Cut Sod | C79: Tampa Bay Landscape | D79: Per Pallet | E79: 8 | F79: 185 | G79: =E79*F79 -> 1480
F80: Total Cost: | G80: =SUM(G78:G79) -> 1480
F82: Division Total Cost: | G82: =G80+G77+G72+G69+G64+G60+G57 -> 6537.64
A84: Division: (3) Concrete
A85: Cost Code: | B85: SubDivision: | C85: Company Name: | D85: Unit: | E85: Quanity | F85: Unit Cost: | G85: Commited Cost:
B86: Slab Package
B87: #5 Rebar 20' | C87: Cast Crete | D87: Per 20' bar | E87: 32 | F87: 9.5 | G87: =E87*F87 -> 304
B88: #5 Dowel 1x3 | C88: Cast Crete | D88: Per 3' Bar | E88: 50 | F88: 4.3 | G88: 215
B89: 6 Mil Poly 20' | C89: Cast Crete | D89: Per 20' Roll | E89: 2 | F89: 72 | G89: 144
B90: #2 Chairs | C90: Cast Crete | D90: Per Box | E90: 2 | F90: 18 | G90: 36
B91: Roll of Tape | C91: Cast Crete | D91: Per Roll | E91: 3 | F91: 6.85 | G91: 20.55
B92: Wire Ties | C92: Cast Crete | D92: 1000 Ct | E92: 1 | F92: 9.95 | G92: 9.95
F93: Total Cost | G93: =SUM(G86:G92) -> 729.5
B94: Concrete Labor
B95: Layout | C95: Thomas Concrete Construction | D95: Per | E95: 1 | F95: 500 | G95: =E95*F95 -> 500
B96: Footings 10" x 20" | C96: Thomas Concrete Construction | D96: LF | E96: 258 | F96: 5 | G96: =E96*F96 -> 1290
B97: Slab Placement | C97: Thomas Concrete Construction | D97: SQ FT | E97: 2372 | F97: 0.7 | G97: =E97*F97 -> 1660.4
B98: Shower Recess | C98: Thomas Concrete Construction | D98: Per | E98: 1 | F98: 25 | G98: =E98*F98 -> 25
B99: Flatwork Placement (3000 PSI) | C99: Thomas Concrete Construction | D99: SQ FT | F99: 0.8 | G99: =E99*F99 -> 0
F100: Total Cost | G100: =SUM(G94:G99) -> 3475.4
B101: Concrete Material
B102: Footing Placement (3000 PSI) | C102: Prestige Concrete | D102: Cu. Yd. | E102: 19 | F102: 115 | G102: =E102*F102 -> 2185
B103: Slab Placement (3000 PSI) | C103: Prestige Concrete | D103: Cu. Yd. | E103: 29 | F103: 115 | G103: =E103*F103 -> 3335
B104: Flatwork Placement (3000 PSI) | C104: Prestige Concrete | D104: Cu. Yd. | F104: 115 | G104: =E104*F104 -> 0
F105: Total Cost | G105: =SUM(G101:G104) -> 5520
B106: Place Lintels
B107: 3000 PSI Pump Mix Labor | C107: Prestige Concrete | D107: Cu. Yd. | E107: 6 | F107: 95 | G107: =E107*F107 -> 570
B108: Labor | C108: Prestige Concrete | D108: Per YD | E108: 6 | F108: 40 | G108: =E108*F108 -> 240
F109: Total Cost | G109: 810
F111: Division Total Cost: | G111: =G93+G100+G105+G109 -> 10534.9
A113: Division: (4) Masonry
A114: Cost Code: | B114: SubDivision: | C114: Company Name: | D114: Unit: | E114: Quanity | F114: Unit Cost: | G114: Commited Cost:
B115: CMU Material
B116: 8x8x16 Standard Block | C116: Master Construction Products | D116: Per | E116: 1800 | F116: 1.05 | G116: =E116*F116 -> 1890
B117: 8x8x16 Bond Beam | C117: Master Construction Products | D117: Per | E117: 258 | F117: 1.25 | G117: 322.5
B118: #5 Vertical Rebar | C118: Master Construction Products | D118: Per 20' Bar | E118: 50 | F118: 9.5 | G118: 475
B119: Type S Mortar Mix | C119: Master Construction Products | D119: Per | E119: 20 | F119: 9 | G119: 180
B120: Sand | C120: Master Construction Products | D120: Per Ton | E120: 2 | F120: 38 | G120: 76
B121: Lintels | C121: Master Construction Products | D121: Per Plan | E121: 1 | F121: 1312 | G121: 1312
F122: Total Cost: | G122: =SUM(G115:G121) -> 4255.5
B123: CMU Labor
B124: Standard Block | C124: Thomas Concrete Construction | D124: Bid | E124: 1 | F124: 3900 | G124: =E124*F124 -> 3900
F125: Total Cost: | G125: =SUM(G123:G124) -> 3900
B126: Stucco/Plastering Labor
B127: Stucco Labor | C127: #1 Quality Stucco Works | D127: Bid | E127: 1 | F127: 5435 | G127: =E127*F127 -> 5435
F128: Total Cost: | G128: =SUM(G126:G127) -> 5435
F130: Division Total Cost: | G130: =G122+G125+G128 -> 13590.5
A132: Division: (5) Metals
A133: Cost Code: | B133: SubDivision: | C133: Company Name: | D133: Unit: | E133: Quanity | F133: Unit Cost: | G133: Commited Cost:
B134: Structural Tie Downs
B135: Simpson Hold Downs/Threaded Rods | C135: Alafaro Construction | D135: SQ FT | E135: 2372 | F135: 0.5 | G135: =E135*F135 -> 1186
F136: Total Cost: | G136: =SUM(G134:G135) -> 1186
F138: Division Total Cost: | G138: =G136 -> 1186
A140: Division: (6) Wood and Plastics
A141: Cost Code: | B141: SubDivision: | C141: Company Name: | D141: Unit: | E141: Quanity | F141: Unit Cost: | G141: Commited Cost:
B142: Rough Carpentry
B143: Framing Labor 1 Story | C143: Alafaro Construction | D143: SQ FT | E143: 2372 | F143: 2 | G143: =E143*F143 -> 4744
F144: Total Cost: | G144: =SUM(G142:G143) -> 4744
B145: Framing Material
B146: Lumber | C146: Builders First Source | D146: Bid | E146: 1 | F146: 7134 | G146: =E146*F146 -> 7134
F147: Total Cost: | G147: =SUM(G145:G146) -> 7134
B148: Truss Package
B149: Roof Assembly | C149: Builders First Source | D149: Bid | E149: 1 | F149: 3549 | G149: =E149*F149 -> 3549
F150: Total Cost: | G150: =SUM(G148:G149) -> 3549
B151: Exterior Siding
B152: Lap Hardie Siding | C152: JFS Construction | D152: Bid | E152: 1 | F152: 2481.75 | G152: =E152*F152 -> 2481.75
F153: Total Cost: | G153: =SUM(G151:G152) -> 2481.75
B154: Finished Trim Labor
B155: Int. Trim Labor | C155: Combs Contracting Inc | D155: H-SQ FT | E155: 2372 | F155: 0.38 | G155: =E155*F155 -> 901.36
B156: Trim Exterior Doors | C156: Combs Contracting Inc | D156: Per | E156: 3 | F156: 15 | G156: =E156*F156 -> 45
F157: Total Cost: | G157: =SUM(G154:G156) -> 946.36
B158: Finished Trim Material
B159: OG Base | C159: Builders First Source | D159: LF | E159: 500 | F159: 0.65 | G159: =E159*F159 -> 325
B160: OG Casing | C160: Builders First Source | D160: LF | E160: 300 | F160: 0.5 | G160: =E160*F160 -> 150
B161: Primed Shoe | C161: Builders First Source | D161: LF | E161: 250 | F161: 0.35 | G161: =E161*F161 -> 87.5
F162: Total Cost: | G162: =SUM(G158:G161) -> 562.5
F164: Division Total Cost: | G164: =G144+G147+G150+G153+G157+G162 -> 19417.61
A166: Division: (7) Thermal and Moisture Protection
A167: Cost Code: | B167: SubDivision: | C167: Company Name: | D167: Unit: | E167: Quanity | F167: Unit Cost: | G167: Commited Cost:
B168: Roofing Labor
B169: Shingle Install | C169: C Sterling Quality Roofing | D169: Bid | E169: 1 | F169: 5716 | G169: =E169*F169 -> 5716
F170: Total Cost | G170: =SUM(G168:G169) -> 5716
B171: Weather Resistant Barrier
B172: Dupont Tyvek Housewrap | C172: Z Wrap of Florida | D172: SQ FT | E172: 2372 | F172: 0.26 | G172: =E172*F172 -> 616.72
F173: Total Cost | G173: =SUM(G171:G172) -> 616.72
B174: Insulation
B175: Owens CorningR-30 Fiberglass Blown | C175: Gale Insulation | D175: H-SQ FT | E175: 1932 | F175: 0.5 | G175: =E175*F175 -> 966
B176: Poly Seal Fire Caulk | C176: Gale Insulation | D176: SQ FT | E176: 2372 | F176: 0.06 | G176: =E176*F176 -> 142.32
F177: Total Cost | G177: =SUM(G174:G176) -> 1108.32
B178: Soffit and Fascia
B179: Alside T 4Perforated Soffit | C179: Legacy Home Exteriors | D179: LF | E179: 300 | F179: 3.84 | G179: =E179*F179 -> 1152
B180: Alside T4 Solid Soffit | C180: Legacy Home Exteriors | D180: SQ FT | E180: 350 | F180: 2.5 | G180: =E180*F180 -> 875
F181: Total Cost: | G181: =SUM(G178:G180) -> 2027
F183: Division Total Cost: | G183: =G181+G177+G173+G170 -> 9468.04
A185: Division: (8) Windows and Doors
A186: Cost Code: | B186: SubDivision: | C186: Company Name: | D186: Unit: | E186: Quanity | F186: Unit Cost: | G186: Commited Cost:
B187: Exterior Doors
B188: 3068 Therma Tru Smooth Star | C188: Builders First Source | D188: Per | E188: 2 | F188: 256 | G188: =E188*F188 -> 512
B189: 2668 Therma Tru Smooth Star | C189: Builders First Source | D189: Per | E189: 1 | F189: 850 | G189: =E189*F189 -> 850
F190: Total Cost: | G190: =SUM(G187:G189) -> 1362
B191: Exterior Door Labor
B192: Single Door Install | C192: Combs Contracting Inc | D192: Per Door | E192: 3 | F192: 100 | G192: =E192*F192 -> 300
F193: Total Cost: | G193: =SUM(G191:G192) -> 300
B194: Interior Doors
B195: Masonite Hollow Core 2868 | C195: Builders First Source | D195: Per | E195: 11 | F195: 89 | G195: =E195*F195 -> 979
F196: Total Cost: | G196: =SUM(G194:G195) -> 979
B197: Windows
B198: M/I SH Vinyl Low E 3050 SH Non Impact | C198: Builders First Source | D198: Bid | E198: 1 | F198: 2998.6 | G198: =E198*F198 -> 2998.6
F199: Total: | G199: =SUM(G197:G198) -> 2998.6
F201: Division Total Cost | G201: =G190+G193+G196+G199 -> 5639.6
A203: Division: (9) Finishes
A204: Cost Code: | B204: SubDivision: | C204: Company Name: | D204: Unit: | E204: Quanity | F204: Unit Cost: | G204: Commited Cost:
B205: Drywall Labor
B206: Drywall Turnkey | C206: Gallahan Drywall | D206: Per Board | E206: 165 | F206: 35 | G206: =E206*F206 -> 5775
F207: Total Cost: | G207: =SUM(G205:G206) -> 5775
B208: Cabinetry
B209: Standard Base and 36" Uppers | C209: Total Design Source | D209: Allowance | E209: 1 | F209: 6000 | G209: =E209*F209 -> 6000
F210: Total Cost: | G210: =SUM(G208:G209) -> 6000
B211: Tops
B212: Laminate | C212: Total Design Source | D212: Allowance | E212: 1 | F212: 1100 | G212: =E212*F212 -> 1100
F213: Total Cost: | G213: =SUM(G211:G212) -> 1100
B214: Flooring
B215: 12x12 Tile/Carpet | C215: Total Design Source | D215: Allowance | E215: 1 | F215: 5000 | G215: =E215*F215 -> 5000
F216: Total Cost: | G216: =SUM(G214:G215) -> 5000
B217: Shower Tile
B218: 6x6 Ceramic Wall Tile | C218: Total Design Source | D218: Allowance | E218: 1 | F218: 1200 | G218: =E218*F218 -> 1200
F219: Total Cost: | G219: =SUM(G217:G218) -> 1200
... 56 more rows
